Publisher Label,Publisher URI,"Directorate code","Directorate","Service code","Service","Revenue or capital code","Revenue capital","Cost centre","Cost centre description","Bvsub Category","Bvsub description","Bvsum code","Bvsum description","Account code","Account description","Transaction No","Period","Transaction Date","Amount","Classification code","Classification description","Supplier ID","Supplier description","Company registration number","Company registration number Uri","VAT registration number"
"London Borough of Redbridge","http://opendatacommunities.org/doc/london-borough-council/redbridge","2BCULTUR&REL","Cultural & Related Services","2CREC&SPORT","Recreation & Sport","REV","Revenue","R6999","Leisure Client","05-THIRD","Third Party Payments","05H","Private contractors","6915","Contractor Payments","60314353","201704",06/07/2016 00:00:00,2612304.25,"48583","Local Government","REDACTED DATA","VISION REDBRIDGE CULTURE AND LEISURE","6032714","http://opencorporates.com/companies/gb/6032714","906429031"
"London Borough of Redbridge","http://opendatacommunities.org/doc/london-borough-council/redbridge","9BNONBVO","Outside the BVACOP Objective Structure","9CNONBVO","Outside the BVACOP Objective Structure","CAP","Capital","C4282","Woodford County High School","99-NONBV","Capital, Balance Sheet and Control","50E","Capital - Contract Payments","9163","Main Building / structure","60315715","201704",18/07/2016 00:00:00,678549.57,"21555","Construction Contractors - General","REDACTED DATA","KIER CONSTRUCTION LTD T/AS KIER CONSTRUCTION LONDON","2099533","http://opencorporates.com/companies/gb/2099533","882852191"
"London Borough of Redbridge","http://opendatacommunities.org/doc/london-borough-council/redbridge","9BNONBVO","Outside the BVACOP Objective Structure","9CNONBVO","Outside the BVACOP Objective Structure","BAL","Balance Sheet","B0132","Better Care Fund","99-NONBV","Capital, Balance Sheet and Control","50Q","Other Balances & Reserves","9912","Personal Account - Creditor","60316630","201704",17/06/2016 00:00:00,803536,"42200","Health Authorities","REDACTED DATA","REDBRIDGE CLINICAL COMMISSIONING GROUP","",,"654446033"
"London Borough of Redbridge","http://opendatacommunities.org/doc/london-borough-council/redbridge","9BNONBVO","Outside the BVACOP Objective Structure","9CNONBVO","Outside the BVACOP Objective Structure","BAL","Balance Sheet","B0132","Better Care Fund","99-NONBV","Capital, Balance Sheet and Control","50Q","Other Balances & Reserves","9912","Personal Account - Creditor","60316629","201704",17/06/2016 00:00:00,803536,"42200","Health Authorities","REDACTED DATA","REDBRIDGE CLINICAL COMMISSIONING GROUP","",,"654446033"
"London Borough of Redbridge","http://opendatacommunities.org/doc/london-borough-council/redbridge","9BNONBVO","Outside the BVACOP Objective Structure","9CNONBVO","Outside the BVACOP Objective Structure","CAP","Capital","C3100","Community Access to Swimming Facilities","99-NONBV","Capital, Balance Sheet and Control","50E","Capital - Contract Payments","9150","Main Contract","60316289","201704",29/06/2016 00:00:00,231177.14,"67981","Schools - Local Authority","REDACTED DATA","LOXFORD SCHOOL TRUST LTD","8743560","http://opencorporates.com/companies/gb/8743560","246546447"
"London Borough of Redbridge","http://opendatacommunities.org/doc/london-borough-council/redbridge","9BNONBVO","Outside the BVACOP Objective Structure","9CNONBVO","Outside the BVACOP Objective Structure","CAP","Capital","C3100","Community Access to Swimming Facilities","99-NONBV","Capital, Balance Sheet and Control","50E","Capital - Contract Payments","9150","Main Contract","60316289","201704",29/06/2016 00:00:00,478964.86,"67981","Schools - Local Authority","REDACTED DATA","LOXFORD SCHOOL TRUST LTD","8743560","http://opencorporates.com/companies/gb/8743560","246546447"
"London Borough of Redbridge","http://opendatacommunities.org/doc/london-borough-council/redbridge","9BNONBVO","Outside the BVACOP Objective Structure","9CNONBVO","Outside the BVACOP Objective Structure","CAP","Capital","C4280","Woodbridge High School 2","99-NONBV","Capital, Balance Sheet and Control","50E","Capital - Contract Payments","9163","Main Building / structure","60315714","201704",18/07/2016 00:00:00,524250,"21555","Construction Contractors - General","REDACTED DATA","KIER CONSTRUCTION LTD T/AS KIER CONSTRUCTION LONDON","2099533","http://opencorporates.com/companies/gb/2099533","882852191"
"London Borough of Redbridge","http://opendatacommunities.org/doc/london-borough-council/redbridge","1BCENTRALPUB","Central Services to the Public","1CLOCALTAXCO","Local Tax Collection","REV","Revenue","R5760","Local Tax Collection","01-EMPLOYEES","Employees","01A","Direct employee expenses","4","Agency Staff - Pay","3435304","201704",22/06/2016 00:00:00,804.24,"31230","Employment & Recruitment Agencies","REDACTED DATA","ADECCO UK LIMITED","593232","http://opencorporates.com/companies/gb/593232","232347975"
"London Borough of Redbridge","http://opendatacommunities.org/doc/london-borough-council/redbridge","1BCENTRALPUB","Central Services to the Public","1CLOCALTAXCO","Local Tax Collection","REV","Revenue","R5760","Local Tax Collection","01-EMPLOYEES","Employees","01A","Direct employee expenses","4","Agency Staff - Pay","3435304","201704",22/06/2016 00:00:00,339.75,"31230","Employment & Recruitment Agencies","REDACTED DATA","ADECCO UK LIMITED","593232","http://opencorporates.com/companies/gb/593232","232347975"
"London Borough of Redbridge","http://opendatacommunities.org/doc/london-borough-council/redbridge","1BCENTRALPUB","Central Services to the Public","1CLOCALTAXCO","Local Tax Collection","REV","Revenue","R5760","Local Tax Collection","01-EMPLOYEES","Employees","01A","Direct employee expenses","4","Agency Staff - Pay","3435304","201704",22/06/2016 00:00:00,474.48,"31230","Employment & Recruitment Agencies","REDACTED DATA","ADECCO UK LIMITED","593232","http://opencorporates.com/companies/gb/593232","232347975"
"London Borough of Redbridge","http://opendatacommunities.org/doc/london-borough-council/redbridge","1BCENTRALPUB","Central Services to the Public","1CLOCALTAXCO","Local Tax Collection","REV","Revenue","R5760","Local Tax Collection","01-EMPLOYEES","Employees","01A","Direct employee expenses","4","Agency Staff - Pay","3435304","201704",22/06/2016 00:00:00,855.36,"31230","Employment & Recruitment Agencies","REDACTED DATA","ADECCO UK LIMITED","593232","http://opencorporates.com/companies/gb/593232","232347975"
"London Borough of Redbridge","http://opendatacommunities.org/doc/london-borough-council/redbridge","1BCENTRALPUB","Central Services to the Public","1CLOCALTAXCO","Local Tax Collection","REV","Revenue","R5760","Local Tax Collection","01-EMPLOYEES","Employees","01A","Direct employee expenses","4","Agency Staff - Pay","3435304","201704",22/06/2016 00:00:00,875.88,"31230","Employment & Recruitment Agencies","REDACTED DATA","ADECCO UK LIMITED","593232","http://opencorporates.com/companies/gb/593232","232347975"
"London Borough of Redbridge","http://opendatacommunities.org/doc/london-borough-council/redbridge","1BCENTRALPUB","Central Services to the Public","1CLOCALTAXCO","Local Tax Collection","REV","Revenue","R5760","Local Tax Collection","01-EMPLOYEES","Employees","01A","Direct employee expenses","4","Agency Staff - Pay","3435304","201704",22/06/2016 00:00:00,190.28,"31230","Employment & Recruitment Agencies","REDACTED DATA","ADECCO UK LIMITED","593232","http://opencorporates.com/companies/gb/593232","232347975"
"London Borough of Redbridge","http://opendatacommunities.org/doc/london-borough-council/redbridge","1BCENTRALPUB","Central Services to the Public","1CLOCALTAXCO","Local Tax Collection","REV","Revenue","R5760","Local Tax Collection","01-EMPLOYEES","Employees","01A","Direct employee expenses","4","Agency Staff - Pay","3435304","201704",22/06/2016 00:00:00,708.75,"31230","Employment & Recruitment Agencies","REDACTED DATA","ADECCO UK LIMITED","593232","http://opencorporates.com/companies/gb/593232","232347975"
"London Borough of Redbridge","http://opendatacommunities.org/doc/london-borough-council/redbridge","1BCENTRALPUB","Central Services to the Public","1CLOCALTAXCO","Local Tax Collection","REV","Revenue","R5760","Local Tax Collection","01-EMPLOYEES","Employees","01A","Direct employee expenses","4","Agency Staff - Pay","3435304","201704",22/06/2016 00:00:00,845.64,"31230","Employment & Recruitment Agencies","REDACTED DATA","ADECCO UK LIMITED","593232","http://opencorporates.com/companies/gb/593232","232347975"
"London Borough of Redbridge","http://opendatacommunities.org/doc/london-borough-council/redbridge","1BCENTRALPUB","Central Services to the Public","1CTRADSURDEF","Trading Account Surpluses & Deficits","REV","Revenue","R5754","Income","01-EMPLOYEES","Employees","01A","Direct employee expenses","4","Agency Staff - Pay","3435304","201704",22/06/2016 00:00:00,410.72,"31230","Employment & Recruitment Agencies","REDACTED DATA","ADECCO UK LIMITED","593232","http://opencorporates.com/companies/gb/593232","232347975"
"London Borough of Redbridge","http://opendatacommunities.org/doc/london-borough-council/redbridge","1BCENTRALPUB","Central Services to the Public","1CTRADSURDEF","Trading Account Surpluses & Deficits","REV","Revenue","R5754","Income","01-EMPLOYEES","Employees","01A","Direct employee expenses","4","Agency Staff - Pay","3435304","201704",22/06/2016 00:00:00,457.13,"31230","Employment & Recruitment Agencies","REDACTED DATA","ADECCO UK LIMITED","593232","http://opencorporates.com/companies/gb/593232","232347975"
"London Borough of Redbridge","http://opendatacommunities.org/doc/london-borough-council/redbridge","1BCENTRALPUB","Central Services to the Public","1CTRADSURDEF","Trading Account Surpluses & Deficits","REV","Revenue","R5754","Income","01-EMPLOYEES","Employees","01A","Direct employee expenses","4","Agency Staff - Pay","3435304","201704",22/06/2016 00:00:00,195.68,"31230","Employment & Recruitment Agencies","REDACTED DATA","ADECCO UK LIMITED","593232","http://opencorporates.com/companies/gb/593232","232347975"
"London Borough of Redbridge","http://opendatacommunities.org/doc/london-borough-council/redbridge","1BCENTRALPUB","Central Services to the Public","1CTRADSURDEF","Trading Account Surpluses & Deficits","REV","Revenue","R5770","Income Assessment","01-EMPLOYEES","Employees","01A","Direct employee expenses","4","Agency Staff - Pay","3435304","201704",22/06/2016 00:00:00,587.63,"31230","Employment & Recruitment Agencies","REDACTED DATA","ADECCO UK LIMITED","593232","http://opencorporates.com/companies/gb/593232","232347975"
"London Borough of Redbridge","http://opendatacommunities.org/doc/london-borough-council/redbridge","1BCENTRALPUB","Central Services to the Public","1CTRADSURDEF","Trading Account Surpluses & Deficits","REV","Revenue","R5820","Customer Services Team","01-EMPLOYEES","Employees","01A","Direct employee expenses","4","Agency Staff - Pay","3435304","201704",22/06/2016 00:00:00,668.63,"31230","Employment & Recruitment Agencies","REDACTED DATA","ADECCO UK LIMITED","593232","http://opencorporates.com/companies/gb/593232","232347975"
"London Borough of Redbridge","http://opendatacommunities.org/doc/london-borough-council/redbridge","1BCENTRALPUB","Central Services to the Public","1CTRADSURDEF","Trading Account Surpluses & Deficits","REV","Revenue","R5824","P and B Telephone Team","01-EMPLOYEES","Employees","01A","Direct employee expenses","4","Agency Staff - Pay","3435304","201704",22/06/2016 00:00:00,641.58,"31230","Employment & Recruitment Agencies","REDACTED DATA","ADECCO UK LIMITED","593232","http://opencorporates.com/companies/gb/593232","232347975"
"London Borough of Redbridge","http://opendatacommunities.org/doc/london-borough-council/redbridge","1BCENTRALPUB","Central Services to the Public","1CTRADSURDEF","Trading Account Surpluses & Deficits","REV","Revenue","R5824","P and B Telephone Team","01-EMPLOYEES","Employees","01A","Direct employee expenses","4","Agency Staff - Pay","3435304","201704",22/06/2016 00:00:00,757.29,"31230","Employment & Recruitment Agencies","REDACTED DATA","ADECCO UK LIMITED","593232","http://opencorporates.com/companies/gb/593232","232347975"
"London Borough of Redbridge","http://opendatacommunities.org/doc/london-borough-council/redbridge","1BCENTRALPUB","Central Services to the Public","1CTRADSURDEF","Trading Account Surpluses & Deficits","REV","Revenue","R5824","P and B Telephone Team","01-EMPLOYEES","Employees","01A","Direct employee expenses","4","Agency Staff - Pay","3435304","201704",22/06/2016 00:00:00,739.13,"31230","Employment & Recruitment Agencies","REDACTED DATA","ADECCO UK LIMITED","593232","http://opencorporates.com/companies/gb/593232","232347975"
"London Borough of Redbridge","http://opendatacommunities.org/doc/london-borough-council/redbridge","1BOTHEROPI&E","Other Operating Income & Expenditure","1CELECTIONS","Elections","REV","Revenue","R9362","Electoral Registration","01-EMPLOYEES","Employees","01A","Direct employee expenses","4","Agency Staff - Pay","3435304","201704",22/06/2016 00:00:00,475.7,"31230","Employment & Recruitment Agencies","REDACTED DATA","ADECCO UK LIMITED","593232","http://opencorporates.com/companies/gb/593232","232347975"
"London Borough of Redbridge","http://opendatacommunities.org/doc/london-borough-council/redbridge","1BOTHEROPI&E","Other Operating Income & Expenditure","1CELECTIONS","Elections","REV","Revenue","R9362","Electoral Registration","01-EMPLOYEES","Employees","01A","Direct employee expenses","4","Agency Staff - Pay","3435304","201704",22/06/2016 00:00:00,377.63,"31230","Employment & Recruitment Agencies","REDACTED DATA","ADECCO UK LIMITED","593232","http://opencorporates.com/companies/gb/593232","232347975"
"London Borough of Redbridge","http://opendatacommunities.org/doc/london-borough-council/redbridge","1BOTHEROPI&E","Other Operating Income & Expenditure","1CELECTIONS","Elections","REV","Revenue","R9362","Electoral Registration","01-EMPLOYEES","Employees","01A","Direct employee expenses","4","Agency Staff - Pay","3435304","201704",22/06/2016 00:00:00,371,"31230","Employment & Recruitment Agencies","REDACTED DATA","ADECCO UK LIMITED","593232","http://opencorporates.com/companies/gb/593232","232347975"
"London Borough of Redbridge","http://opendatacommunities.org/doc/london-borough-council/redbridge","1BOTHEROPI&E","Other Operating Income & Expenditure","1CTRADSURDEF","Trading Account Surpluses & Deficits","REV","Revenue","R1313","Adecco Agency Contract","09-INCOME","Income","09E","Recharges","8353","Agency Rebates","3435304","201704",22/06/2016 00:00:00,99.47,"31230","Employment & Recruitment Agencies","REDACTED DATA","ADECCO UK LIMITED","593232","http://opencorporates.com/companies/gb/593232","232347975"
"London Borough of Redbridge","http://opendatacommunities.org/doc/london-borough-council/redbridge","1BOTHEROPI&E","Other Operating Income & Expenditure","1CTRADSURDEF","Trading Account Surpluses & Deficits","REV","Revenue","R7207","Building Services","01-EMPLOYEES","Employees","01A","Direct employee expenses","4","Agency Staff - Pay","3435304","201704",22/06/2016 00:00:00,817,"31230","Employment & Recruitment Agencies","REDACTED DATA","ADECCO UK LIMITED","593232","http://opencorporates.com/companies/gb/593232","232347975"
"London Borough of Redbridge","http://opendatacommunities.org/doc/london-borough-council/redbridge","1BOTHEROPI&E","Other Operating Income & Expenditure","1CTRADSURDEF","Trading Account Surpluses & Deficits","REV","Revenue","R7207","Building Services","01-EMPLOYEES","Employees","01A","Direct employee expenses","4","Agency Staff - Pay","3435304","201704",22/06/2016 00:00:00,712.08,"31230","Employment & Recruitment Agencies","REDACTED DATA","ADECCO UK LIMITED","593232","http://opencorporates.com/companies/gb/593232","232347975"
"London Borough of Redbridge","http://opendatacommunities.org/doc/london-borough-council/redbridge","1BOTHEROPI&E","Other Operating Income & Expenditure","1CTRADSURDEF","Trading Account Surpluses & Deficits","REV","Revenue","R7207","Building Services","01-EMPLOYEES","Employees","01A","Direct employee expenses","4","Agency Staff - Pay","3435304","201704",22/06/2016 00:00:00,491.25,"31230","Employment & Recruitment Agencies","REDACTED DATA","ADECCO UK LIMITED","593232","http://opencorporates.com/companies/gb/593232","232347975"
"London Borough of Redbridge","http://opendatacommunities.org/doc/london-borough-council/redbridge","1BOTHEROPI&E","Other Operating Income & Expenditure","1CTRADSURDEF","Trading Account Surpluses & Deficits","REV","Revenue","R7207","Building Services","01-EMPLOYEES","Employees","01A","Direct employee expenses","4","Agency Staff - Pay","3435304","201704",22/06/2016 00:00:00,1163.1,"31230","Employment & Recruitment Agencies","REDACTED DATA","ADECCO UK LIMITED","593232","http://opencorporates.com/companies/gb/593232","232347975"
"London Borough of Redbridge","http://opendatacommunities.org/doc/london-borough-council/redbridge","1BOTHEROPI&E","Other Operating Income & Expenditure","1CTRADSURDEF","Trading Account Surpluses & Deficits","REV","Revenue","R7207","Building Services","01-EMPLOYEES","Employees","01A","Direct employee expenses","4","Agency Staff - Pay","3435304","201704",22/06/2016 00:00:00,1163.1,"31230","Employment & Recruitment Agencies","REDACTED DATA","ADECCO UK LIMITED","593232","http://opencorporates.com/companies/gb/593232","232347975"
"London Borough of Redbridge","http://opendatacommunities.org/doc/london-borough-council/redbridge","1BOTHEROPI&E","Other Operating Income & Expenditure","1CTRADSURDEF","Trading Account Surpluses & Deficits","REV","Revenue","R9051","Strategic Procurement","01-EMPLOYEES","Employees","01A","Direct employee expenses","4","Agency Staff - Pay","3435304","201704",22/06/2016 00:00:00,-1459.6,"31230","Employment & Recruitment Agencies","REDACTED DATA","ADECCO UK LIMITED","593232","http://opencorporates.com/companies/gb/593232","232347975"
"London Borough of Redbridge","http://opendatacommunities.org/doc/london-borough-council/redbridge","1BOTHEROPI&E","Other Operating Income & Expenditure","1CTRADSURDEF","Trading Account Surpluses & Deficits","REV","Revenue","R9051","Strategic Procurement","01-EMPLOYEES","Employees","01A","Direct employee expenses","4","Agency Staff - Pay","3435304","201704",22/06/2016 00:00:00,2919.2,"31230","Employment & Recruitment Agencies","REDACTED DATA","ADECCO UK LIMITED","593232","http://opencorporates.com/companies/gb/593232","232347975"
"London Borough of Redbridge","http://opendatacommunities.org/doc/london-borough-council/redbridge","1BOTHEROPI&E","Other Operating Income & Expenditure","1CTRADSURDEF","Trading Account Surpluses & Deficits","REV","Revenue","R9051","Strategic Procurement","01-EMPLOYEES","Employees","01A","Direct employee expenses","4","Agency Staff - Pay","3435304","201704",22/06/2016 00:00:00,2919.2,"31230","Employment & Recruitment Agencies","REDACTED DATA","ADECCO UK LIMITED","593232","http://opencorporates.com/companies/gb/593232","232347975"
"London Borough of Redbridge","http://opendatacommunities.org/doc/london-borough-council/redbridge","1BOTHEROPI&E","Other Operating Income & Expenditure","1CTRADSURDEF","Trading Account Surpluses & Deficits","REV","Revenue","R9051","Strategic Procurement","01-EMPLOYEES","Employees","01A","Direct employee expenses","4","Agency Staff - Pay","3435304","201704",22/06/2016 00:00:00,2919.2,"31230","Employment & Recruitment Agencies","REDACTED DATA","ADECCO UK LIMITED","593232","http://opencorporates.com/companies/gb/593232","232347975"
"London Borough of Redbridge","http://opendatacommunities.org/doc/london-borough-council/redbridge","1BOTHEROPI&E","Other Operating Income & Expenditure","1CTRADSURDEF","Trading Account Surpluses & Deficits","REV","Revenue","R9051","Strategic Procurement","01-EMPLOYEES","Employees","01A","Direct employee expenses","4","Agency Staff - Pay","3435304","201704",22/06/2016 00:00:00,2335.36,"31230","Employment & Recruitment Agencies","REDACTED DATA","ADECCO UK LIMITED","593232","http://opencorporates.com/companies/gb/593232","232347975"
"London Borough of Redbridge","http://opendatacommunities.org/doc/london-borough-council/redbridge","1BOTHEROPI&E","Other Operating Income & Expenditure","1CTRADSURDEF","Trading Account Surpluses & Deficits","REV","Revenue","R9051","Strategic Procurement","01-EMPLOYEES","Employees","01A","Direct employee expenses","4","Agency Staff - Pay","3435304","201704",22/06/2016 00:00:00,-1167.68,"31230","Employment & Recruitment Agencies","REDACTED DATA","ADECCO UK LIMITED","593232","http://opencorporates.com/companies/gb/593232","232347975"
"London Borough of Redbridge","http://opendatacommunities.org/doc/london-borough-council/redbridge","1BOTHEROPI&E","Other Operating Income & Expenditure","1CTRADSURDEF","Trading Account Surpluses & Deficits","REV","Revenue","R9051","Strategic Procurement","01-EMPLOYEES","Employees","01A","Direct employee expenses","4","Agency Staff - Pay","3435304","201704",22/06/2016 00:00:00,2919.2,"31230","Employment & Recruitment Agencies","REDACTED DATA","ADECCO UK LIMITED","593232","http://opencorporates.com/companies/gb/593232","232347975"
"London Borough of Redbridge","http://opendatacommunities.org/doc/london-borough-council/redbridge","1BOTHEROPI&E","Other Operating Income & Expenditure","1CTRADSURDEF","Trading Account Surpluses & Deficits","REV","Revenue","R9051","Strategic Procurement","01-EMPLOYEES","Employees","01A","Direct employee expenses","4","Agency Staff - Pay","3435304","201704",22/06/2016 00:00:00,-1459.6,"31230","Employment & Recruitment Agencies","REDACTED DATA","ADECCO UK LIMITED","593232","http://opencorporates.com/companies/gb/593232","232347975"
"London Borough of Redbridge","http://opendatacommunities.org/doc/london-borough-council/redbridge","1BOTHEROPI&E","Other Operating Income & Expenditure","1CTRADSURDEF","Trading Account Surpluses & Deficits","REV","Revenue","R9051","Strategic Procurement","01-EMPLOYEES","Employees","01A","Direct employee expenses","4","Agency Staff - Pay","3435304","201704",22/06/2016 00:00:00,-1459.6,"31230","Employment & Recruitment Agencies","REDACTED DATA","ADECCO UK LIMITED","593232","http://opencorporates.com/companies/gb/593232","232347975"
"London Borough of Redbridge","http://opendatacommunities.org/doc/london-borough-council/redbridge","1BOTHEROPI&E","Other Operating Income & Expenditure","1CTRADSURDEF","Trading Account Surpluses & Deficits","REV","Revenue","R9051","Strategic Procurement","01-EMPLOYEES","Employees","01A","Direct employee expenses","4","Agency Staff - Pay","3435304","201704",22/06/2016 00:00:00,2919.2,"31230","Employment & Recruitment Agencies","REDACTED DATA","ADECCO UK LIMITED","593232","http://opencorporates.com/companies/gb/593232","232347975"
"London Borough of Redbridge","http://opendatacommunities.org/doc/london-borough-council/redbridge","1BOTHEROPI&E","Other Operating Income & Expenditure","1CTRADSURDEF","Trading Account Surpluses & Deficits","REV","Revenue","R9152","Financial Services","01-EMPLOYEES","Employees","01A","Direct employee expenses","4","Agency Staff - Pay","3435304","201704",22/06/2016 00:00:00,725.4,"31230","Employment & Recruitment Agencies","REDACTED DATA","ADECCO UK LIMITED","593232","http://opencorporates.com/companies/gb/593232","232347975"
"London Borough of Redbridge","http://opendatacommunities.org/doc/london-borough-council/redbridge","6BADULTSOCIA","Adult Social Care","6COLDINCMENT","Older People (65 or over) incl. Older Mentally Ill","REV","Revenue","R4385","OP Nursing","05-THIRD","Third Party Payments","05H","Private contractors","6909","Nursing Homes","90762113","201704",14/07/2016 00:00:00,2184.4,"53350","Nursing Homes","REDACTED DATA","JEWISH CARE (MERIT  HOUSE)","2447900","http://opencorporates.com/companies/gb/2447900","587033133"
"London Borough of Redbridge","http://opendatacommunities.org/doc/london-borough-council/redbridge","6BADULTSOCIA","Adult Social Care","6COLDINCMENT","Older People (65 or over) incl. Older Mentally Ill","REV","Revenue","R4385","OP Nursing","09-INCOME","Income","09C","Customer and Client Receipts","8557","Nursing Home Charges","90762113","201704",14/07/2016 00:00:00,-448,"53350","Nursing Homes","REDACTED DATA","JEWISH CARE (MERIT  HOUSE)","2447900","http://opencorporates.com/companies/gb/2447900","587033133"
"London Borough of Redbridge","http://opendatacommunities.org/doc/london-borough-council/redbridge","6BADULTSOCIA","Adult Social Care","6COLDINCMENT","Older People (65 or over) incl. Older Mentally Ill","REV","Revenue","R4385","OP Nursing","09-INCOME","Income","09C","Customer and Client Receipts","8557","Nursing Home Charges","90762113","201704",14/07/2016 00:00:00,-560.28,"53350","Nursing Homes","REDACTED DATA","JEWISH CARE (MERIT  HOUSE)","2447900","http://opencorporates.com/companies/gb/2447900","587033133"
"London Borough of Redbridge","http://opendatacommunities.org/doc/london-borough-council/redbridge","6BADULTSOCIA","Adult Social Care","6COLDINCMENT","Older People (65 or over) incl. Older Mentally Ill","REV","Revenue","R4385","OP Nursing","09-INCOME","Income","09C","Customer and Client Receipts","8557","Nursing Home Charges","90762113","201704",14/07/2016 00:00:00,311.22,"53350","Nursing Homes","REDACTED DATA","JEWISH CARE (MERIT  HOUSE)","2447900","http://opencorporates.com/companies/gb/2447900","587033133"
"London Borough of Redbridge","http://opendatacommunities.org/doc/london-borough-council/redbridge","6BSOCIALSERV","Social Services","6CASYLUMSEEK","Asylum Seekers","REV","Revenue","R2128","Leaving Care Asylum Seekers","04-SUPPLIES","Supplies And Services","04K","Miscellaneous expenses","6264","Staying Put","60315794","201704",09/06/2016 00:00:00,1928.57,"1880","Adoption and Fostering","REDACTED DATA","STEPPING STONES FOSTERING LTD","9189056","http://opencorporates.com/companies/gb/9189056",""
"London Borough of Redbridge","http://opendatacommunities.org/doc/london-borough-council/redbridge","6BADULTSOCIA","Adult Social Care","6COLDINCMENT","Older People (65 or over) incl. Older Mentally Ill","REV","Revenue","R4378","OP Residential","05-THIRD","Third Party Payments","05F","Voluntary associations","6802","Residential Homes","90761976","201704",14/07/2016 00:00:00,2477.56,"53350","Nursing Homes","REDACTED DATA","ASTON GRANGE LIMITED 2003","",,""
"London Borough of Redbridge","http://opendatacommunities.org/doc/london-borough-council/redbridge","6BADULTSOCIA","Adult Social Care","6COLDINCMENT","Older People (65 or over) incl. Older Mentally Ill","REV","Revenue","R4378","OP Residential","09-INCOME","Income","09C","Customer and Client Receipts","8555","Accommodation Charges","90761976","201704",14/07/2016 00:00:00,-525.72,"53350","Nursing Homes","REDACTED DATA","ASTON GRANGE LIMITED 2003","",,""
"London Borough of Redbridge","http://opendatacommunities.org/doc/london-borough-council/redbridge","6BADULTSOCIA","Adult Social Care","6COLDINCMENT","Older People (65 or over) incl. Older Mentally Ill","REV","Revenue","R4378","OP Residential","09-INCOME","Income","09C","Customer and Client Receipts","8555","Accommodation Charges","90761976","201704",14/07/2016 00:00:00,-23.94,"53350","Nursing Homes","REDACTED DATA","ASTON GRANGE LIMITED 2003","",,""
"London Borough of Redbridge","http://opendatacommunities.org/doc/london-borough-council/redbridge","1BOTHEROPI&E","Other Operating Income & Expenditure","1CTRADSURDEF","Trading Account Surpluses & Deficits","REV","Revenue","R9607","Ley Street Depot","01-EMPLOYEES","Employees","01A","Direct employee expenses","4","Agency Staff - Pay","60313836","201704",30/06/2016 00:00:00,1606,"63920","Recycling Centres","REDACTED DATA","REGIONAL WASTE RECYCLING (COMMERCIAL) LTD","6068617","http://opencorporates.com/companies/gb/6068617","898678328"
"London Borough of Redbridge","http://opendatacommunities.org/doc/london-borough-council/redbridge","6BADULTSOCIA","Adult Social Care","6CADLEARNDIS","Adults Under 65 with Learning Disabilities","REV","Revenue","R4215","LD Direct Payments","06-TRANSFER","Transfer Payments","06B","Social Services Clients","7053","Direct Payments","3437147","201704",26/07/2016 00:00:00,1925,"90005","Home Care Services DP","REDACTED DATA","REDACTED DATA","",,""
"London Borough of Redbridge","http://opendatacommunities.org/doc/london-borough-council/redbridge","6BADULTSOCIA","Adult Social Care","6COLDINCMENT","Older People (65 or over) incl. Older Mentally Ill","REV","Revenue","R4378","OP Residential","05-THIRD","Third Party Payments","05F","Voluntary associations","6802","Residential Homes","90762024","201704",14/07/2016 00:00:00,1923.64,"64710","Residential Care Homes","REDACTED DATA","CHESHNUT COURT CARE LTD","5754525","http://opencorporates.com/companies/gb/5754525",""
"London Borough of Redbridge","http://opendatacommunities.org/doc/london-borough-council/redbridge","6BADULTSOCIA","Adult Social Care","6CADPHYSDIS","Adults Under 65 with Phys Disab or Sensory Impair","REV","Revenue","R4186","PD Residential","05-THIRD","Third Party Payments","05F","Voluntary associations","6802","Residential Homes","90762058","201704",14/07/2016 00:00:00,1921.6,"64760","Rest & Retirement Homes","REDACTED DATA","EASTWOOD LODGE","",,""
"London Borough of Redbridge","http://opendatacommunities.org/doc/london-borough-council/redbridge","1BOTHEROPI&E","Other Operating Income & Expenditure","1CTRADSURDEF","Trading Account Surpluses & Deficits","REV","Revenue","R9152","Financial Services","01-EMPLOYEES","Employees","01A","Direct employee expenses","4","Agency Staff - Pay","3435304","201704",22/06/2016 00:00:00,2423.9,"31230","Employment & Recruitment Agencies","REDACTED DATA","ADECCO UK LIMITED","593232","http://opencorporates.com/companies/gb/593232","232347975"
"London Borough of Redbridge","http://opendatacommunities.org/doc/london-borough-council/redbridge","1BOTHEROPI&E","Other Operating Income & Expenditure","1CTRADSURDEF","Trading Account Surpluses & Deficits","REV","Revenue","R9152","Financial Services","01-EMPLOYEES","Employees","01A","Direct employee expenses","4","Agency Staff - Pay","3435304","201704",22/06/2016 00:00:00,1084.6,"31230","Employment & Recruitment Agencies","REDACTED DATA","ADECCO UK LIMITED","593232","http://opencorporates.com/companies/gb/593232","232347975"
"London Borough of Redbridge","http://opendatacommunities.org/doc/london-borough-council/redbridge","1BOTHEROPI&E","Other Operating Income & Expenditure","1CTRADSURDEF","Trading Account Surpluses & Deficits","REV","Revenue","R9152","Financial Services","01-EMPLOYEES","Employees","01A","Direct employee expenses","4","Agency Staff - Pay","3435304","201704",22/06/2016 00:00:00,867.68,"31230","Employment & Recruitment Agencies","REDACTED DATA","ADECCO UK LIMITED","593232","http://opencorporates.com/companies/gb/593232","232347975"
"London Borough of Redbridge","http://opendatacommunities.org/doc/london-borough-council/redbridge","1BOTHEROPI&E","Other Operating Income & Expenditure","1CTRADSURDEF","Trading Account Surpluses & Deficits","REV","Revenue","R9152","Financial Services","01-EMPLOYEES","Employees","01A","Direct employee expenses","4","Agency Staff - Pay","3435304","201704",22/06/2016 00:00:00,1084.6,"31230","Employment & Recruitment Agencies","REDACTED DATA","ADECCO UK LIMITED","593232","http://opencorporates.com/companies/gb/593232","232347975"
"London Borough of Redbridge","http://opendatacommunities.org/doc/london-borough-council/redbridge","1BOTHEROPI&E","Other Operating Income & Expenditure","1CTRADSURDEF","Trading Account Surpluses & Deficits","REV","Revenue","R9152","Financial Services","01-EMPLOYEES","Employees","01A","Direct employee expenses","4","Agency Staff - Pay","3435304","201704",22/06/2016 00:00:00,299.93,"31230","Employment & Recruitment Agencies","REDACTED DATA","ADECCO UK LIMITED","593232","http://opencorporates.com/companies/gb/593232","232347975"
"London Borough of Redbridge","http://opendatacommunities.org/doc/london-borough-council/redbridge","1BOTHEROPI&E","Other Operating Income & Expenditure","1CTRADSURDEF","Trading Account Surpluses & Deficits","REV","Revenue","R9152","Financial Services","01-EMPLOYEES","Employees","01A","Direct employee expenses","4","Agency Staff - Pay","3435304","201704",22/06/2016 00:00:00,867.68,"31230","Employment & Recruitment Agencies","REDACTED DATA","ADECCO UK LIMITED","593232","http://opencorporates.com/companies/gb/593232","232347975"
"London Borough of Redbridge","http://opendatacommunities.org/doc/london-borough-council/redbridge","1BOTHEROPI&E","Other Operating Income & Expenditure","1CTRADSURDEF","Trading Account Surpluses & Deficits","REV","Revenue","R9152","Financial Services","01-EMPLOYEES","Employees","01A","Direct employee expenses","4","Agency Staff - Pay","3435304","201704",22/06/2016 00:00:00,1024.5,"31230","Employment & Recruitment Agencies","REDACTED DATA","ADECCO UK LIMITED","593232","http://opencorporates.com/companies/gb/593232","232347975"
"London Borough of Redbridge","http://opendatacommunities.org/doc/london-borough-council/redbridge","1BOTHEROPI&E","Other Operating Income & Expenditure","1CTRADSURDEF","Trading Account Surpluses & Deficits","REV","Revenue","R9152","Financial Services","01-EMPLOYEES","Employees","01A","Direct employee expenses","4","Agency Staff - Pay","3435304","201704",22/06/2016 00:00:00,671.29,"31230","Employment & Recruitment Agencies","REDACTED DATA","ADECCO UK LIMITED","593232","http://opencorporates.com/companies/gb/593232","232347975"
"London Borough of Redbridge","http://opendatacommunities.org/doc/london-borough-council/redbridge","1BOTHEROPI&E","Other Operating Income & Expenditure","1CTRADSURDEF","Trading Account Surpluses & Deficits","REV","Revenue","R9152","Financial Services","01-EMPLOYEES","Employees","01A","Direct employee expenses","4","Agency Staff - Pay","3435304","201704",22/06/2016 00:00:00,695.16,"31230","Employment & Recruitment Agencies","REDACTED DATA","ADECCO UK LIMITED","593232","http://opencorporates.com/companies/gb/593232","232347975"
"London Borough of Redbridge","http://opendatacommunities.org/doc/london-borough-council/redbridge","1BOTHEROPI&E","Other Operating Income & Expenditure","1CTRADSURDEF","Trading Account Surpluses & Deficits","REV","Revenue","R9252","IT Services","01-EMPLOYEES","Employees","01A","Direct employee expenses","4","Agency Staff - Pay","3435304","201704",22/06/2016 00:00:00,1880.9,"31230","Employment & Recruitment Agencies","REDACTED DATA","ADECCO UK LIMITED","593232","http://opencorporates.com/companies/gb/593232","232347975"
"London Borough of Redbridge","http://opendatacommunities.org/doc/london-borough-council/redbridge","1BOTHEROPI&E","Other Operating Income & Expenditure","1CTRADSURDEF","Trading Account Surpluses & Deficits","REV","Revenue","R9252","IT Services","01-EMPLOYEES","Employees","01A","Direct employee expenses","4","Agency Staff - Pay","3435304","201704",22/06/2016 00:00:00,2181.96,"31230","Employment & Recruitment Agencies","REDACTED DATA","ADECCO UK LIMITED","593232","http://opencorporates.com/companies/gb/593232","232347975"
"London Borough of Redbridge","http://opendatacommunities.org/doc/london-borough-council/redbridge","1BOTHEROPI&E","Other Operating Income & Expenditure","1CTRADSURDEF","Trading Account Surpluses & Deficits","REV","Revenue","R9252","IT Services","01-EMPLOYEES","Employees","01A","Direct employee expenses","4","Agency Staff - Pay","3435304","201704",22/06/2016 00:00:00,2050.75,"31230","Employment & Recruitment Agencies","REDACTED DATA","ADECCO UK LIMITED","593232","http://opencorporates.com/companies/gb/593232","232347975"
"London Borough of Redbridge","http://opendatacommunities.org/doc/london-borough-council/redbridge","1BOTHEROPI&E","Other Operating Income & Expenditure","1CTRADSURDEF","Trading Account Surpluses & Deficits","REV","Revenue","R9252","IT Services","01-EMPLOYEES","Employees","01A","Direct employee expenses","4","Agency Staff - Pay","3435304","201704",22/06/2016 00:00:00,2082.78,"31230","Employment & Recruitment Agencies","REDACTED DATA","ADECCO UK LIMITED","593232","http://opencorporates.com/companies/gb/593232","232347975"
"London Borough of Redbridge","http://opendatacommunities.org/doc/london-borough-council/redbridge","1BOTHEROPI&E","Other Operating Income & Expenditure","1CTRADSURDEF","Trading Account Surpluses & Deficits","REV","Revenue","R9252","IT Services","01-EMPLOYEES","Employees","01A","Direct employee expenses","4","Agency Staff - Pay","3435304","201704",22/06/2016 00:00:00,912.75,"31230","Employment & Recruitment Agencies","REDACTED DATA","ADECCO UK LIMITED","593232","http://opencorporates.com/companies/gb/593232","232347975"
"London Borough of Redbridge","http://opendatacommunities.org/doc/london-borough-council/redbridge","1BOTHEROPI&E","Other Operating Income & Expenditure","1CTRADSURDEF","Trading Account Surpluses & Deficits","REV","Revenue","R9252","IT Services","01-EMPLOYEES","Employees","01A","Direct employee expenses","4","Agency Staff - Pay","3435304","201704",22/06/2016 00:00:00,1983.6,"31230","Employment & Recruitment Agencies","REDACTED DATA","ADECCO UK LIMITED","593232","http://opencorporates.com/companies/gb/593232","232347975"
"London Borough of Redbridge","http://opendatacommunities.org/doc/london-borough-council/redbridge","1BOTHEROPI&E","Other Operating Income & Expenditure","1CTRADSURDEF","Trading Account Surpluses & Deficits","REV","Revenue","R9252","IT Services","01-EMPLOYEES","Employees","01A","Direct employee expenses","4","Agency Staff - Pay","3435304","201704",22/06/2016 00:00:00,-1795.2,"31230","Employment & Recruitment Agencies","REDACTED DATA","ADECCO UK LIMITED","593232","http://opencorporates.com/companies/gb/593232","232347975"
"London Borough of Redbridge","http://opendatacommunities.org/doc/london-borough-council/redbridge","1BOTHEROPI&E","Other Operating Income & Expenditure","1CTRADSURDEF","Trading Account Surpluses & Deficits","REV","Revenue","R9252","IT Services","01-EMPLOYEES","Employees","01A","Direct employee expenses","4","Agency Staff - Pay","3435304","201704",22/06/2016 00:00:00,-1166.88,"31230","Employment & Recruitment Agencies","REDACTED DATA","ADECCO UK LIMITED","593232","http://opencorporates.com/companies/gb/593232","232347975"
"London Borough of Redbridge","http://opendatacommunities.org/doc/london-borough-council/redbridge","1BOTHEROPI&E","Other Operating Income & Expenditure","1CTRADSURDEF","Trading Account Surpluses & Deficits","REV","Revenue","R9252","IT Services","01-EMPLOYEES","Employees","01A","Direct employee expenses","4","Agency Staff - Pay","3435304","201704",22/06/2016 00:00:00,2304.04,"31230","Employment & Recruitment Agencies","REDACTED DATA","ADECCO UK LIMITED","593232","http://opencorporates.com/companies/gb/593232","232347975"
"London Borough of Redbridge","http://opendatacommunities.org/doc/london-borough-council/redbridge","1BOTHEROPI&E","Other Operating Income & Expenditure","1CTRADSURDEF","Trading Account Surpluses & Deficits","REV","Revenue","R9252","IT Services","01-EMPLOYEES","Employees","01A","Direct employee expenses","4","Agency Staff - Pay","3435304","201704",22/06/2016 00:00:00,2082.78,"31230","Employment & Recruitment Agencies","REDACTED DATA","ADECCO UK LIMITED","593232","http://opencorporates.com/companies/gb/593232","232347975"
"London Borough of Redbridge","http://opendatacommunities.org/doc/london-borough-council/redbridge","1BOTHEROPI&E","Other Operating Income & Expenditure","1CTRADSURDEF","Trading Account Surpluses & Deficits","REV","Revenue","R9252","IT Services","01-EMPLOYEES","Employees","01A","Direct employee expenses","4","Agency Staff - Pay","3435304","201704",22/06/2016 00:00:00,1384.6,"31230","Employment & Recruitment Agencies","REDACTED DATA","ADECCO UK LIMITED","593232","http://opencorporates.com/companies/gb/593232","232347975"
"London Borough of Redbridge","http://opendatacommunities.org/doc/london-borough-council/redbridge","1BOTHEROPI&E","Other Operating Income & Expenditure","1CTRADSURDEF","Trading Account Surpluses & Deficits","REV","Revenue","R9252","IT Services","01-EMPLOYEES","Employees","01A","Direct employee expenses","4","Agency Staff - Pay","3435304","201704",22/06/2016 00:00:00,1384.6,"31230","Employment & Recruitment Agencies","REDACTED DATA","ADECCO UK LIMITED","593232","http://opencorporates.com/companies/gb/593232","232347975"
"London Borough of Redbridge","http://opendatacommunities.org/doc/london-borough-council/redbridge","1BOTHEROPI&E","Other Operating Income & Expenditure","1CTRADSURDEF","Trading Account Surpluses & Deficits","REV","Revenue","R9252","IT Services","01-EMPLOYEES","Employees","01A","Direct employee expenses","4","Agency Staff - Pay","3435304","201704",22/06/2016 00:00:00,1327.68,"31230","Employment & Recruitment Agencies","REDACTED DATA","ADECCO UK LIMITED","593232","http://opencorporates.com/companies/gb/593232","232347975"
"London Borough of Redbridge","http://opendatacommunities.org/doc/london-borough-council/redbridge","1BOTHEROPI&E","Other Operating Income & Expenditure","1CTRADSURDEF","Trading Account Surpluses & Deficits","REV","Revenue","R9252","IT Services","01-EMPLOYEES","Employees","01A","Direct employee expenses","4","Agency Staff - Pay","3435304","201704",22/06/2016 00:00:00,2023.85,"31230","Employment & Recruitment Agencies","REDACTED DATA","ADECCO UK LIMITED","593232","http://opencorporates.com/companies/gb/593232","232347975"
"London Borough of Redbridge","http://opendatacommunities.org/doc/london-borough-council/redbridge","1BOTHEROPI&E","Other Operating Income & Expenditure","1CTRADSURDEF","Trading Account Surpluses & Deficits","REV","Revenue","R9252","IT Services","01-EMPLOYEES","Employees","01A","Direct employee expenses","4","Agency Staff - Pay","3435304","201704",22/06/2016 00:00:00,-1974.72,"31230","Employment & Recruitment Agencies","REDACTED DATA","ADECCO UK LIMITED","593232","http://opencorporates.com/companies/gb/593232","232347975"
"London Borough of Redbridge","http://opendatacommunities.org/doc/london-borough-council/redbridge","1BOTHEROPI&E","Other Operating Income & Expenditure","1CTRADSURDEF","Trading Account Surpluses & Deficits","REV","Revenue","R9252","IT Services","01-EMPLOYEES","Employees","01A","Direct employee expenses","4","Agency Staff - Pay","3435304","201704",22/06/2016 00:00:00,658.58,"31230","Employment & Recruitment Agencies","REDACTED DATA","ADECCO UK LIMITED","593232","http://opencorporates.com/companies/gb/593232","232347975"
"London Borough of Redbridge","http://opendatacommunities.org/doc/london-borough-council/redbridge","1BOTHEROPI&E","Other Operating Income & Expenditure","1CTRADSURDEF","Trading Account Surpluses & Deficits","REV","Revenue","R9252","IT Services","01-EMPLOYEES","Employees","01A","Direct employee expenses","4","Agency Staff - Pay","3435304","201704",22/06/2016 00:00:00,1289.34,"31230","Employment & Recruitment Agencies","REDACTED DATA","ADECCO UK LIMITED","593232","http://opencorporates.com/companies/gb/593232","232347975"
"London Borough of Redbridge","http://opendatacommunities.org/doc/london-borough-council/redbridge","1BOTHEROPI&E","Other Operating Income & Expenditure","1CTRADSURDEF","Trading Account Surpluses & Deficits","REV","Revenue","R9252","IT Services","01-EMPLOYEES","Employees","01A","Direct employee expenses","4","Agency Staff - Pay","3435304","201704",22/06/2016 00:00:00,1327.68,"31230","Employment & Recruitment Agencies","REDACTED DATA","ADECCO UK LIMITED","593232","http://opencorporates.com/companies/gb/593232","232347975"
"London Borough of Redbridge","http://opendatacommunities.org/doc/london-borough-council/redbridge","1BOTHEROPI&E","Other Operating Income & Expenditure","1CTRADSURDEF","Trading Account Surpluses & Deficits","REV","Revenue","R9252","IT Services","01-EMPLOYEES","Employees","01A","Direct employee expenses","4","Agency Staff - Pay","3435304","201704",22/06/2016 00:00:00,-1152.02,"31230","Employment & Recruitment Agencies","REDACTED DATA","ADECCO UK LIMITED","593232","http://opencorporates.com/companies/gb/593232","232347975"
"London Borough of Redbridge","http://opendatacommunities.org/doc/london-borough-council/redbridge","1BOTHEROPI&E","Other Operating Income & Expenditure","1CTRADSURDEF","Trading Account Surpluses & Deficits","REV","Revenue","R9252","IT Services","01-EMPLOYEES","Employees","01A","Direct employee expenses","4","Agency Staff - Pay","3435304","201704",22/06/2016 00:00:00,1050,"31230","Employment & Recruitment Agencies","REDACTED DATA","ADECCO UK LIMITED","593232","http://opencorporates.com/companies/gb/593232","232347975"
"London Borough of Redbridge","http://opendatacommunities.org/doc/london-borough-council/redbridge","1BOTHEROPI&E","Other Operating Income & Expenditure","1CTRADSURDEF","Trading Account Surpluses & Deficits","REV","Revenue","R9252","IT Services","01-EMPLOYEES","Employees","01A","Direct employee expenses","4","Agency Staff - Pay","3435304","201704",22/06/2016 00:00:00,1327.68,"31230","Employment & Recruitment Agencies","REDACTED DATA","ADECCO UK LIMITED","593232","http://opencorporates.com/companies/gb/593232","232347975"
"London Borough of Redbridge","http://opendatacommunities.org/doc/london-borough-council/redbridge","1BOTHEROPI&E","Other Operating Income & Expenditure","1CTRADSURDEF","Trading Account Surpluses & Deficits","REV","Revenue","R9252","IT Services","01-EMPLOYEES","Employees","01A","Direct employee expenses","4","Agency Staff - Pay","3435304","201704",22/06/2016 00:00:00,1659.6,"31230","Employment & Recruitment Agencies","REDACTED DATA","ADECCO UK LIMITED","593232","http://opencorporates.com/companies/gb/593232","232347975"
"London Borough of Redbridge","http://opendatacommunities.org/doc/london-borough-council/redbridge","1BOTHEROPI&E","Other Operating Income & Expenditure","1CTRADSURDEF","Trading Account Surpluses & Deficits","REV","Revenue","R9252","IT Services","01-EMPLOYEES","Employees","01A","Direct employee expenses","4","Agency Staff - Pay","3435304","201704",22/06/2016 00:00:00,1384.6,"31230","Employment & Recruitment Agencies","REDACTED DATA","ADECCO UK LIMITED","593232","http://opencorporates.com/companies/gb/593232","232347975"
"London Borough of Redbridge","http://opendatacommunities.org/doc/london-borough-council/redbridge","1BOTHEROPI&E","Other Operating Income & Expenditure","1CTRADSURDEF","Trading Account Surpluses & Deficits","REV","Revenue","R9252","IT Services","01-EMPLOYEES","Employees","01A","Direct employee expenses","4","Agency Staff - Pay","3435304","201704",22/06/2016 00:00:00,802.88,"31230","Employment & Recruitment Agencies","REDACTED DATA","ADECCO UK LIMITED","593232","http://opencorporates.com/companies/gb/593232","232347975"
"London Borough of Redbridge","http://opendatacommunities.org/doc/london-borough-council/redbridge","1BOTHEROPI&E","Other Operating Income & Expenditure","1CTRADSURDEF","Trading Account Surpluses & Deficits","REV","Revenue","R9252","IT Services","01-EMPLOYEES","Employees","01A","Direct employee expenses","4","Agency Staff - Pay","3435304","201704",22/06/2016 00:00:00,2769.2,"31230","Employment & Recruitment Agencies","REDACTED DATA","ADECCO UK LIMITED","593232","http://opencorporates.com/companies/gb/593232","232347975"
"London Borough of Redbridge","http://opendatacommunities.org/doc/london-borough-council/redbridge","1BOTHEROPI&E","Other Operating Income & Expenditure","1CTRADSURDEF","Trading Account Surpluses & Deficits","REV","Revenue","R9252","IT Services","01-EMPLOYEES","Employees","01A","Direct employee expenses","4","Agency Staff - Pay","3435304","201704",22/06/2016 00:00:00,1691.08,"31230","Employment & Recruitment Agencies","REDACTED DATA","ADECCO UK LIMITED","593232","http://opencorporates.com/companies/gb/593232","232347975"
"London Borough of Redbridge","http://opendatacommunities.org/doc/london-borough-council/redbridge","1BOTHEROPI&E","Other Operating Income & Expenditure","1CTRADSURDEF","Trading Account Surpluses & Deficits","REV","Revenue","R9252","IT Services","01-EMPLOYEES","Employees","01A","Direct employee expenses","4","Agency Staff - Pay","3435304","201704",22/06/2016 00:00:00,2880.05,"31230","Employment & Recruitment Agencies","REDACTED DATA","ADECCO UK LIMITED","593232","http://opencorporates.com/companies/gb/593232","232347975"
"London Borough of Redbridge","http://opendatacommunities.org/doc/london-borough-council/redbridge","1BOTHEROPI&E","Other Operating Income & Expenditure","1CTRADSURDEF","Trading Account Surpluses & Deficits","REV","Revenue","R9252","IT Services","01-EMPLOYEES","Employees","01A","Direct employee expenses","4","Agency Staff - Pay","3435304","201704",22/06/2016 00:00:00,2304.04,"31230","Employment & Recruitment Agencies","REDACTED DATA","ADECCO UK LIMITED","593232","http://opencorporates.com/companies/gb/593232","232347975"
"London Borough of Redbridge","http://opendatacommunities.org/doc/london-borough-council/redbridge","1BOTHEROPI&E","Other Operating Income & Expenditure","1CTRADSURDEF","Trading Account Surpluses & Deficits","REV","Revenue","R9252","IT Services","01-EMPLOYEES","Employees","01A","Direct employee expenses","4","Agency Staff - Pay","3435304","201704",22/06/2016 00:00:00,1334.6,"31230","Employment & Recruitment Agencies","REDACTED DATA","ADECCO UK LIMITED","593232","http://opencorporates.com/companies/gb/593232","232347975"
"London Borough of Redbridge","http://opendatacommunities.org/doc/london-borough-council/redbridge","1BOTHEROPI&E","Other Operating Income & Expenditure","1CTRADSURDEF","Trading Account Surpluses & Deficits","REV","Revenue","R9252","IT Services","01-EMPLOYEES","Employees","01A","Direct employee expenses","4","Agency Staff - Pay","3435304","201704",22/06/2016 00:00:00,1334.6,"31230","Employment & Recruitment Agencies","REDACTED DATA","ADECCO UK LIMITED","593232","http://opencorporates.com/companies/gb/593232","232347975"
"London Borough of Redbridge","http://opendatacommunities.org/doc/london-borough-council/redbridge","1BOTHEROPI&E","Other Operating Income & Expenditure","1CTRADSURDEF","Trading Account Surpluses & Deficits","REV","Revenue","R9252","IT Services","01-EMPLOYEES","Employees","01A","Direct employee expenses","4","Agency Staff - Pay","3435304","201704",22/06/2016 00:00:00,2304.04,"31230","Employment & Recruitment Agencies","REDACTED DATA","ADECCO UK LIMITED","593232","http://opencorporates.com/companies/gb/593232","232347975"
"London Borough of Redbridge","http://opendatacommunities.org/doc/london-borough-council/redbridge","1BOTHEROPI&E","Other Operating Income & Expenditure","1CTRADSURDEF","Trading Account Surpluses & Deficits","REV","Revenue","R9252","IT Services","01-EMPLOYEES","Employees","01A","Direct employee expenses","4","Agency Staff - Pay","3435304","201704",22/06/2016 00:00:00,2488.62,"31230","Employment & Recruitment Agencies","REDACTED DATA","ADECCO UK LIMITED","593232","http://opencorporates.com/companies/gb/593232","232347975"
"London Borough of Redbridge","http://opendatacommunities.org/doc/london-borough-council/redbridge","1BOTHEROPI&E","Other Operating Income & Expenditure","1CTRADSURDEF","Trading Account Surpluses & Deficits","REV","Revenue","R9252","IT Services","01-EMPLOYEES","Employees","01A","Direct employee expenses","4","Agency Staff - Pay","3435304","201704",22/06/2016 00:00:00,1785.24,"31230","Employment & Recruitment Agencies","REDACTED DATA","ADECCO UK LIMITED","593232","http://opencorporates.com/companies/gb/593232","232347975"
"London Borough of Redbridge","http://opendatacommunities.org/doc/london-borough-council/redbridge","1BOTHEROPI&E","Other Operating Income & Expenditure","1CTRADSURDEF","Trading Account Surpluses & Deficits","REV","Revenue","R9252","IT Services","01-EMPLOYEES","Employees","01A","Direct employee expenses","4","Agency Staff - Pay","3435304","201704",22/06/2016 00:00:00,1983.6,"31230","Employment & Recruitment Agencies","REDACTED DATA","ADECCO UK LIMITED","593232","http://opencorporates.com/companies/gb/593232","232347975"
"London Borough of Redbridge","http://opendatacommunities.org/doc/london-borough-council/redbridge","1BOTHEROPI&E","Other Operating Income & Expenditure","1CTRADSURDEF","Trading Account Surpluses & Deficits","REV","Revenue","R9252","IT Services","01-EMPLOYEES","Employees","01A","Direct employee expenses","4","Agency Staff - Pay","3435304","201704",22/06/2016 00:00:00,-1795.2,"31230","Employment & Recruitment Agencies","REDACTED DATA","ADECCO UK LIMITED","593232","http://opencorporates.com/companies/gb/593232","232347975"
"London Borough of Redbridge","http://opendatacommunities.org/doc/london-borough-council/redbridge","1BOTHEROPI&E","Other Operating Income & Expenditure","1CTRADSURDEF","Trading Account Surpluses & Deficits","REV","Revenue","R9252","IT Services","01-EMPLOYEES","Employees","01A","Direct employee expenses","4","Agency Staff - Pay","3435304","201704",22/06/2016 00:00:00,1659.6,"31230","Employment & Recruitment Agencies","REDACTED DATA","ADECCO UK LIMITED","593232","http://opencorporates.com/companies/gb/593232","232347975"
"London Borough of Redbridge","http://opendatacommunities.org/doc/london-borough-council/redbridge","1BOTHEROPI&E","Other Operating Income & Expenditure","1CTRADSURDEF","Trading Account Surpluses & Deficits","REV","Revenue","R9256","Redbridge-i Development","01-EMPLOYEES","Employees","01A","Direct employee expenses","4","Agency Staff - Pay","3435304","201704",22/06/2016 00:00:00,1544.2,"31230","Employment & Recruitment Agencies","REDACTED DATA","ADECCO UK LIMITED","593232","http://opencorporates.com/companies/gb/593232","232347975"
"London Borough of Redbridge","http://opendatacommunities.org/doc/london-borough-council/redbridge","1BOTHEROPI&E","Other Operating Income & Expenditure","1CTRADSURDEF","Trading Account Surpluses & Deficits","REV","Revenue","R9256","Redbridge-i Development","01-EMPLOYEES","Employees","01A","Direct employee expenses","4","Agency Staff - Pay","3435304","201704",22/06/2016 00:00:00,2305.05,"31230","Employment & Recruitment Agencies","REDACTED DATA","ADECCO UK LIMITED","593232","http://opencorporates.com/companies/gb/593232","232347975"
"London Borough of Redbridge","http://opendatacommunities.org/doc/london-borough-council/redbridge","1BOTHEROPI&E","Other Operating Income & Expenditure","1CTRADSURDEF","Trading Account Surpluses & Deficits","REV","Revenue","R9256","Redbridge-i Development","01-EMPLOYEES","Employees","01A","Direct employee expenses","4","Agency Staff - Pay","3435304","201704",22/06/2016 00:00:00,2736.3,"31230","Employment & Recruitment Agencies","REDACTED DATA","ADECCO UK LIMITED","593232","http://opencorporates.com/companies/gb/593232","232347975"
"London Borough of Redbridge","http://opendatacommunities.org/doc/london-borough-council/redbridge","1BOTHEROPI&E","Other Operating Income & Expenditure","1CTRADSURDEF","Trading Account Surpluses & Deficits","REV","Revenue","R9256","Redbridge-i Development","01-EMPLOYEES","Employees","01A","Direct employee expenses","4","Agency Staff - Pay","3435304","201704",22/06/2016 00:00:00,772.1,"31230","Employment & Recruitment Agencies","REDACTED DATA","ADECCO UK LIMITED","593232","http://opencorporates.com/companies/gb/593232","232347975"
"London Borough of Redbridge","http://opendatacommunities.org/doc/london-borough-council/redbridge","1BOTHEROPI&E","Other Operating Income & Expenditure","1CTRADSURDEF","Trading Account Surpluses & Deficits","REV","Revenue","R9256","Redbridge-i Development","01-EMPLOYEES","Employees","01A","Direct employee expenses","4","Agency Staff - Pay","3435304","201704",22/06/2016 00:00:00,772.1,"31230","Employment & Recruitment Agencies","REDACTED DATA","ADECCO UK LIMITED","593232","http://opencorporates.com/companies/gb/593232","232347975"
"London Borough of Redbridge","http://opendatacommunities.org/doc/london-borough-council/redbridge","1BOTHEROPI&E","Other Operating Income & Expenditure","1CTRADSURDEF","Trading Account Surpluses & Deficits","REV","Revenue","R9256","Redbridge-i Development","01-EMPLOYEES","Employees","01A","Direct employee expenses","4","Agency Staff - Pay","3435304","201704",22/06/2016 00:00:00,772.1,"31230","Employment & Recruitment Agencies","REDACTED DATA","ADECCO UK LIMITED","593232","http://opencorporates.com/companies/gb/593232","232347975"
"London Borough of Redbridge","http://opendatacommunities.org/doc/london-borough-council/redbridge","1BOTHEROPI&E","Other Operating Income & Expenditure","1CTRADSURDEF","Trading Account Surpluses & Deficits","REV","Revenue","R9256","Redbridge-i Development","01-EMPLOYEES","Employees","01A","Direct employee expenses","4","Agency Staff - Pay","3435304","201704",22/06/2016 00:00:00,2074.04,"31230","Employment & Recruitment Agencies","REDACTED DATA","ADECCO UK LIMITED","593232","http://opencorporates.com/companies/gb/593232","232347975"
"London Borough of Redbridge","http://opendatacommunities.org/doc/london-borough-council/redbridge","1BOTHEROPI&E","Other Operating Income & Expenditure","1CTRADSURDEF","Trading Account Surpluses & Deficits","REV","Revenue","R9263","Customer Access Strategy","01-EMPLOYEES","Employees","01A","Direct employee expenses","4","Agency Staff - Pay","3435304","201704",22/06/2016 00:00:00,2880.05,"31230","Employment & Recruitment Agencies","REDACTED DATA","ADECCO UK LIMITED","593232","http://opencorporates.com/companies/gb/593232","232347975"
"London Borough of Redbridge","http://opendatacommunities.org/doc/london-borough-council/redbridge","1BOTHEROPI&E","Other Operating Income & Expenditure","1CTRADSURDEF","Trading Account Surpluses & Deficits","REV","Revenue","R9263","Customer Access Strategy","01-EMPLOYEES","Employees","01A","Direct employee expenses","4","Agency Staff - Pay","3435304","201704",22/06/2016 00:00:00,1272.1,"31230","Employment & Recruitment Agencies","REDACTED DATA","ADECCO UK LIMITED","593232","http://opencorporates.com/companies/gb/593232","232347975"
"London Borough of Redbridge","http://opendatacommunities.org/doc/london-borough-council/redbridge","1BOTHEROPI&E","Other Operating Income & Expenditure","1CTRADSURDEF","Trading Account Surpluses & Deficits","REV","Revenue","R9263","Customer Access Strategy","01-EMPLOYEES","Employees","01A","Direct employee expenses","4","Agency Staff - Pay","3435304","201704",22/06/2016 00:00:00,1272.1,"31230","Employment & Recruitment Agencies","REDACTED DATA","ADECCO UK LIMITED","593232","http://opencorporates.com/companies/gb/593232","232347975"
"London Borough of Redbridge","http://opendatacommunities.org/doc/london-borough-council/redbridge","1BOTHEROPI&E","Other Operating Income & Expenditure","1CTRADSURDEF","Trading Account Surpluses & Deficits","REV","Revenue","R9263","Customer Access Strategy","01-EMPLOYEES","Employees","01A","Direct employee expenses","4","Agency Staff - Pay","3435304","201704",22/06/2016 00:00:00,1272.1,"31230","Employment & Recruitment Agencies","REDACTED DATA","ADECCO UK LIMITED","593232","http://opencorporates.com/companies/gb/593232","232347975"
"London Borough of Redbridge","http://opendatacommunities.org/doc/london-borough-council/redbridge","1BOTHEROPI&E","Other Operating Income & Expenditure","1CTRADSURDEF","Trading Account Surpluses & Deficits","REV","Revenue","R9263","Customer Access Strategy","01-EMPLOYEES","Employees","01A","Direct employee expenses","4","Agency Staff - Pay","3435304","201704",22/06/2016 00:00:00,2592.55,"31230","Employment & Recruitment Agencies","REDACTED DATA","ADECCO UK LIMITED","593232","http://opencorporates.com/companies/gb/593232","232347975"
"London Borough of Redbridge","http://opendatacommunities.org/doc/london-borough-council/redbridge","1BOTHEROPI&E","Other Operating Income & Expenditure","1CTRADSURDEF","Trading Account Surpluses & Deficits","REV","Revenue","R9263","Customer Access Strategy","01-EMPLOYEES","Employees","01A","Direct employee expenses","4","Agency Staff - Pay","3435304","201704",22/06/2016 00:00:00,2544.2,"31230","Employment & Recruitment Agencies","REDACTED DATA","ADECCO UK LIMITED","593232","http://opencorporates.com/companies/gb/593232","232347975"
"London Borough of Redbridge","http://opendatacommunities.org/doc/london-borough-council/redbridge","1BOTHEROPI&E","Other Operating Income & Expenditure","1CTRADSURDEF","Trading Account Surpluses & Deficits","REV","Revenue","R9263","Customer Access Strategy","01-EMPLOYEES","Employees","01A","Direct employee expenses","4","Agency Staff - Pay","3435304","201704",22/06/2016 00:00:00,2923.85,"31230","Employment & Recruitment Agencies","REDACTED DATA","ADECCO UK LIMITED","593232","http://opencorporates.com/companies/gb/593232","232347975"
"London Borough of Redbridge","http://opendatacommunities.org/doc/london-borough-council/redbridge","1BOTHEROPI&E","Other Operating Income & Expenditure","1CTRADSURDEF","Trading Account Surpluses & Deficits","REV","Revenue","R9263","Customer Access Strategy","01-EMPLOYEES","Employees","01A","Direct employee expenses","4","Agency Staff - Pay","3435304","201704",22/06/2016 00:00:00,1019.54,"31230","Employment & Recruitment Agencies","REDACTED DATA","ADECCO UK LIMITED","593232","http://opencorporates.com/companies/gb/593232","232347975"
"London Borough of Redbridge","http://opendatacommunities.org/doc/london-borough-council/redbridge","1BOTHEROPI&E","Other Operating Income & Expenditure","1CTRADSURDEF","Trading Account Surpluses & Deficits","REV","Revenue","R9264","Unified Communications","01-EMPLOYEES","Employees","01A","Direct employee expenses","4","Agency Staff - Pay","3435304","201704",22/06/2016 00:00:00,1529.31,"31230","Employment & Recruitment Agencies","REDACTED DATA","ADECCO UK LIMITED","593232","http://opencorporates.com/companies/gb/593232","232347975"
"London Borough of Redbridge","http://opendatacommunities.org/doc/london-borough-council/redbridge","1BOTHEROPI&E","Other Operating Income & Expenditure","1CTRADSURDEF","Trading Account Surpluses & Deficits","REV","Revenue","R9353","Advisory Team","01-EMPLOYEES","Employees","01A","Direct employee expenses","4","Agency Staff - Pay","3435304","201704",22/06/2016 00:00:00,1176.48,"31230","Employment & Recruitment Agencies","REDACTED DATA","ADECCO UK LIMITED","593232","http://opencorporates.com/companies/gb/593232","232347975"
"London Borough of Redbridge","http://opendatacommunities.org/doc/london-borough-council/redbridge","1BOTHEROPI&E","Other Operating Income & Expenditure","1CTRADSURDEF","Trading Account Surpluses & Deficits","REV","Revenue","R9353","Advisory Team","01-EMPLOYEES","Employees","01A","Direct employee expenses","4","Agency Staff - Pay","3435304","201704",22/06/2016 00:00:00,-916.22,"31230","Employment & Recruitment Agencies","REDACTED DATA","ADECCO UK LIMITED","593232","http://opencorporates.com/companies/gb/593232","232347975"
"London Borough of Redbridge","http://opendatacommunities.org/doc/london-borough-council/redbridge","1BOTHEROPI&E","Other Operating Income & Expenditure","1CTRADSURDEF","Trading Account Surpluses & Deficits","REV","Revenue","R9353","Advisory Team","01-EMPLOYEES","Employees","01A","Direct employee expenses","4","Agency Staff - Pay","3435304","201704",22/06/2016 00:00:00,1004.91,"31230","Employment & Recruitment Agencies","REDACTED DATA","ADECCO UK LIMITED","593232","http://opencorporates.com/companies/gb/593232","232347975"
"London Borough of Redbridge","http://opendatacommunities.org/doc/london-borough-council/redbridge","1BOTHEROPI&E","Other Operating Income & Expenditure","1CTRADSURDEF","Trading Account Surpluses & Deficits","REV","Revenue","R9353","Advisory Team","01-EMPLOYEES","Employees","01A","Direct employee expenses","4","Agency Staff - Pay","3435304","201704",22/06/2016 00:00:00,825.17,"31230","Employment & Recruitment Agencies","REDACTED DATA","ADECCO UK LIMITED","593232","http://opencorporates.com/companies/gb/593232","232347975"
"London Borough of Redbridge","http://opendatacommunities.org/doc/london-borough-council/redbridge","1BOTHEROPI&E","Other Operating Income & Expenditure","1CTRADSURDEF","Trading Account Surpluses & Deficits","REV","Revenue","R9353","Advisory Team","01-EMPLOYEES","Employees","01A","Direct employee expenses","4","Agency Staff - Pay","3435304","201704",22/06/2016 00:00:00,1308.32,"31230","Employment & Recruitment Agencies","REDACTED DATA","ADECCO UK LIMITED","593232","http://opencorporates.com/companies/gb/593232","232347975"
"London Borough of Redbridge","http://opendatacommunities.org/doc/london-borough-council/redbridge","1BOTHEROPI&E","Other Operating Income & Expenditure","1CTRADSURDEF","Trading Account Surpluses & Deficits","REV","Revenue","R9353","Advisory Team","01-EMPLOYEES","Employees","01A","Direct employee expenses","4","Agency Staff - Pay","3435304","201704",22/06/2016 00:00:00,727.13,"31230","Employment & Recruitment Agencies","REDACTED DATA","ADECCO UK LIMITED","593232","http://opencorporates.com/companies/gb/593232","232347975"
"London Borough of Redbridge","http://opendatacommunities.org/doc/london-borough-council/redbridge","1BOTHEROPI&E","Other Operating Income & Expenditure","1CTRADSURDEF","Trading Account Surpluses & Deficits","REV","Revenue","R9353","Advisory Team","01-EMPLOYEES","Employees","01A","Direct employee expenses","4","Agency Staff - Pay","3435304","201704",22/06/2016 00:00:00,-668.39,"31230","Employment & Recruitment Agencies","REDACTED DATA","ADECCO UK LIMITED","593232","http://opencorporates.com/companies/gb/593232","232347975"
"London Borough of Redbridge","http://opendatacommunities.org/doc/london-borough-council/redbridge","1BOTHEROPI&E","Other Operating Income & Expenditure","1CTRADSURDEF","Trading Account Surpluses & Deficits","REV","Revenue","R9353","Advisory Team","01-EMPLOYEES","Employees","01A","Direct employee expenses","4","Agency Staff - Pay","3435304","201704",22/06/2016 00:00:00,1176.48,"31230","Employment & Recruitment Agencies","REDACTED DATA","ADECCO UK LIMITED","593232","http://opencorporates.com/companies/gb/593232","232347975"
"London Borough of Redbridge","http://opendatacommunities.org/doc/london-borough-council/redbridge","1BOTHEROPI&E","Other Operating Income & Expenditure","1CTRADSURDEF","Trading Account Surpluses & Deficits","REV","Revenue","R9353","Advisory Team","01-EMPLOYEES","Employees","01A","Direct employee expenses","4","Agency Staff - Pay","3435304","201704",22/06/2016 00:00:00,-1081.44,"31230","Employment & Recruitment Agencies","REDACTED DATA","ADECCO UK LIMITED","593232","http://opencorporates.com/companies/gb/593232","232347975"
"London Borough of Redbridge","http://opendatacommunities.org/doc/london-borough-council/redbridge","1BOTHEROPI&E","Other Operating Income & Expenditure","1CTRADSURDEF","Trading Account Surpluses & Deficits","REV","Revenue","R9353","Advisory Team","01-EMPLOYEES","Employees","01A","Direct employee expenses","4","Agency Staff - Pay","3435304","201704",22/06/2016 00:00:00,-1177.92,"31230","Employment & Recruitment Agencies","REDACTED DATA","ADECCO UK LIMITED","593232","http://opencorporates.com/companies/gb/593232","232347975"
"London Borough of Redbridge","http://opendatacommunities.org/doc/london-borough-council/redbridge","1BOTHEROPI&E","Other Operating Income & Expenditure","1CTRADSURDEF","Trading Account Surpluses & Deficits","REV","Revenue","R9353","Advisory Team","01-EMPLOYEES","Employees","01A","Direct employee expenses","4","Agency Staff - Pay","3435304","201704",22/06/2016 00:00:00,-758.51,"31230","Employment & Recruitment Agencies","REDACTED DATA","ADECCO UK LIMITED","593232","http://opencorporates.com/companies/gb/593232","232347975"
"London Borough of Redbridge","http://opendatacommunities.org/doc/london-borough-council/redbridge","1BOTHEROPI&E","Other Operating Income & Expenditure","1CTRADSURDEF","Trading Account Surpluses & Deficits","REV","Revenue","R9353","Advisory Team","01-EMPLOYEES","Employees","01A","Direct employee expenses","4","Agency Staff - Pay","3435304","201704",22/06/2016 00:00:00,1176.48,"31230","Employment & Recruitment Agencies","REDACTED DATA","ADECCO UK LIMITED","593232","http://opencorporates.com/companies/gb/593232","232347975"
"London Borough of Redbridge","http://opendatacommunities.org/doc/london-borough-council/redbridge","1BOTHEROPI&E","Other Operating Income & Expenditure","1CTRADSURDEF","Trading Account Surpluses & Deficits","REV","Revenue","R9353","Advisory Team","01-EMPLOYEES","Employees","01A","Direct employee expenses","4","Agency Staff - Pay","3435304","201704",22/06/2016 00:00:00,1176.48,"31230","Employment & Recruitment Agencies","REDACTED DATA","ADECCO UK LIMITED","593232","http://opencorporates.com/companies/gb/593232","232347975"
"London Borough of Redbridge","http://opendatacommunities.org/doc/london-borough-council/redbridge","1BOTHEROPI&E","Other Operating Income & Expenditure","1CTRADSURDEF","Trading Account Surpluses & Deficits","REV","Revenue","R9353","Advisory Team","01-EMPLOYEES","Employees","01A","Direct employee expenses","4","Agency Staff - Pay","3435304","201704",22/06/2016 00:00:00,617.12,"31230","Employment & Recruitment Agencies","REDACTED DATA","ADECCO UK LIMITED","593232","http://opencorporates.com/companies/gb/593232","232347975"
"London Borough of Redbridge","http://opendatacommunities.org/doc/london-borough-council/redbridge","1BOTHEROPI&E","Other Operating Income & Expenditure","1CTRADSURDEF","Trading Account Surpluses & Deficits","REV","Revenue","R9353","Advisory Team","01-EMPLOYEES","Employees","01A","Direct employee expenses","4","Agency Staff - Pay","3435304","201704",22/06/2016 00:00:00,996.74,"31230","Employment & Recruitment Agencies","REDACTED DATA","ADECCO UK LIMITED","593232","http://opencorporates.com/companies/gb/593232","232347975"
"London Borough of Redbridge","http://opendatacommunities.org/doc/london-borough-council/redbridge","1BOTHEROPI&E","Other Operating Income & Expenditure","1CTRADSURDEF","Trading Account Surpluses & Deficits","REV","Revenue","R9353","Advisory Team","01-EMPLOYEES","Employees","01A","Direct employee expenses","4","Agency Staff - Pay","3435304","201704",22/06/2016 00:00:00,792.49,"31230","Employment & Recruitment Agencies","REDACTED DATA","ADECCO UK LIMITED","593232","http://opencorporates.com/companies/gb/593232","232347975"
"London Borough of Redbridge","http://opendatacommunities.org/doc/london-borough-council/redbridge","1BOTHEROPI&E","Other Operating Income & Expenditure","1CTRADSURDEF","Trading Account Surpluses & Deficits","REV","Revenue","R9353","Advisory Team","01-EMPLOYEES","Employees","01A","Direct employee expenses","4","Agency Staff - Pay","3435304","201704",22/06/2016 00:00:00,-728.47,"31230","Employment & Recruitment Agencies","REDACTED DATA","ADECCO UK LIMITED","593232","http://opencorporates.com/companies/gb/593232","232347975"
"London Borough of Redbridge","http://opendatacommunities.org/doc/london-borough-council/redbridge","1BOTHEROPI&E","Other Operating Income & Expenditure","1CTRADSURDEF","Trading Account Surpluses & Deficits","REV","Revenue","R9353","Advisory Team","01-EMPLOYEES","Employees","01A","Direct employee expenses","4","Agency Staff - Pay","3435304","201704",22/06/2016 00:00:00,960.96,"31230","Employment & Recruitment Agencies","REDACTED DATA","ADECCO UK LIMITED","593232","http://opencorporates.com/companies/gb/593232","232347975"
"London Borough of Redbridge","http://opendatacommunities.org/doc/london-borough-council/redbridge","1BOTHEROPI&E","Other Operating Income & Expenditure","1CTRADSURDEF","Trading Account Surpluses & Deficits","REV","Revenue","R9353","Advisory Team","01-EMPLOYEES","Employees","01A","Direct employee expenses","4","Agency Staff - Pay","3435304","201704",22/06/2016 00:00:00,1092.55,"31230","Employment & Recruitment Agencies","REDACTED DATA","ADECCO UK LIMITED","593232","http://opencorporates.com/companies/gb/593232","232347975"
"London Borough of Redbridge","http://opendatacommunities.org/doc/london-borough-council/redbridge","1BOTHEROPI&E","Other Operating Income & Expenditure","1CTRADSURDEF","Trading Account Surpluses & Deficits","REV","Revenue","R9353","Advisory Team","01-EMPLOYEES","Employees","01A","Direct employee expenses","4","Agency Staff - Pay","3435304","201704",22/06/2016 00:00:00,1096.16,"31230","Employment & Recruitment Agencies","REDACTED DATA","ADECCO UK LIMITED","593232","http://opencorporates.com/companies/gb/593232","232347975"
"London Borough of Redbridge","http://opendatacommunities.org/doc/london-borough-council/redbridge","1BOTHEROPI&E","Other Operating Income & Expenditure","1CTRADSURDEF","Trading Account Surpluses & Deficits","REV","Revenue","R9353","Advisory Team","01-EMPLOYEES","Employees","01A","Direct employee expenses","4","Agency Staff - Pay","3435304","201704",22/06/2016 00:00:00,-1081.44,"31230","Employment & Recruitment Agencies","REDACTED DATA","ADECCO UK LIMITED","593232","http://opencorporates.com/companies/gb/593232","232347975"
"London Borough of Redbridge","http://opendatacommunities.org/doc/london-borough-council/redbridge","1BOTHEROPI&E","Other Operating Income & Expenditure","1CTRADSURDEF","Trading Account Surpluses & Deficits","REV","Revenue","R9353","Advisory Team","01-EMPLOYEES","Employees","01A","Direct employee expenses","4","Agency Staff - Pay","3435304","201704",22/06/2016 00:00:00,-1081.44,"31230","Employment & Recruitment Agencies","REDACTED DATA","ADECCO UK LIMITED","593232","http://opencorporates.com/companies/gb/593232","232347975"
"London Borough of Redbridge","http://opendatacommunities.org/doc/london-borough-council/redbridge","1BOTHEROPI&E","Other Operating Income & Expenditure","1CTRADSURDEF","Trading Account Surpluses & Deficits","REV","Revenue","R9353","Advisory Team","01-EMPLOYEES","Employees","01A","Direct employee expenses","4","Agency Staff - Pay","3435304","201704",22/06/2016 00:00:00,-976.3,"31230","Employment & Recruitment Agencies","REDACTED DATA","ADECCO UK LIMITED","593232","http://opencorporates.com/companies/gb/593232","232347975"
"London Borough of Redbridge","http://opendatacommunities.org/doc/london-borough-council/redbridge","1BOTHEROPI&E","Other Operating Income & Expenditure","1CTRADSURDEF","Trading Account Surpluses & Deficits","REV","Revenue","R9353","Advisory Team","01-EMPLOYEES","Employees","01A","Direct employee expenses","4","Agency Staff - Pay","3435304","201704",22/06/2016 00:00:00,1176.48,"31230","Employment & Recruitment Agencies","REDACTED DATA","ADECCO UK LIMITED","593232","http://opencorporates.com/companies/gb/593232","232347975"
"London Borough of Redbridge","http://opendatacommunities.org/doc/london-borough-council/redbridge","1BOTHEROPI&E","Other Operating Income & Expenditure","1CTRADSURDEF","Trading Account Surpluses & Deficits","REV","Revenue","R9353","Advisory Team","01-EMPLOYEES","Employees","01A","Direct employee expenses","4","Agency Staff - Pay","3435304","201704",22/06/2016 00:00:00,-1081.44,"31230","Employment & Recruitment Agencies","REDACTED DATA","ADECCO UK LIMITED","593232","http://opencorporates.com/companies/gb/593232","232347975"
"London Borough of Redbridge","http://opendatacommunities.org/doc/london-borough-council/redbridge","1BOTHEROPI&E","Other Operating Income & Expenditure","1CTRADSURDEF","Trading Account Surpluses & Deficits","REV","Revenue","R9353","Advisory Team","01-EMPLOYEES","Employees","01A","Direct employee expenses","4","Agency Staff - Pay","3435304","201704",22/06/2016 00:00:00,-1081.44,"31230","Employment & Recruitment Agencies","REDACTED DATA","ADECCO UK LIMITED","593232","http://opencorporates.com/companies/gb/593232","232347975"
"London Borough of Redbridge","http://opendatacommunities.org/doc/london-borough-council/redbridge","1BOTHEROPI&E","Other Operating Income & Expenditure","1CTRADSURDEF","Trading Account Surpluses & Deficits","REV","Revenue","R9353","Advisory Team","01-EMPLOYEES","Employees","01A","Direct employee expenses","4","Agency Staff - Pay","3435304","201704",22/06/2016 00:00:00,1062.1,"31230","Employment & Recruitment Agencies","REDACTED DATA","ADECCO UK LIMITED","593232","http://opencorporates.com/companies/gb/593232","232347975"
"London Borough of Redbridge","http://opendatacommunities.org/doc/london-borough-council/redbridge","1BOTHEROPI&E","Other Operating Income & Expenditure","1CTRADSURDEF","Trading Account Surpluses & Deficits","REV","Revenue","R9353","Advisory Team","01-EMPLOYEES","Employees","01A","Direct employee expenses","4","Agency Staff - Pay","3435304","201704",22/06/2016 00:00:00,-1081.44,"31230","Employment & Recruitment Agencies","REDACTED DATA","ADECCO UK LIMITED","593232","http://opencorporates.com/companies/gb/593232","232347975"
"London Borough of Redbridge","http://opendatacommunities.org/doc/london-borough-council/redbridge","1BOTHEROPI&E","Other Operating Income & Expenditure","1CTRADSURDEF","Trading Account Surpluses & Deficits","REV","Revenue","R9353","Advisory Team","01-EMPLOYEES","Employees","01A","Direct employee expenses","4","Agency Staff - Pay","3435304","201704",22/06/2016 00:00:00,1176.48,"31230","Employment & Recruitment Agencies","REDACTED DATA","ADECCO UK LIMITED","593232","http://opencorporates.com/companies/gb/593232","232347975"
"London Borough of Redbridge","http://opendatacommunities.org/doc/london-borough-council/redbridge","1BOTHEROPI&E","Other Operating Income & Expenditure","1CTRADSURDEF","Trading Account Surpluses & Deficits","REV","Revenue","R9353","Advisory Team","01-EMPLOYEES","Employees","01A","Direct employee expenses","4","Agency Staff - Pay","3435304","201704",22/06/2016 00:00:00,1308.32,"31230","Employment & Recruitment Agencies","REDACTED DATA","ADECCO UK LIMITED","593232","http://opencorporates.com/companies/gb/593232","232347975"
"London Borough of Redbridge","http://opendatacommunities.org/doc/london-borough-council/redbridge","1BOTHEROPI&E","Other Operating Income & Expenditure","1CTRADSURDEF","Trading Account Surpluses & Deficits","REV","Revenue","R9353","Advisory Team","01-EMPLOYEES","Employees","01A","Direct employee expenses","4","Agency Staff - Pay","3435304","201704",22/06/2016 00:00:00,1081.08,"31230","Employment & Recruitment Agencies","REDACTED DATA","ADECCO UK LIMITED","593232","http://opencorporates.com/companies/gb/593232","232347975"
"London Borough of Redbridge","http://opendatacommunities.org/doc/london-borough-council/redbridge","1BOTHEROPI&E","Other Operating Income & Expenditure","1CTRADSURDEF","Trading Account Surpluses & Deficits","REV","Revenue","R9353","Advisory Team","01-EMPLOYEES","Employees","01A","Direct employee expenses","4","Agency Staff - Pay","3435304","201704",22/06/2016 00:00:00,-923.73,"31230","Employment & Recruitment Agencies","REDACTED DATA","ADECCO UK LIMITED","593232","http://opencorporates.com/companies/gb/593232","232347975"
"London Borough of Redbridge","http://opendatacommunities.org/doc/london-borough-council/redbridge","1BOTHEROPI&E","Other Operating Income & Expenditure","1CTRADSURDEF","Trading Account Surpluses & Deficits","REV","Revenue","R9353","Advisory Team","01-EMPLOYEES","Employees","01A","Direct employee expenses","4","Agency Staff - Pay","3435304","201704",22/06/2016 00:00:00,1176.48,"31230","Employment & Recruitment Agencies","REDACTED DATA","ADECCO UK LIMITED","593232","http://opencorporates.com/companies/gb/593232","232347975"
"London Borough of Redbridge","http://opendatacommunities.org/doc/london-borough-council/redbridge","1BOTHEROPI&E","Other Operating Income & Expenditure","1CTRADSURDEF","Trading Account Surpluses & Deficits","REV","Revenue","R9353","Advisory Team","01-EMPLOYEES","Employees","01A","Direct employee expenses","4","Agency Staff - Pay","3435304","201704",22/06/2016 00:00:00,813.28,"31230","Employment & Recruitment Agencies","REDACTED DATA","ADECCO UK LIMITED","593232","http://opencorporates.com/companies/gb/593232","232347975"
"London Borough of Redbridge","http://opendatacommunities.org/doc/london-borough-council/redbridge","1BOTHEROPI&E","Other Operating Income & Expenditure","1CTRADSURDEF","Trading Account Surpluses & Deficits","REV","Revenue","R9353","Advisory Team","01-EMPLOYEES","Employees","01A","Direct employee expenses","4","Agency Staff - Pay","3435304","201704",22/06/2016 00:00:00,-752.56,"31230","Employment & Recruitment Agencies","REDACTED DATA","ADECCO UK LIMITED","593232","http://opencorporates.com/companies/gb/593232","232347975"
"London Borough of Redbridge","http://opendatacommunities.org/doc/london-borough-council/redbridge","1BOTHEROPI&E","Other Operating Income & Expenditure","1CTRADSURDEF","Trading Account Surpluses & Deficits","REV","Revenue","R9353","Advisory Team","01-EMPLOYEES","Employees","01A","Direct employee expenses","4","Agency Staff - Pay","3435304","201704",22/06/2016 00:00:00,1021.25,"31230","Employment & Recruitment Agencies","REDACTED DATA","ADECCO UK LIMITED","593232","http://opencorporates.com/companies/gb/593232","232347975"
"London Borough of Redbridge","http://opendatacommunities.org/doc/london-borough-council/redbridge","1BOTHEROPI&E","Other Operating Income & Expenditure","1CTRADSURDEF","Trading Account Surpluses & Deficits","REV","Revenue","R9353","Advisory Team","01-EMPLOYEES","Employees","01A","Direct employee expenses","4","Agency Staff - Pay","3435304","201704",22/06/2016 00:00:00,678.11,"31230","Employment & Recruitment Agencies","REDACTED DATA","ADECCO UK LIMITED","593232","http://opencorporates.com/companies/gb/593232","232347975"
"London Borough of Redbridge","http://opendatacommunities.org/doc/london-borough-council/redbridge","1BOTHEROPI&E","Other Operating Income & Expenditure","1CTRADSURDEF","Trading Account Surpluses & Deficits","REV","Revenue","R9353","Advisory Team","01-EMPLOYEES","Employees","01A","Direct employee expenses","4","Agency Staff - Pay","3435304","201704",22/06/2016 00:00:00,-1081.44,"31230","Employment & Recruitment Agencies","REDACTED DATA","ADECCO UK LIMITED","593232","http://opencorporates.com/companies/gb/593232","232347975"
"London Borough of Redbridge","http://opendatacommunities.org/doc/london-borough-council/redbridge","1BOTHEROPI&E","Other Operating Income & Expenditure","1CTRADSURDEF","Trading Account Surpluses & Deficits","REV","Revenue","R9353","Advisory Team","01-EMPLOYEES","Employees","01A","Direct employee expenses","4","Agency Staff - Pay","3435304","201704",22/06/2016 00:00:00,-1210.64,"31230","Employment & Recruitment Agencies","REDACTED DATA","ADECCO UK LIMITED","593232","http://opencorporates.com/companies/gb/593232","232347975"
"London Borough of Redbridge","http://opendatacommunities.org/doc/london-borough-council/redbridge","1BOTHEROPI&E","Other Operating Income & Expenditure","1CTRADSURDEF","Trading Account Surpluses & Deficits","REV","Revenue","R9353","Advisory Team","01-EMPLOYEES","Employees","01A","Direct employee expenses","4","Agency Staff - Pay","3435304","201704",22/06/2016 00:00:00,1308.32,"31230","Employment & Recruitment Agencies","REDACTED DATA","ADECCO UK LIMITED","593232","http://opencorporates.com/companies/gb/593232","232347975"
"London Borough of Redbridge","http://opendatacommunities.org/doc/london-borough-council/redbridge","1BOTHEROPI&E","Other Operating Income & Expenditure","1CTRADSURDEF","Trading Account Surpluses & Deficits","REV","Revenue","R9353","Advisory Team","01-EMPLOYEES","Employees","01A","Direct employee expenses","4","Agency Staff - Pay","3435304","201704",22/06/2016 00:00:00,-1014.32,"31230","Employment & Recruitment Agencies","REDACTED DATA","ADECCO UK LIMITED","593232","http://opencorporates.com/companies/gb/593232","232347975"
"London Borough of Redbridge","http://opendatacommunities.org/doc/london-borough-council/redbridge","1BOTHEROPI&E","Other Operating Income & Expenditure","1CTRADSURDEF","Trading Account Surpluses & Deficits","REV","Revenue","R9353","Advisory Team","01-EMPLOYEES","Employees","01A","Direct employee expenses","4","Agency Staff - Pay","3435304","201704",22/06/2016 00:00:00,1272.96,"31230","Employment & Recruitment Agencies","REDACTED DATA","ADECCO UK LIMITED","593232","http://opencorporates.com/companies/gb/593232","232347975"
"London Borough of Redbridge","http://opendatacommunities.org/doc/london-borough-council/redbridge","1BOTHEROPI&E","Other Operating Income & Expenditure","1CTRADSURDEF","Trading Account Surpluses & Deficits","REV","Revenue","R9353","Advisory Team","01-EMPLOYEES","Employees","01A","Direct employee expenses","4","Agency Staff - Pay","3435304","201704",22/06/2016 00:00:00,-1210.64,"31230","Employment & Recruitment Agencies","REDACTED DATA","ADECCO UK LIMITED","593232","http://opencorporates.com/companies/gb/593232","232347975"
"London Borough of Redbridge","http://opendatacommunities.org/doc/london-borough-council/redbridge","1BOTHEROPI&E","Other Operating Income & Expenditure","1CTRADSURDEF","Trading Account Surpluses & Deficits","REV","Revenue","R9353","Advisory Team","01-EMPLOYEES","Employees","01A","Direct employee expenses","4","Agency Staff - Pay","3435304","201704",22/06/2016 00:00:00,813.28,"31230","Employment & Recruitment Agencies","REDACTED DATA","ADECCO UK LIMITED","593232","http://opencorporates.com/companies/gb/593232","232347975"
"London Borough of Redbridge","http://opendatacommunities.org/doc/london-borough-council/redbridge","1BOTHEROPI&E","Other Operating Income & Expenditure","1CTRADSURDEF","Trading Account Surpluses & Deficits","REV","Revenue","R9353","Advisory Team","01-EMPLOYEES","Employees","01A","Direct employee expenses","4","Agency Staff - Pay","3435304","201704",22/06/2016 00:00:00,-1210.64,"31230","Employment & Recruitment Agencies","REDACTED DATA","ADECCO UK LIMITED","593232","http://opencorporates.com/companies/gb/593232","232347975"
"London Borough of Redbridge","http://opendatacommunities.org/doc/london-borough-council/redbridge","1BOTHEROPI&E","Other Operating Income & Expenditure","1CTRADSURDEF","Trading Account Surpluses & Deficits","REV","Revenue","R9353","Advisory Team","01-EMPLOYEES","Employees","01A","Direct employee expenses","4","Agency Staff - Pay","3435304","201704",22/06/2016 00:00:00,-1210.64,"31230","Employment & Recruitment Agencies","REDACTED DATA","ADECCO UK LIMITED","593232","http://opencorporates.com/companies/gb/593232","232347975"
"London Borough of Redbridge","http://opendatacommunities.org/doc/london-borough-council/redbridge","1BOTHEROPI&E","Other Operating Income & Expenditure","1CTRADSURDEF","Trading Account Surpluses & Deficits","REV","Revenue","R9353","Advisory Team","01-EMPLOYEES","Employees","01A","Direct employee expenses","4","Agency Staff - Pay","3435304","201704",22/06/2016 00:00:00,1308.32,"31230","Employment & Recruitment Agencies","REDACTED DATA","ADECCO UK LIMITED","593232","http://opencorporates.com/companies/gb/593232","232347975"
"London Borough of Redbridge","http://opendatacommunities.org/doc/london-borough-council/redbridge","1BOTHEROPI&E","Other Operating Income & Expenditure","1CTRADSURDEF","Trading Account Surpluses & Deficits","REV","Revenue","R9353","Advisory Team","01-EMPLOYEES","Employees","01A","Direct employee expenses","4","Agency Staff - Pay","3435304","201704",22/06/2016 00:00:00,-752.56,"31230","Employment & Recruitment Agencies","REDACTED DATA","ADECCO UK LIMITED","593232","http://opencorporates.com/companies/gb/593232","232347975"
"London Borough of Redbridge","http://opendatacommunities.org/doc/london-borough-council/redbridge","1BOTHEROPI&E","Other Operating Income & Expenditure","1CTRADSURDEF","Trading Account Surpluses & Deficits","REV","Revenue","R9460","Human Resources misc","01-EMPLOYEES","Employees","01A","Direct employee expenses","4","Agency Staff - Pay","3435304","201704",22/06/2016 00:00:00,992.16,"31230","Employment & Recruitment Agencies","REDACTED DATA","ADECCO UK LIMITED","593232","http://opencorporates.com/companies/gb/593232","232347975"
"London Borough of Redbridge","http://opendatacommunities.org/doc/london-borough-council/redbridge","1BOTHEROPI&E","Other Operating Income & Expenditure","1CTRADSURDEF","Trading Account Surpluses & Deficits","REV","Revenue","R9460","Human Resources misc","01-EMPLOYEES","Employees","01A","Direct employee expenses","4","Agency Staff - Pay","3435304","201704",22/06/2016 00:00:00,347.76,"31230","Employment & Recruitment Agencies","REDACTED DATA","ADECCO UK LIMITED","593232","http://opencorporates.com/companies/gb/593232","232347975"
"London Borough of Redbridge","http://opendatacommunities.org/doc/london-borough-council/redbridge","1BOTHEROPI&E","Other Operating Income & Expenditure","1CTRADSURDEF","Trading Account Surpluses & Deficits","REV","Revenue","R9460","Human Resources misc","01-EMPLOYEES","Employees","01A","Direct employee expenses","4","Agency Staff - Pay","3435304","201704",22/06/2016 00:00:00,981.36,"31230","Employment & Recruitment Agencies","REDACTED DATA","ADECCO UK LIMITED","593232","http://opencorporates.com/companies/gb/593232","232347975"
"London Borough of Redbridge","http://opendatacommunities.org/doc/london-borough-council/redbridge","1BOTHEROPI&E","Other Operating Income & Expenditure","1CTRADSURDEF","Trading Account Surpluses & Deficits","REV","Revenue","R9460","Human Resources misc","01-EMPLOYEES","Employees","01A","Direct employee expenses","4","Agency Staff - Pay","3435304","201704",22/06/2016 00:00:00,634.68,"31230","Employment & Recruitment Agencies","REDACTED DATA","ADECCO UK LIMITED","593232","http://opencorporates.com/companies/gb/593232","232347975"
"London Borough of Redbridge","http://opendatacommunities.org/doc/london-borough-council/redbridge","1BOTHEROPI&E","Other Operating Income & Expenditure","1CTRADSURDEF","Trading Account Surpluses & Deficits","REV","Revenue","R9460","Human Resources misc","01-EMPLOYEES","Employees","01A","Direct employee expenses","4","Agency Staff - Pay","3435304","201704",22/06/2016 00:00:00,1096.05,"31230","Employment & Recruitment Agencies","REDACTED DATA","ADECCO UK LIMITED","593232","http://opencorporates.com/companies/gb/593232","232347975"
"London Borough of Redbridge","http://opendatacommunities.org/doc/london-borough-council/redbridge","1BOTHEROPI&E","Other Operating Income & Expenditure","1CTRADSURDEF","Trading Account Surpluses & Deficits","REV","Revenue","R9460","Human Resources misc","01-EMPLOYEES","Employees","01A","Direct employee expenses","4","Agency Staff - Pay","3435304","201704",22/06/2016 00:00:00,617.18,"31230","Employment & Recruitment Agencies","REDACTED DATA","ADECCO UK LIMITED","593232","http://opencorporates.com/companies/gb/593232","232347975"
"London Borough of Redbridge","http://opendatacommunities.org/doc/london-borough-council/redbridge","1BOTHEROPI&E","Other Operating Income & Expenditure","1CTRADSURDEF","Trading Account Surpluses & Deficits","REV","Revenue","R9460","Human Resources misc","01-EMPLOYEES","Employees","01A","Direct employee expenses","4","Agency Staff - Pay","3435304","201704",22/06/2016 00:00:00,592.52,"31230","Employment & Recruitment Agencies","REDACTED DATA","ADECCO UK LIMITED","593232","http://opencorporates.com/companies/gb/593232","232347975"
"London Borough of Redbridge","http://opendatacommunities.org/doc/london-borough-council/redbridge","1BOTHEROPI&E","Other Operating Income & Expenditure","1CTRADSURDEF","Trading Account Surpluses & Deficits","REV","Revenue","R9460","Human Resources misc","01-EMPLOYEES","Employees","01A","Direct employee expenses","4","Agency Staff - Pay","3435304","201704",22/06/2016 00:00:00,743.7,"31230","Employment & Recruitment Agencies","REDACTED DATA","ADECCO UK LIMITED","593232","http://opencorporates.com/companies/gb/593232","232347975"
"London Borough of Redbridge","http://opendatacommunities.org/doc/london-borough-council/redbridge","1BOTHEROPI&E","Other Operating Income & Expenditure","1CTRADSURDEF","Trading Account Surpluses & Deficits","REV","Revenue","R9460","Human Resources misc","01-EMPLOYEES","Employees","01A","Direct employee expenses","4","Agency Staff - Pay","3435304","201704",22/06/2016 00:00:00,581.79,"31230","Employment & Recruitment Agencies","REDACTED DATA","ADECCO UK LIMITED","593232","http://opencorporates.com/companies/gb/593232","232347975"
"London Borough of Redbridge","http://opendatacommunities.org/doc/london-borough-council/redbridge","1BOTHEROPI&E","Other Operating Income & Expenditure","1CTRADSURDEF","Trading Account Surpluses & Deficits","REV","Revenue","R9565","Property Management","01-EMPLOYEES","Employees","01A","Direct employee expenses","4","Agency Staff - Pay","3435304","201704",22/06/2016 00:00:00,6.5,"31230","Employment & Recruitment Agencies","REDACTED DATA","ADECCO UK LIMITED","593232","http://opencorporates.com/companies/gb/593232","232347975"
"London Borough of Redbridge","http://opendatacommunities.org/doc/london-borough-council/redbridge","1BOTHEROPI&E","Other Operating Income & Expenditure","1CTRADSURDEF","Trading Account Surpluses & Deficits","REV","Revenue","R9565","Property Management","01-EMPLOYEES","Employees","01A","Direct employee expenses","4","Agency Staff - Pay","3435304","201704",22/06/2016 00:00:00,6.5,"31230","Employment & Recruitment Agencies","REDACTED DATA","ADECCO UK LIMITED","593232","http://opencorporates.com/companies/gb/593232","232347975"
"London Borough of Redbridge","http://opendatacommunities.org/doc/london-borough-council/redbridge","1BOTHEROPI&E","Other Operating Income & Expenditure","1CTRADSURDEF","Trading Account Surpluses & Deficits","REV","Revenue","R9565","Property Management","01-EMPLOYEES","Employees","01A","Direct employee expenses","4","Agency Staff - Pay","3435304","201704",22/06/2016 00:00:00,901.21,"31230","Employment & Recruitment Agencies","REDACTED DATA","ADECCO UK LIMITED","593232","http://opencorporates.com/companies/gb/593232","232347975"
"London Borough of Redbridge","http://opendatacommunities.org/doc/london-borough-council/redbridge","3BNONSCHFUND","Non-School Funding","6CCHILLOOKED","Children Looked After","REV","Revenue","R2238","Looked After Children Placements LA","05-THIRD","Third Party Payments","05H","Private contractors","6964","Mother and Baby Units (Children Services)","60314563","201704",14/05/2016 00:00:00,1920.6,"71855","Social Services","REDACTED DATA","COYSTON CONSULTANCY LTD","8759975","http://opencorporates.com/companies/gb/8759975",""
"London Borough of Redbridge","http://opendatacommunities.org/doc/london-borough-council/redbridge","6BADULTSOCIA","Adult Social Care","6COLDINCMENT","Older People (65 or over) incl. Older Mentally Ill","REV","Revenue","R4378","OP Residential","05-THIRD","Third Party Payments","05F","Voluntary associations","6802","Residential Homes","90762276","201704",14/07/2016 00:00:00,2631.2,"64710","Residential Care Homes","REDACTED DATA","TEALK SERVICES LTD (THE BEECHES- ILFORD)","4203171","http://opencorporates.com/companies/gb/4203171",""
"London Borough of Redbridge","http://opendatacommunities.org/doc/london-borough-council/redbridge","6BADULTSOCIA","Adult Social Care","6COLDINCMENT","Older People (65 or over) incl. Older Mentally Ill","REV","Revenue","R4378","OP Residential","09-INCOME","Income","09C","Customer and Client Receipts","8555","Accommodation Charges","90762276","201704",14/07/2016 00:00:00,-710.88,"64710","Residential Care Homes","REDACTED DATA","TEALK SERVICES LTD (THE BEECHES- ILFORD)","4203171","http://opencorporates.com/companies/gb/4203171",""
"London Borough of Redbridge","http://opendatacommunities.org/doc/london-borough-council/redbridge","9BNONBVO","Outside the BVACOP Objective Structure","9CNONBVO","Outside the BVACOP Objective Structure","CAP","Capital","C1001","Customer Access Strategy Capital","99-NONBV","Capital, Balance Sheet and Control","50A","Capital - Employee Costs","9006","Employee Costs - Other","60313758","201704",30/06/2016 00:00:00,1600,"20703","Computer Systems and Software","REDACTED DATA","BOOKINGBUG LTD","6770610","http://opencorporates.com/companies/gb/6770610","GB946183991"
"London Borough of Redbridge","http://opendatacommunities.org/doc/london-borough-council/redbridge","5BGFHOUSING","General Fund Housing","5CHOUSSTRAT","Housing Strategy","REV","Revenue","R5617","Housing Strategy & Development","02-PREMISES","Premises","02F","Fixtures and fittings","4420","Security","60313761","201704",24/06/2016 00:00:00,1599,"61961","Property Maintenance & Repairs","REDACTED DATA","SITEXORBIS LTD","2476859","http://opencorporates.com/companies/gb/2476859","918461510"
"London Borough of Redbridge","http://opendatacommunities.org/doc/london-borough-council/redbridge","6BADULTSOCIA","Adult Social Care","6COLDINCMENT","Older People (65 or over) incl. Older Mentally Ill","REV","Revenue","R4385","OP Nursing","05-THIRD","Third Party Payments","05H","Private contractors","6909","Nursing Homes","90762240","201704",14/07/2016 00:00:00,2440.48,"53350","Nursing Homes","REDACTED DATA","BUPA CARE HOMES(SEABROOKE MANOR)","",,"239731641"
"London Borough of Redbridge","http://opendatacommunities.org/doc/london-borough-council/redbridge","6BADULTSOCIA","Adult Social Care","6COLDINCMENT","Older People (65 or over) incl. Older Mentally Ill","REV","Revenue","R4385","OP Nursing","05-THIRD","Third Party Payments","05H","Private contractors","6909","Nursing Homes","90762240","201704",14/07/2016 00:00:00,448,"53350","Nursing Homes","REDACTED DATA","BUPA CARE HOMES(SEABROOKE MANOR)","",,"239731641"
"London Borough of Redbridge","http://opendatacommunities.org/doc/london-borough-council/redbridge","6BADULTSOCIA","Adult Social Care","6COLDINCMENT","Older People (65 or over) incl. Older Mentally Ill","REV","Revenue","R4385","OP Nursing","09-INCOME","Income","09C","Customer and Client Receipts","8557","Nursing Home Charges","90762240","201704",14/07/2016 00:00:00,-522.8,"53350","Nursing Homes","REDACTED DATA","BUPA CARE HOMES(SEABROOKE MANOR)","",,"239731641"
"London Borough of Redbridge","http://opendatacommunities.org/doc/london-borough-council/redbridge","6BADULTSOCIA","Adult Social Care","6COLDINCMENT","Older People (65 or over) incl. Older Mentally Ill","REV","Revenue","R4385","OP Nursing","09-INCOME","Income","09C","Customer and Client Receipts","8557","Nursing Home Charges","90762240","201704",14/07/2016 00:00:00,-448,"53350","Nursing Homes","REDACTED DATA","BUPA CARE HOMES(SEABROOKE MANOR)","",,"239731641"
"London Borough of Redbridge","http://opendatacommunities.org/doc/london-borough-council/redbridge","6BADULTSOCIA","Adult Social Care","6COLDINCMENT","Older People (65 or over) incl. Older Mentally Ill","REV","Revenue","R4378","OP Residential","05-THIRD","Third Party Payments","05F","Voluntary associations","6802","Residential Homes","90762278","201704",14/07/2016 00:00:00,2550.24,"64710","Residential Care Homes","REDACTED DATA","TEALK SERVICES LTD (THE BEECHES- ILFORD)","4203171","http://opencorporates.com/companies/gb/4203171",""
"London Borough of Redbridge","http://opendatacommunities.org/doc/london-borough-council/redbridge","6BADULTSOCIA","Adult Social Care","6COLDINCMENT","Older People (65 or over) incl. Older Mentally Ill","REV","Revenue","R4378","OP Residential","09-INCOME","Income","09C","Customer and Client Receipts","8555","Accommodation Charges","90762278","201704",14/07/2016 00:00:00,-632.84,"64710","Residential Care Homes","REDACTED DATA","TEALK SERVICES LTD (THE BEECHES- ILFORD)","4203171","http://opencorporates.com/companies/gb/4203171",""
"London Borough of Redbridge","http://opendatacommunities.org/doc/london-borough-council/redbridge","2BBUSISUP","Business Support","","","REV","Revenue","R6527","Information Management Team.","01-EMPLOYEES","Employees","01A","Direct employee expenses","4","Agency Staff - Pay","3435304","201704",22/06/2016 00:00:00,1074.64,"31230","Employment & Recruitment Agencies","REDACTED DATA","ADECCO UK LIMITED","593232","http://opencorporates.com/companies/gb/593232","232347975"
"London Borough of Redbridge","http://opendatacommunities.org/doc/london-borough-council/redbridge","2BDEVCON","Development Control","","","REV","Revenue","R6510","Development Management","01-EMPLOYEES","Employees","01A","Direct employee expenses","4","Agency Staff - Pay","3435304","201704",22/06/2016 00:00:00,1335.36,"31230","Employment & Recruitment Agencies","REDACTED DATA","ADECCO UK LIMITED","593232","http://opencorporates.com/companies/gb/593232","232347975"
"London Borough of Redbridge","http://opendatacommunities.org/doc/london-borough-council/redbridge","2BDEVCON","Development Control","","","REV","Revenue","R6510","Development Management","01-EMPLOYEES","Employees","01A","Direct employee expenses","4","Agency Staff - Pay","3435304","201704",22/06/2016 00:00:00,469,"31230","Employment & Recruitment Agencies","REDACTED DATA","ADECCO UK LIMITED","593232","http://opencorporates.com/companies/gb/593232","232347975"
"London Borough of Redbridge","http://opendatacommunities.org/doc/london-borough-council/redbridge","2BDEVCON","Development Control","","","REV","Revenue","R6510","Development Management","01-EMPLOYEES","Employees","01A","Direct employee expenses","4","Agency Staff - Pay","3435304","201704",22/06/2016 00:00:00,920.64,"31230","Employment & Recruitment Agencies","REDACTED DATA","ADECCO UK LIMITED","593232","http://opencorporates.com/companies/gb/593232","232347975"
"London Borough of Redbridge","http://opendatacommunities.org/doc/london-borough-council/redbridge","2BDEVCON","Development Control","","","REV","Revenue","R6510","Development Management","01-EMPLOYEES","Employees","01A","Direct employee expenses","4","Agency Staff - Pay","3435304","201704",22/06/2016 00:00:00,719.64,"31230","Employment & Recruitment Agencies","REDACTED DATA","ADECCO UK LIMITED","593232","http://opencorporates.com/companies/gb/593232","232347975"
"London Borough of Redbridge","http://opendatacommunities.org/doc/london-borough-council/redbridge","2BDEVCON","Development Control","","","REV","Revenue","R6510","Development Management","01-EMPLOYEES","Employees","01A","Direct employee expenses","4","Agency Staff - Pay","3435304","201704",22/06/2016 00:00:00,667.68,"31230","Employment & Recruitment Agencies","REDACTED DATA","ADECCO UK LIMITED","593232","http://opencorporates.com/companies/gb/593232","232347975"
"London Borough of Redbridge","http://opendatacommunities.org/doc/london-borough-council/redbridge","2BDEVCON","Development Control","","","REV","Revenue","R6510","Development Management","01-EMPLOYEES","Employees","01A","Direct employee expenses","4","Agency Staff - Pay","3435304","201704",22/06/2016 00:00:00,500.76,"31230","Employment & Recruitment Agencies","REDACTED DATA","ADECCO UK LIMITED","593232","http://opencorporates.com/companies/gb/593232","232347975"
"London Borough of Redbridge","http://opendatacommunities.org/doc/london-borough-council/redbridge","2BDEVCON","Development Control","","","REV","Revenue","R6510","Development Management","01-EMPLOYEES","Employees","01A","Direct employee expenses","4","Agency Staff - Pay","3435304","201704",22/06/2016 00:00:00,834.6,"31230","Employment & Recruitment Agencies","REDACTED DATA","ADECCO UK LIMITED","593232","http://opencorporates.com/companies/gb/593232","232347975"
"London Borough of Redbridge","http://opendatacommunities.org/doc/london-borough-council/redbridge","2BDEVCON","Development Control","","","REV","Revenue","R6510","Development Management","01-EMPLOYEES","Employees","01A","Direct employee expenses","4","Agency Staff - Pay","3435304","201704",22/06/2016 00:00:00,1170.92,"31230","Employment & Recruitment Agencies","REDACTED DATA","ADECCO UK LIMITED","593232","http://opencorporates.com/companies/gb/593232","232347975"
"London Borough of Redbridge","http://opendatacommunities.org/doc/london-borough-council/redbridge","2BDEVCON","Development Control","","","REV","Revenue","R6510","Development Management","01-EMPLOYEES","Employees","01A","Direct employee expenses","4","Agency Staff - Pay","3435304","201704",22/06/2016 00:00:00,834.6,"31230","Employment & Recruitment Agencies","REDACTED DATA","ADECCO UK LIMITED","593232","http://opencorporates.com/companies/gb/593232","232347975"
"London Borough of Redbridge","http://opendatacommunities.org/doc/london-borough-council/redbridge","2BDEVCON","Development Control","","","REV","Revenue","R6510","Development Management","01-EMPLOYEES","Employees","01A","Direct employee expenses","4","Agency Staff - Pay","3435304","201704",22/06/2016 00:00:00,667.68,"31230","Employment & Recruitment Agencies","REDACTED DATA","ADECCO UK LIMITED","593232","http://opencorporates.com/companies/gb/593232","232347975"
"London Borough of Redbridge","http://opendatacommunities.org/doc/london-borough-council/redbridge","2BECODEV","Economic Development","","","REV","Revenue","R9872","Town Centres","01-EMPLOYEES","Employees","01A","Direct employee expenses","4","Agency Staff - Pay","3435304","201704",22/06/2016 00:00:00,842.76,"31230","Employment & Recruitment Agencies","REDACTED DATA","ADECCO UK LIMITED","593232","http://opencorporates.com/companies/gb/593232","232347975"
"London Borough of Redbridge","http://opendatacommunities.org/doc/london-borough-council/redbridge","2BECODEV","Economic Development","","","REV","Revenue","R9896","Redbridge Investment Vehicle","01-EMPLOYEES","Employees","01A","Direct employee expenses","4","Agency Staff - Pay","3435304","201704",22/06/2016 00:00:00,1147.1,"31230","Employment & Recruitment Agencies","REDACTED DATA","ADECCO UK LIMITED","593232","http://opencorporates.com/companies/gb/593232","232347975"
"London Borough of Redbridge","http://opendatacommunities.org/doc/london-borough-council/redbridge","2BDEVCON","Development Control","","","REV","Revenue","R6510","Development Management","01-EMPLOYEES","Employees","01A","Direct employee expenses","4","Agency Staff - Pay","60313393","201704",29/06/2016 00:00:00,1592.5,"77850","Ticket Agencies","REDACTED DATA","THE OYSTER PARTNERSHIP LTD","5020374","http://opencorporates.com/companies/gb/5020374","832961025"
"London Borough of Redbridge","http://opendatacommunities.org/doc/london-borough-council/redbridge","6BADULTSOCIA","Adult Social Care","6COLDINCMENT","Older People (65 or over) incl. Older Mentally Ill","REV","Revenue","R4378","OP Residential","05-THIRD","Third Party Payments","05F","Voluntary associations","6802","Residential Homes","90761878","201704",14/07/2016 00:00:00,3825.92,"64710","Residential Care Homes","REDACTED DATA","RUNWOOD HOMES LTD (TALLIS HOUSE)","731250","http://opencorporates.com/companies/gb/731250",""
"London Borough of Redbridge","http://opendatacommunities.org/doc/london-borough-council/redbridge","6BADULTSOCIA","Adult Social Care","6COLDINCMENT","Older People (65 or over) incl. Older Mentally Ill","REV","Revenue","R4378","OP Residential","09-INCOME","Income","09C","Customer and Client Receipts","8555","Accommodation Charges","90761878","201704",14/07/2016 00:00:00,-1917.52,"64710","Residential Care Homes","REDACTED DATA","RUNWOOD HOMES LTD (TALLIS HOUSE)","731250","http://opencorporates.com/companies/gb/731250",""
"London Borough of Redbridge","http://opendatacommunities.org/doc/london-borough-council/redbridge","6BADULTSOCIA","Adult Social Care","6CADLEARNDIS","Adults Under 65 with Learning Disabilities","REV","Revenue","R4215","LD Direct Payments","06-TRANSFER","Transfer Payments","06B","Social Services Clients","7053","Direct Payments","3437181","201704",26/07/2016 00:00:00,2078.36,"90005","Home Care Services DP","REDACTED DATA","REDACTED DATA","",,""
"London Borough of Redbridge","http://opendatacommunities.org/doc/london-borough-council/redbridge","6BADULTSOCIA","Adult Social Care","6CADLEARNDIS","Adults Under 65 with Learning Disabilities","REV","Revenue","R4215","LD Direct Payments","09-INCOME","Income","09C","Customer and Client Receipts","8545","Direct Payments Income","3437181","201704",26/07/2016 00:00:00,-171.12,"90005","Home Care Services DP","REDACTED DATA","REDACTED DATA","",,""
"London Borough of Redbridge","http://opendatacommunities.org/doc/london-borough-council/redbridge","9BNONBVO","Outside the BVACOP Objective Structure","9CNONBVO","Outside the BVACOP Objective Structure","REV","Revenue","R5211","Orchard and Manford Office Costs","02-PREMISES","Premises","02E","Water services","4320","Water Charges & Sewerage","70087082","201704",18/07/2016 00:00:00,1905.4,"83682","Water Companies","REDACTED DATA","THAMES WATER UTILITIES LTD","2366661","http://opencorporates.com/companies/gb/2366661",""
"London Borough of Redbridge","http://opendatacommunities.org/doc/london-borough-council/redbridge","1BOTHEROPI&E","Other Operating Income & Expenditure","1CTRADSURDEF","Trading Account Surpluses & Deficits","REV","Revenue","R9152","Financial Services","01-EMPLOYEES","Employees","01A","Direct employee expenses","4","Agency Staff - Pay","60315283","201704",06/07/2016 00:00:00,1585.23,"31230","Employment & Recruitment Agencies","REDACTED DATA","ALLEN LANE LIMITED","5115229","http://opencorporates.com/companies/gb/5115229","835970985"
"London Borough of Redbridge","http://opendatacommunities.org/doc/london-borough-council/redbridge","6BADULTSOCIA","Adult Social Care","6CADLEARNDIS","Adults Under 65 with Learning Disabilities","REV","Revenue","R4188","LD - Residential Care","05-THIRD","Third Party Payments","05F","Voluntary associations","6802","Residential Homes","90761939","201704",14/07/2016 00:00:00,2218.28,"53350","Nursing Homes","REDACTED DATA","ACORN VILLAGE","",,""
"London Borough of Redbridge","http://opendatacommunities.org/doc/london-borough-council/redbridge","6BADULTSOCIA","Adult Social Care","6CADLEARNDIS","Adults Under 65 with Learning Disabilities","REV","Revenue","R4188","LD - Residential Care","09-INCOME","Income","09C","Customer and Client Receipts","8555","Accommodation Charges","90761939","201704",14/07/2016 00:00:00,-321.8,"53350","Nursing Homes","REDACTED DATA","ACORN VILLAGE","",,""
"London Borough of Redbridge","http://opendatacommunities.org/doc/london-borough-council/redbridge","6BADULTSOCIA","Adult Social Care","6CADLEARNDIS","Adults Under 65 with Learning Disabilities","REV","Revenue","R4218","LD Individual Budgets","06-TRANSFER","Transfer Payments","06B","Social Services Clients","7053","Direct Payments","3436935","201704",26/07/2016 00:00:00,2137.64,"90005","Home Care Services DP","REDACTED DATA","REDACTED DATA","",,""
"London Borough of Redbridge","http://opendatacommunities.org/doc/london-borough-council/redbridge","6BADULTSOCIA","Adult Social Care","6CADLEARNDIS","Adults Under 65 with Learning Disabilities","REV","Revenue","R4218","LD Individual Budgets","09-INCOME","Income","09C","Customer and Client Receipts","8545","Direct Payments Income","3436935","201704",26/07/2016 00:00:00,-241.56,"90005","Home Care Services DP","REDACTED DATA","REDACTED DATA","",,""
"London Borough of Redbridge","http://opendatacommunities.org/doc/london-borough-council/redbridge","9BNONBVO","Outside the BVACOP Objective Structure","9CNONBVO","Outside the BVACOP Objective Structure","REV","Revenue","R7702","Vehicle Workshop","04-SUPPLIES","Supplies And Services","04A","Equipment, furniture and materials","5510","Materials","655706","201704",14/06/2016 00:00:00,1580,"20390","Commercial Vehicle Servicing, Repairs, Parts and Accessories","REDACTED DATA","TRUST FIRST PARTS","191595","http://opencorporates.com/companies/gb/191595","833053650"
"London Borough of Redbridge","http://opendatacommunities.org/doc/london-borough-council/redbridge","2BECODEV","Economic Development","","","REV","Revenue","R9896","Redbridge Investment Vehicle","01-EMPLOYEES","Employees","01A","Direct employee expenses","4","Agency Staff - Pay","3435304","201704",22/06/2016 00:00:00,1147.1,"31230","Employment & Recruitment Agencies","REDACTED DATA","ADECCO UK LIMITED","593232","http://opencorporates.com/companies/gb/593232","232347975"
"London Borough of Redbridge","http://opendatacommunities.org/doc/london-borough-council/redbridge","2BECODEV","Economic Development","","","REV","Revenue","R9896","Redbridge Investment Vehicle","01-EMPLOYEES","Employees","01A","Direct employee expenses","4","Agency Staff - Pay","3435304","201704",22/06/2016 00:00:00,1147.1,"31230","Employment & Recruitment Agencies","REDACTED DATA","ADECCO UK LIMITED","593232","http://opencorporates.com/companies/gb/593232","232347975"
"London Borough of Redbridge","http://opendatacommunities.org/doc/london-borough-council/redbridge","2BECODEV","Economic Development","","","REV","Revenue","R9896","Redbridge Investment Vehicle","01-EMPLOYEES","Employees","01A","Direct employee expenses","4","Agency Staff - Pay","3435304","201704",22/06/2016 00:00:00,0,"31230","Employment & Recruitment Agencies","REDACTED DATA","ADECCO UK LIMITED","593232","http://opencorporates.com/companies/gb/593232","232347975"
"London Borough of Redbridge","http://opendatacommunities.org/doc/london-borough-council/redbridge","2BECODEV","Economic Development","","","REV","Revenue","R9896","Redbridge Investment Vehicle","01-EMPLOYEES","Employees","01A","Direct employee expenses","4","Agency Staff - Pay","3435304","201704",22/06/2016 00:00:00,688.26,"31230","Employment & Recruitment Agencies","REDACTED DATA","ADECCO UK LIMITED","593232","http://opencorporates.com/companies/gb/593232","232347975"
"London Borough of Redbridge","http://opendatacommunities.org/doc/london-borough-council/redbridge","2BENVIRONMEN","Environmental Services","2CCOMSAFCRIM","Community Safety (Crime Reduction)","REV","Revenue","R9880","Prevent","01-EMPLOYEES","Employees","01A","Direct employee expenses","4","Agency Staff - Pay","3435304","201704",22/06/2016 00:00:00,1176.75,"31230","Employment & Recruitment Agencies","REDACTED DATA","ADECCO UK LIMITED","593232","http://opencorporates.com/companies/gb/593232","232347975"
"London Borough of Redbridge","http://opendatacommunities.org/doc/london-borough-council/redbridge","2BENVIRONMEN","Environmental Services","2CCONSPROT","Consumer Protection","REV","Revenue","R6751","Health and Safety","01-EMPLOYEES","Employees","01A","Direct employee expenses","4","Agency Staff - Pay","3435304","201704",22/06/2016 00:00:00,1058.94,"31230","Employment & Recruitment Agencies","REDACTED DATA","ADECCO UK LIMITED","593232","http://opencorporates.com/companies/gb/593232","232347975"
"London Borough of Redbridge","http://opendatacommunities.org/doc/london-borough-council/redbridge","2BENVIRONMEN","Environmental Services","2CCONSPROT","Consumer Protection","REV","Revenue","R6751","Health and Safety","01-EMPLOYEES","Employees","01A","Direct employee expenses","4","Agency Staff - Pay","3435304","201704",22/06/2016 00:00:00,1029.35,"31230","Employment & Recruitment Agencies","REDACTED DATA","ADECCO UK LIMITED","593232","http://opencorporates.com/companies/gb/593232","232347975"
"London Borough of Redbridge","http://opendatacommunities.org/doc/london-borough-council/redbridge","2BENVIRONMEN","Environmental Services","2CSERVMGTSUP","Service Management & Support Services","REV","Revenue","R6001","Cleansing S.Area Admin","01-EMPLOYEES","Employees","01A","Direct employee expenses","4","Agency Staff - Pay","3435304","201704",22/06/2016 00:00:00,452.4,"31230","Employment & Recruitment Agencies","REDACTED DATA","ADECCO UK LIMITED","593232","http://opencorporates.com/companies/gb/593232","232347975"
"London Borough of Redbridge","http://opendatacommunities.org/doc/london-borough-council/redbridge","2BENVIRONMEN","Environmental Services","2CSERVMGTSUP","Service Management & Support Services","REV","Revenue","R6799","Data Analysts","01-EMPLOYEES","Employees","01A","Direct employee expenses","4","Agency Staff - Pay","3435304","201704",22/06/2016 00:00:00,518.81,"31230","Employment & Recruitment Agencies","REDACTED DATA","ADECCO UK LIMITED","593232","http://opencorporates.com/companies/gb/593232","232347975"
"London Borough of Redbridge","http://opendatacommunities.org/doc/london-borough-council/redbridge","2BPLANPOL","Planning Policy","","","REV","Revenue","R6513","Planning Business Manager Technical Support","01-EMPLOYEES","Employees","01A","Direct employee expenses","4","Agency Staff - Pay","3435304","201704",22/06/2016 00:00:00,469,"31230","Employment & Recruitment Agencies","REDACTED DATA","ADECCO UK LIMITED","593232","http://opencorporates.com/companies/gb/593232","232347975"
"London Borough of Redbridge","http://opendatacommunities.org/doc/london-borough-council/redbridge","3BINDSCHFUND","Individual School Funds","3CFACILIMPRO","Facilitating School Improvement","REV","Revenue","R3373","Looked After Children","01-EMPLOYEES","Employees","01A","Direct employee expenses","4","Agency Staff - Pay","3435304","201704",22/06/2016 00:00:00,289.92,"31230","Employment & Recruitment Agencies","REDACTED DATA","ADECCO UK LIMITED","593232","http://opencorporates.com/companies/gb/593232","232347975"
"London Borough of Redbridge","http://opendatacommunities.org/doc/london-borough-council/redbridge","3BINDSCHFUND","Individual School Funds","3CFACILIMPRO","Facilitating School Improvement","REV","Revenue","R3433","Research & Data","01-EMPLOYEES","Employees","01A","Direct employee expenses","4","Agency Staff - Pay","3435304","201704",22/06/2016 00:00:00,392.08,"31230","Employment & Recruitment Agencies","REDACTED DATA","ADECCO UK LIMITED","593232","http://opencorporates.com/companies/gb/593232","232347975"
"London Borough of Redbridge","http://opendatacommunities.org/doc/london-borough-council/redbridge","3BINDSCHFUND","Individual School Funds","3CNONSCH","Non Schools","REV","Revenue","R2209","SEN Individual Commissioning DSG","01-EMPLOYEES","Employees","01A","Direct employee expenses","4","Agency Staff - Pay","3435304","201704",22/06/2016 00:00:00,257.78,"31230","Employment & Recruitment Agencies","REDACTED DATA","ADECCO UK LIMITED","593232","http://opencorporates.com/companies/gb/593232","232347975"
"London Borough of Redbridge","http://opendatacommunities.org/doc/london-borough-council/redbridge","3BINDSCHFUND","Individual School Funds","3CNONSCH","Non Schools","REV","Revenue","R2209","SEN Individual Commissioning DSG","01-EMPLOYEES","Employees","01A","Direct employee expenses","4","Agency Staff - Pay","3435304","201704",22/06/2016 00:00:00,611.67,"31230","Employment & Recruitment Agencies","REDACTED DATA","ADECCO UK LIMITED","593232","http://opencorporates.com/companies/gb/593232","232347975"
"London Borough of Redbridge","http://opendatacommunities.org/doc/london-borough-council/redbridge","3BINDSCHFUND","Individual School Funds","3CNONSCH","Non Schools","REV","Revenue","R2209","SEN Individual Commissioning DSG","01-EMPLOYEES","Employees","01A","Direct employee expenses","4","Agency Staff - Pay","3435304","201704",22/06/2016 00:00:00,1223.34,"31230","Employment & Recruitment Agencies","REDACTED DATA","ADECCO UK LIMITED","593232","http://opencorporates.com/companies/gb/593232","232347975"
"London Borough of Redbridge","http://opendatacommunities.org/doc/london-borough-council/redbridge","3BINDSCHFUND","Individual School Funds","3CNONSCH","Non Schools","REV","Revenue","R2209","SEN Individual Commissioning DSG","01-EMPLOYEES","Employees","01A","Direct employee expenses","4","Agency Staff - Pay","3435304","201704",22/06/2016 00:00:00,257.78,"31230","Employment & Recruitment Agencies","REDACTED DATA","ADECCO UK LIMITED","593232","http://opencorporates.com/companies/gb/593232","232347975"
"London Borough of Redbridge","http://opendatacommunities.org/doc/london-borough-council/redbridge","3BINDSCHFUND","Individual School Funds","3CNONSCH","Non Schools","REV","Revenue","R2209","SEN Individual Commissioning DSG","01-EMPLOYEES","Employees","01A","Direct employee expenses","4","Agency Staff - Pay","3435304","201704",22/06/2016 00:00:00,1333.13,"31230","Employment & Recruitment Agencies","REDACTED DATA","ADECCO UK LIMITED","593232","http://opencorporates.com/companies/gb/593232","232347975"
"London Borough of Redbridge","http://opendatacommunities.org/doc/london-borough-council/redbridge","3BINDSCHFUND","Individual School Funds","3CNONSCH","Non Schools","REV","Revenue","R2209","SEN Individual Commissioning DSG","01-EMPLOYEES","Employees","01A","Direct employee expenses","4","Agency Staff - Pay","3435304","201704",22/06/2016 00:00:00,932.7,"31230","Employment & Recruitment Agencies","REDACTED DATA","ADECCO UK LIMITED","593232","http://opencorporates.com/companies/gb/593232","232347975"
"London Borough of Redbridge","http://opendatacommunities.org/doc/london-borough-council/redbridge","3BINDSCHFUND","Individual School Funds","3CNONSCH","Non Schools","REV","Revenue","R2209","SEN Individual Commissioning DSG","01-EMPLOYEES","Employees","01A","Direct employee expenses","4","Agency Staff - Pay","3435304","201704",22/06/2016 00:00:00,606.26,"31230","Employment & Recruitment Agencies","REDACTED DATA","ADECCO UK LIMITED","593232","http://opencorporates.com/companies/gb/593232","232347975"
"London Borough of Redbridge","http://opendatacommunities.org/doc/london-borough-council/redbridge","3BINDSCHFUND","Individual School Funds","3CNONSCH","Non Schools","REV","Revenue","R2209","SEN Individual Commissioning DSG","01-EMPLOYEES","Employees","01A","Direct employee expenses","4","Agency Staff - Pay","3435304","201704",22/06/2016 00:00:00,777.25,"31230","Employment & Recruitment Agencies","REDACTED DATA","ADECCO UK LIMITED","593232","http://opencorporates.com/companies/gb/593232","232347975"
"London Borough of Redbridge","http://opendatacommunities.org/doc/london-borough-council/redbridge","3BINDSCHFUND","Individual School Funds","3CNONSCH","Non Schools","REV","Revenue","R2209","SEN Individual Commissioning DSG","01-EMPLOYEES","Employees","01A","Direct employee expenses","4","Agency Staff - Pay","3435304","201704",22/06/2016 00:00:00,1244.29,"31230","Employment & Recruitment Agencies","REDACTED DATA","ADECCO UK LIMITED","593232","http://opencorporates.com/companies/gb/593232","232347975"
"London Borough of Redbridge","http://opendatacommunities.org/doc/london-borough-council/redbridge","3BINDSCHFUND","Individual School Funds","3CNONSCH","Non Schools","REV","Revenue","R2209","SEN Individual Commissioning DSG","01-EMPLOYEES","Employees","01A","Direct employee expenses","4","Agency Staff - Pay","3435304","201704",22/06/2016 00:00:00,1788.9,"31230","Employment & Recruitment Agencies","REDACTED DATA","ADECCO UK LIMITED","593232","http://opencorporates.com/companies/gb/593232","232347975"
"London Borough of Redbridge","http://opendatacommunities.org/doc/london-borough-council/redbridge","3BINDSCHFUND","Individual School Funds","3CNONSCH","Non Schools","REV","Revenue","R2209","SEN Individual Commissioning DSG","01-EMPLOYEES","Employees","01A","Direct employee expenses","4","Agency Staff - Pay","3435304","201704",22/06/2016 00:00:00,715.56,"31230","Employment & Recruitment Agencies","REDACTED DATA","ADECCO UK LIMITED","593232","http://opencorporates.com/companies/gb/593232","232347975"
"London Borough of Redbridge","http://opendatacommunities.org/doc/london-borough-council/redbridge","3BINDSCHFUND","Individual School Funds","3CNONSCH","Non Schools","REV","Revenue","R2209","SEN Individual Commissioning DSG","01-EMPLOYEES","Employees","01A","Direct employee expenses","4","Agency Staff - Pay","3435304","201704",22/06/2016 00:00:00,894.45,"31230","Employment & Recruitment Agencies","REDACTED DATA","ADECCO UK LIMITED","593232","http://opencorporates.com/companies/gb/593232","232347975"
"London Borough of Redbridge","http://opendatacommunities.org/doc/london-borough-council/redbridge","3BINDSCHFUND","Individual School Funds","3CNONSCH","Non Schools","REV","Revenue","R2209","SEN Individual Commissioning DSG","01-EMPLOYEES","Employees","01A","Direct employee expenses","4","Agency Staff - Pay","3435304","201704",22/06/2016 00:00:00,233.18,"31230","Employment & Recruitment Agencies","REDACTED DATA","ADECCO UK LIMITED","593232","http://opencorporates.com/companies/gb/593232","232347975"
"London Borough of Redbridge","http://opendatacommunities.org/doc/london-borough-council/redbridge","3BINDSCHFUND","Individual School Funds","3CNONSCH","Non Schools","REV","Revenue","R2209","SEN Individual Commissioning DSG","01-EMPLOYEES","Employees","01A","Direct employee expenses","4","Agency Staff - Pay","3435304","201704",22/06/2016 00:00:00,466.35,"31230","Employment & Recruitment Agencies","REDACTED DATA","ADECCO UK LIMITED","593232","http://opencorporates.com/companies/gb/593232","232347975"
"London Borough of Redbridge","http://opendatacommunities.org/doc/london-borough-council/redbridge","3BLEACENTFND","LEA Centrally Held School Funds","3CFACILIMPRO","Facilitating School Improvement","REV","Revenue","R3240","Advisers/Inspectors","01-EMPLOYEES","Employees","01A","Direct employee expenses","4","Agency Staff - Pay","3435304","201704",22/06/2016 00:00:00,-1738.08,"31230","Employment & Recruitment Agencies","REDACTED DATA","ADECCO UK LIMITED","593232","http://opencorporates.com/companies/gb/593232","232347975"
"London Borough of Redbridge","http://opendatacommunities.org/doc/london-borough-council/redbridge","3BLEACENTFND","LEA Centrally Held School Funds","3CFACILIMPRO","Facilitating School Improvement","REV","Revenue","R3240","Advisers/Inspectors","01-EMPLOYEES","Employees","01A","Direct employee expenses","4","Agency Staff - Pay","3435304","201704",22/06/2016 00:00:00,1601.52,"31230","Employment & Recruitment Agencies","REDACTED DATA","ADECCO UK LIMITED","593232","http://opencorporates.com/companies/gb/593232","232347975"
"London Borough of Redbridge","http://opendatacommunities.org/doc/london-borough-council/redbridge","3BLEACENTFND","LEA Centrally Held School Funds","3CFACILIMPRO","Facilitating School Improvement","REV","Revenue","R3240","Advisers/Inspectors","01-EMPLOYEES","Employees","01A","Direct employee expenses","4","Agency Staff - Pay","3435304","201704",22/06/2016 00:00:00,2384.1,"31230","Employment & Recruitment Agencies","REDACTED DATA","ADECCO UK LIMITED","593232","http://opencorporates.com/companies/gb/593232","232347975"
"London Borough of Redbridge","http://opendatacommunities.org/doc/london-borough-council/redbridge","3BLEACENTFND","LEA Centrally Held School Funds","3CFACILIMPRO","Facilitating School Improvement","REV","Revenue","R3240","Advisers/Inspectors","01-EMPLOYEES","Employees","01A","Direct employee expenses","4","Agency Staff - Pay","3435304","201704",22/06/2016 00:00:00,-1955.34,"31230","Employment & Recruitment Agencies","REDACTED DATA","ADECCO UK LIMITED","593232","http://opencorporates.com/companies/gb/593232","232347975"
"London Borough of Redbridge","http://opendatacommunities.org/doc/london-borough-council/redbridge","3BLEACENTFND","LEA Centrally Held School Funds","3CFACILIMPRO","Facilitating School Improvement","REV","Revenue","R3240","Advisers/Inspectors","01-EMPLOYEES","Employees","01A","Direct employee expenses","4","Agency Staff - Pay","3435304","201704",22/06/2016 00:00:00,2119.2,"31230","Employment & Recruitment Agencies","REDACTED DATA","ADECCO UK LIMITED","593232","http://opencorporates.com/companies/gb/593232","232347975"
"London Borough of Redbridge","http://opendatacommunities.org/doc/london-borough-council/redbridge","3BLEACENTFND","LEA Centrally Held School Funds","3CFACILIMPRO","Facilitating School Improvement","REV","Revenue","R3240","Advisers/Inspectors","01-EMPLOYEES","Employees","01A","Direct employee expenses","4","Agency Staff - Pay","3435304","201704",22/06/2016 00:00:00,561.75,"31230","Employment & Recruitment Agencies","REDACTED DATA","ADECCO UK LIMITED","593232","http://opencorporates.com/companies/gb/593232","232347975"
"London Borough of Redbridge","http://opendatacommunities.org/doc/london-borough-council/redbridge","3BLEACENTFND","LEA Centrally Held School Funds","3CFACILIMPRO","Facilitating School Improvement","REV","Revenue","R3240","Advisers/Inspectors","01-EMPLOYEES","Employees","01A","Direct employee expenses","4","Agency Staff - Pay","3435304","201704",22/06/2016 00:00:00,2649,"31230","Employment & Recruitment Agencies","REDACTED DATA","ADECCO UK LIMITED","593232","http://opencorporates.com/companies/gb/593232","232347975"
"London Borough of Redbridge","http://opendatacommunities.org/doc/london-borough-council/redbridge","3BLEACENTFND","LEA Centrally Held School Funds","3CFACILIMPRO","Facilitating School Improvement","REV","Revenue","R3240","Advisers/Inspectors","01-EMPLOYEES","Employees","01A","Direct employee expenses","4","Agency Staff - Pay","3435304","201704",22/06/2016 00:00:00,2119.2,"31230","Employment & Recruitment Agencies","REDACTED DATA","ADECCO UK LIMITED","593232","http://opencorporates.com/companies/gb/593232","232347975"
"London Borough of Redbridge","http://opendatacommunities.org/doc/london-borough-council/redbridge","3BLEACENTFND","LEA Centrally Held School Funds","3CFACILIMPRO","Facilitating School Improvement","REV","Revenue","R3240","Advisers/Inspectors","01-EMPLOYEES","Employees","01A","Direct employee expenses","4","Agency Staff - Pay","3435304","201704",22/06/2016 00:00:00,1067.68,"31230","Employment & Recruitment Agencies","REDACTED DATA","ADECCO UK LIMITED","593232","http://opencorporates.com/companies/gb/593232","232347975"
"London Borough of Redbridge","http://opendatacommunities.org/doc/london-borough-council/redbridge","3BLEACENTFND","LEA Centrally Held School Funds","3CFACILIMPRO","Facilitating School Improvement","REV","Revenue","R3240","Advisers/Inspectors","01-EMPLOYEES","Employees","01A","Direct employee expenses","4","Agency Staff - Pay","3435304","201704",22/06/2016 00:00:00,561.75,"31230","Employment & Recruitment Agencies","REDACTED DATA","ADECCO UK LIMITED","593232","http://opencorporates.com/companies/gb/593232","232347975"
"London Borough of Redbridge","http://opendatacommunities.org/doc/london-borough-council/redbridge","3BLEACENTFND","LEA Centrally Held School Funds","3CFACILIMPRO","Facilitating School Improvement","REV","Revenue","R3240","Advisers/Inspectors","01-EMPLOYEES","Employees","01A","Direct employee expenses","4","Agency Staff - Pay","3435304","201704",22/06/2016 00:00:00,-1738.08,"31230","Employment & Recruitment Agencies","REDACTED DATA","ADECCO UK LIMITED","593232","http://opencorporates.com/companies/gb/593232","232347975"
"London Borough of Redbridge","http://opendatacommunities.org/doc/london-borough-council/redbridge","3BLEACENTFND","LEA Centrally Held School Funds","3CNONSCH","Non Schools","REV","Revenue","R2211","SEN Commissioning DSG","01-EMPLOYEES","Employees","01A","Direct employee expenses","4","Agency Staff - Pay","3435304","201704",22/06/2016 00:00:00,108.38,"31230","Employment & Recruitment Agencies","REDACTED DATA","ADECCO UK LIMITED","593232","http://opencorporates.com/companies/gb/593232","232347975"
"London Borough of Redbridge","http://opendatacommunities.org/doc/london-borough-council/redbridge","3BLEACENTFND","LEA Centrally Held School Funds","3CNONSCH","Non Schools","REV","Revenue","R2230","Local Offer","01-EMPLOYEES","Employees","01A","Direct employee expenses","4","Agency Staff - Pay","3435304","201704",22/06/2016 00:00:00,585.98,"31230","Employment & Recruitment Agencies","REDACTED DATA","ADECCO UK LIMITED","593232","http://opencorporates.com/companies/gb/593232","232347975"
"London Borough of Redbridge","http://opendatacommunities.org/doc/london-borough-council/redbridge","3BLEACENTFND","LEA Centrally Held School Funds","3CNONSCH","Non Schools","REV","Revenue","R2230","Local Offer","01-EMPLOYEES","Employees","01A","Direct employee expenses","4","Agency Staff - Pay","3435304","201704",22/06/2016 00:00:00,559.08,"31230","Employment & Recruitment Agencies","REDACTED DATA","ADECCO UK LIMITED","593232","http://opencorporates.com/companies/gb/593232","232347975"
"London Borough of Redbridge","http://opendatacommunities.org/doc/london-borough-council/redbridge","3BLEACENTFND","LEA Centrally Held School Funds","3CNONSCH","Non Schools","REV","Revenue","R2230","Local Offer","01-EMPLOYEES","Employees","01A","Direct employee expenses","4","Agency Staff - Pay","3435304","201704",22/06/2016 00:00:00,559.08,"31230","Employment & Recruitment Agencies","REDACTED DATA","ADECCO UK LIMITED","593232","http://opencorporates.com/companies/gb/593232","232347975"
"London Borough of Redbridge","http://opendatacommunities.org/doc/london-borough-council/redbridge","3BLEACENTFND","LEA Centrally Held School Funds","3CSCHSTRATMG","Schools Strategic Management","REV","Revenue","R3001","Bldgs and Dev Branch","01-EMPLOYEES","Employees","01A","Direct employee expenses","4","Agency Staff - Pay","3435304","201704",22/06/2016 00:00:00,1756.2,"31230","Employment & Recruitment Agencies","REDACTED DATA","ADECCO UK LIMITED","593232","http://opencorporates.com/companies/gb/593232","232347975"
"London Borough of Redbridge","http://opendatacommunities.org/doc/london-borough-council/redbridge","3BLEACENTFND","LEA Centrally Held School Funds","3CSCHSTRATMG","Schools Strategic Management","REV","Revenue","R3007","Client and Resources","01-EMPLOYEES","Employees","01A","Direct employee expenses","4","Agency Staff - Pay","3435304","201704",22/06/2016 00:00:00,441.09,"31230","Employment & Recruitment Agencies","REDACTED DATA","ADECCO UK LIMITED","593232","http://opencorporates.com/companies/gb/593232","232347975"
"London Borough of Redbridge","http://opendatacommunities.org/doc/london-borough-council/redbridge","3BLEACENTFND","LEA Centrally Held School Funds","3CSCHSTRATMG","Schools Strategic Management","REV","Revenue","R3173","Bus Supp - CP EI and CRCs","01-EMPLOYEES","Employees","01A","Direct employee expenses","4","Agency Staff - Pay","3435304","201704",22/06/2016 00:00:00,469,"31230","Employment & Recruitment Agencies","REDACTED DATA","ADECCO UK LIMITED","593232","http://opencorporates.com/companies/gb/593232","232347975"
"London Borough of Redbridge","http://opendatacommunities.org/doc/london-borough-council/redbridge","3BLEACENTFND","LEA Centrally Held School Funds","3CSCHSTRATMG","Schools Strategic Management","REV","Revenue","R3173","Bus Supp - CP EI and CRCs","01-EMPLOYEES","Employees","01A","Direct employee expenses","4","Agency Staff - Pay","3435304","201704",22/06/2016 00:00:00,428.8,"31230","Employment & Recruitment Agencies","REDACTED DATA","ADECCO UK LIMITED","593232","http://opencorporates.com/companies/gb/593232","232347975"
"London Borough of Redbridge","http://opendatacommunities.org/doc/london-borough-council/redbridge","3BLEACENTFND","LEA Centrally Held School Funds","3CSCHSTRATMG","Schools Strategic Management","REV","Revenue","R3173","Bus Supp - CP EI and CRCs","01-EMPLOYEES","Employees","01A","Direct employee expenses","4","Agency Staff - Pay","3435304","201704",22/06/2016 00:00:00,355.1,"31230","Employment & Recruitment Agencies","REDACTED DATA","ADECCO UK LIMITED","593232","http://opencorporates.com/companies/gb/593232","232347975"
"London Borough of Redbridge","http://opendatacommunities.org/doc/london-borough-council/redbridge","3BLEACENTFND","LEA Centrally Held School Funds","3CSCHSTRATMG","Schools Strategic Management","REV","Revenue","R3175","Bus Supp - SEND, CQF","01-EMPLOYEES","Employees","01A","Direct employee expenses","4","Agency Staff - Pay","3435304","201704",22/06/2016 00:00:00,375.2,"31230","Employment & Recruitment Agencies","REDACTED DATA","ADECCO UK LIMITED","593232","http://opencorporates.com/companies/gb/593232","232347975"
"London Borough of Redbridge","http://opendatacommunities.org/doc/london-borough-council/redbridge","3BLEACENTFND","LEA Centrally Held School Funds","3CSCHSTRATMG","Schools Strategic Management","REV","Revenue","R3175","Bus Supp - SEND, CQF","01-EMPLOYEES","Employees","01A","Direct employee expenses","4","Agency Staff - Pay","3435304","201704",22/06/2016 00:00:00,397.5,"31230","Employment & Recruitment Agencies","REDACTED DATA","ADECCO UK LIMITED","593232","http://opencorporates.com/companies/gb/593232","232347975"
"London Borough of Redbridge","http://opendatacommunities.org/doc/london-borough-council/redbridge","3BLEACENTFND","LEA Centrally Held School Funds","3CSCHSTRATMG","Schools Strategic Management","REV","Revenue","R3175","Bus Supp - SEND, CQF","01-EMPLOYEES","Employees","01A","Direct employee expenses","4","Agency Staff - Pay","3435304","201704",22/06/2016 00:00:00,470.38,"31230","Employment & Recruitment Agencies","REDACTED DATA","ADECCO UK LIMITED","593232","http://opencorporates.com/companies/gb/593232","232347975"
"London Borough of Redbridge","http://opendatacommunities.org/doc/london-borough-council/redbridge","3BLEACENTFND","LEA Centrally Held School Funds","3CSCHSTRATMG","Schools Strategic Management","REV","Revenue","R3175","Bus Supp - SEND, CQF","01-EMPLOYEES","Employees","01A","Direct employee expenses","4","Agency Staff - Pay","3435304","201704",22/06/2016 00:00:00,413,"31230","Employment & Recruitment Agencies","REDACTED DATA","ADECCO UK LIMITED","593232","http://opencorporates.com/companies/gb/593232","232347975"
"London Borough of Redbridge","http://opendatacommunities.org/doc/london-borough-council/redbridge","3BLEACENTFND","LEA Centrally Held School Funds","3CSCHSTRATMG","Schools Strategic Management","REV","Revenue","R3175","Bus Supp - SEND, CQF","01-EMPLOYEES","Employees","01A","Direct employee expenses","4","Agency Staff - Pay","3435304","201704",22/06/2016 00:00:00,475.7,"31230","Employment & Recruitment Agencies","REDACTED DATA","ADECCO UK LIMITED","593232","http://opencorporates.com/companies/gb/593232","232347975"
"London Borough of Redbridge","http://opendatacommunities.org/doc/london-borough-council/redbridge","3BLEACENTFND","LEA Centrally Held School Funds","3CSCHSTRATMG","Schools Strategic Management","REV","Revenue","R3175","Bus Supp - SEND, CQF","01-EMPLOYEES","Employees","01A","Direct employee expenses","4","Agency Staff - Pay","3435304","201704",22/06/2016 00:00:00,455.6,"31230","Employment & Recruitment Agencies","REDACTED DATA","ADECCO UK LIMITED","593232","http://opencorporates.com/companies/gb/593232","232347975"
"London Borough of Redbridge","http://opendatacommunities.org/doc/london-borough-council/redbridge","3BLEACENTFND","LEA Centrally Held School Funds","3CSCHSTRATMG","Schools Strategic Management","REV","Revenue","R3175","Bus Supp - SEND, CQF","01-EMPLOYEES","Employees","01A","Direct employee expenses","4","Agency Staff - Pay","3435304","201704",22/06/2016 00:00:00,469,"31230","Employment & Recruitment Agencies","REDACTED DATA","ADECCO UK LIMITED","593232","http://opencorporates.com/companies/gb/593232","232347975"
"London Borough of Redbridge","http://opendatacommunities.org/doc/london-borough-council/redbridge","3BLEACENTFND","LEA Centrally Held School Funds","3CSCHSTRATMG","Schools Strategic Management","REV","Revenue","R3175","Bus Supp - SEND, CQF","01-EMPLOYEES","Employees","01A","Direct employee expenses","4","Agency Staff - Pay","3435304","201704",22/06/2016 00:00:00,281.4,"31230","Employment & Recruitment Agencies","REDACTED DATA","ADECCO UK LIMITED","593232","http://opencorporates.com/companies/gb/593232","232347975"
"London Borough of Redbridge","http://opendatacommunities.org/doc/london-borough-council/redbridge","3BLEACENTFND","LEA Centrally Held School Funds","3CSCHSTRATMG","Schools Strategic Management","REV","Revenue","R3175","Bus Supp - SEND, CQF","01-EMPLOYEES","Employees","01A","Direct employee expenses","4","Agency Staff - Pay","3435304","201704",22/06/2016 00:00:00,147.4,"31230","Employment & Recruitment Agencies","REDACTED DATA","ADECCO UK LIMITED","593232","http://opencorporates.com/companies/gb/593232","232347975"
"London Borough of Redbridge","http://opendatacommunities.org/doc/london-borough-council/redbridge","3BLEACENTFND","LEA Centrally Held School Funds","3CSCHSTRATMG","Schools Strategic Management","REV","Revenue","R3175","Bus Supp - SEND, CQF","01-EMPLOYEES","Employees","01A","Direct employee expenses","4","Agency Staff - Pay","3435304","201704",22/06/2016 00:00:00,281.4,"31230","Employment & Recruitment Agencies","REDACTED DATA","ADECCO UK LIMITED","593232","http://opencorporates.com/companies/gb/593232","232347975"
"London Borough of Redbridge","http://opendatacommunities.org/doc/london-borough-council/redbridge","3BLEACENTFND","LEA Centrally Held School Funds","3CSCHSTRATMG","Schools Strategic Management","REV","Revenue","R3175","Bus Supp - SEND, CQF","01-EMPLOYEES","Employees","01A","Direct employee expenses","4","Agency Staff - Pay","3435304","201704",22/06/2016 00:00:00,463.75,"31230","Employment & Recruitment Agencies","REDACTED DATA","ADECCO UK LIMITED","593232","http://opencorporates.com/companies/gb/593232","232347975"
"London Borough of Redbridge","http://opendatacommunities.org/doc/london-borough-council/redbridge","3BLEACENTFND","LEA Centrally Held School Funds","3CSCHSTRATMG","Schools Strategic Management","REV","Revenue","R3176","Bus Supp - Non-Trust","01-EMPLOYEES","Employees","01A","Direct employee expenses","4","Agency Staff - Pay","3435304","201704",22/06/2016 00:00:00,839.77,"31230","Employment & Recruitment Agencies","REDACTED DATA","ADECCO UK LIMITED","593232","http://opencorporates.com/companies/gb/593232","232347975"
"London Borough of Redbridge","http://opendatacommunities.org/doc/london-borough-council/redbridge","3BLEACENTFND","LEA Centrally Held School Funds","3CSCHSTRATMG","Schools Strategic Management","REV","Revenue","R3500","School Governing Body Section","01-EMPLOYEES","Employees","01A","Direct employee expenses","4","Agency Staff - Pay","3435304","201704",22/06/2016 00:00:00,201,"31230","Employment & Recruitment Agencies","REDACTED DATA","ADECCO UK LIMITED","593232","http://opencorporates.com/companies/gb/593232","232347975"
"London Borough of Redbridge","http://opendatacommunities.org/doc/london-borough-council/redbridge","3BLEACENTFND","LEA Centrally Held School Funds","3CSCHSTRATMG","Schools Strategic Management","REV","Revenue","R3500","School Governing Body Section","01-EMPLOYEES","Employees","01A","Direct employee expenses","4","Agency Staff - Pay","3435304","201704",22/06/2016 00:00:00,0,"31230","Employment & Recruitment Agencies","REDACTED DATA","ADECCO UK LIMITED","593232","http://opencorporates.com/companies/gb/593232","232347975"
"London Borough of Redbridge","http://opendatacommunities.org/doc/london-borough-council/redbridge","3BLEACENTFND","LEA Centrally Held School Funds","3CSCHSTRATMG","Schools Strategic Management","REV","Revenue","R3500","School Governing Body Section","01-EMPLOYEES","Employees","01A","Direct employee expenses","4","Agency Staff - Pay","3435304","201704",22/06/2016 00:00:00,0,"31230","Employment & Recruitment Agencies","REDACTED DATA","ADECCO UK LIMITED","593232","http://opencorporates.com/companies/gb/593232","232347975"
"London Borough of Redbridge","http://opendatacommunities.org/doc/london-borough-council/redbridge","3BLEACENTFND","LEA Centrally Held School Funds","3CSUPPORTSEN","Supporting Special Education Needs","REV","Revenue","R3923","EOTAS Commissioning Service","01-EMPLOYEES","Employees","01A","Direct employee expenses","4","Agency Staff - Pay","3435304","201704",22/06/2016 00:00:00,1830.4,"31230","Employment & Recruitment Agencies","REDACTED DATA","ADECCO UK LIMITED","593232","http://opencorporates.com/companies/gb/593232","232347975"
"London Borough of Redbridge","http://opendatacommunities.org/doc/london-borough-council/redbridge","3BLEACENTFND","LEA Centrally Held School Funds","3CSUPPORTSEN","Supporting Special Education Needs","REV","Revenue","R3923","EOTAS Commissioning Service","01-EMPLOYEES","Employees","01A","Direct employee expenses","4","Agency Staff - Pay","3435304","201704",22/06/2016 00:00:00,469,"31230","Employment & Recruitment Agencies","REDACTED DATA","ADECCO UK LIMITED","593232","http://opencorporates.com/companies/gb/593232","232347975"
"London Borough of Redbridge","http://opendatacommunities.org/doc/london-borough-council/redbridge","3BNONSCHFUND","Non-School Funding","3CNONSCH","Non Schools","REV","Revenue","R2054","Psych - Management LEA","01-EMPLOYEES","Employees","01A","Direct employee expenses","4","Agency Staff - Pay","3435304","201704",22/06/2016 00:00:00,534.78,"31230","Employment & Recruitment Agencies","REDACTED DATA","ADECCO UK LIMITED","593232","http://opencorporates.com/companies/gb/593232","232347975"
"London Borough of Redbridge","http://opendatacommunities.org/doc/london-borough-council/redbridge","3BNONSCHFUND","Non-School Funding","3CNONSCH","Non Schools","REV","Revenue","R2054","Psych - Management LEA","01-EMPLOYEES","Employees","01A","Direct employee expenses","4","Agency Staff - Pay","3435304","201704",22/06/2016 00:00:00,1086.93,"31230","Employment & Recruitment Agencies","REDACTED DATA","ADECCO UK LIMITED","593232","http://opencorporates.com/companies/gb/593232","232347975"
"London Borough of Redbridge","http://opendatacommunities.org/doc/london-borough-council/redbridge","3BNONSCHFUND","Non-School Funding","3CNONSCH","Non Schools","REV","Revenue","R3361","Troubled Families","01-EMPLOYEES","Employees","01A","Direct employee expenses","4","Agency Staff - Pay","3435304","201704",22/06/2016 00:00:00,1684.32,"31230","Employment & Recruitment Agencies","REDACTED DATA","ADECCO UK LIMITED","593232","http://opencorporates.com/companies/gb/593232","232347975"
"London Borough of Redbridge","http://opendatacommunities.org/doc/london-borough-council/redbridge","3BNONSCHFUND","Non-School Funding","3CNONSCH","Non Schools","REV","Revenue","R3361","Troubled Families","01-EMPLOYEES","Employees","01A","Direct employee expenses","4","Agency Staff - Pay","3435304","201704",22/06/2016 00:00:00,1368.51,"31230","Employment & Recruitment Agencies","REDACTED DATA","ADECCO UK LIMITED","593232","http://opencorporates.com/companies/gb/593232","232347975"
"London Borough of Redbridge","http://opendatacommunities.org/doc/london-borough-council/redbridge","3BNONSCHFUND","Non-School Funding","3CNONSCH","Non Schools","REV","Revenue","R3361","Troubled Families","01-EMPLOYEES","Employees","01A","Direct employee expenses","4","Agency Staff - Pay","3435304","201704",22/06/2016 00:00:00,838.5,"31230","Employment & Recruitment Agencies","REDACTED DATA","ADECCO UK LIMITED","593232","http://opencorporates.com/companies/gb/593232","232347975"
"London Borough of Redbridge","http://opendatacommunities.org/doc/london-borough-council/redbridge","3BNONSCHFUND","Non-School Funding","3CNONSCH","Non Schools","REV","Revenue","R3945","Childrens Centre Central","01-EMPLOYEES","Employees","01A","Direct employee expenses","4","Agency Staff - Pay","3435304","201704",22/06/2016 00:00:00,198.75,"31230","Employment & Recruitment Agencies","REDACTED DATA","ADECCO UK LIMITED","593232","http://opencorporates.com/companies/gb/593232","232347975"
"London Borough of Redbridge","http://opendatacommunities.org/doc/london-borough-council/redbridge","3BNONSCHFUND","Non-School Funding","3CNONSCH","Non Schools","REV","Revenue","R3951","Early Years & Childcare Improvement Team West","01-EMPLOYEES","Employees","01A","Direct employee expenses","4","Agency Staff - Pay","3435304","201704",22/06/2016 00:00:00,201,"31230","Employment & Recruitment Agencies","REDACTED DATA","ADECCO UK LIMITED","593232","http://opencorporates.com/companies/gb/593232","232347975"
"London Borough of Redbridge","http://opendatacommunities.org/doc/london-borough-council/redbridge","3BNONSCHFUND","Non-School Funding","3CNONSCH","Non Schools","REV","Revenue","R3957","North Locality Children�s Centres","01-EMPLOYEES","Employees","01A","Direct employee expenses","4","Agency Staff - Pay","3435304","201704",22/06/2016 00:00:00,363.09,"31230","Employment & Recruitment Agencies","REDACTED DATA","ADECCO UK LIMITED","593232","http://opencorporates.com/companies/gb/593232","232347975"
"London Borough of Redbridge","http://opendatacommunities.org/doc/london-borough-council/redbridge","3BNONSCHFUND","Non-School Funding","3CNONSCH","Non Schools","REV","Revenue","R3957","North Locality Children�s Centres","01-EMPLOYEES","Employees","01A","Direct employee expenses","4","Agency Staff - Pay","3435304","201704",22/06/2016 00:00:00,363.09,"31230","Employment & Recruitment Agencies","REDACTED DATA","ADECCO UK LIMITED","593232","http://opencorporates.com/companies/gb/593232","232347975"
"London Borough of Redbridge","http://opendatacommunities.org/doc/london-borough-council/redbridge","3BNONSCHFUND","Non-School Funding","3CNONSCH","Non Schools","REV","Revenue","R3957","North Locality Children�s Centres","01-EMPLOYEES","Employees","01A","Direct employee expenses","4","Agency Staff - Pay","3435304","201704",22/06/2016 00:00:00,622.44,"31230","Employment & Recruitment Agencies","REDACTED DATA","ADECCO UK LIMITED","593232","http://opencorporates.com/companies/gb/593232","232347975"
"London Borough of Redbridge","http://opendatacommunities.org/doc/london-borough-council/redbridge","3BNONSCHFUND","Non-School Funding","3CNONSCH","Non Schools","REV","Revenue","R3957","North Locality Children�s Centres","01-EMPLOYEES","Employees","01A","Direct employee expenses","4","Agency Staff - Pay","3435304","201704",22/06/2016 00:00:00,622.44,"31230","Employment & Recruitment Agencies","REDACTED DATA","ADECCO UK LIMITED","593232","http://opencorporates.com/companies/gb/593232","232347975"
"London Borough of Redbridge","http://opendatacommunities.org/doc/london-borough-council/redbridge","3BNONSCHFUND","Non-School Funding","3CNONSCH","Non Schools","REV","Revenue","R3958","South Locality Children�s Centres","01-EMPLOYEES","Employees","01A","Direct employee expenses","4","Agency Staff - Pay","3435304","201704",22/06/2016 00:00:00,193.28,"31230","Employment & Recruitment Agencies","REDACTED DATA","ADECCO UK LIMITED","593232","http://opencorporates.com/companies/gb/593232","232347975"
"London Borough of Redbridge","http://opendatacommunities.org/doc/london-borough-council/redbridge","3BNONSCHFUND","Non-School Funding","3CNONSCH","Non Schools","REV","Revenue","R3958","South Locality Children�s Centres","01-EMPLOYEES","Employees","01A","Direct employee expenses","4","Agency Staff - Pay","3435304","201704",22/06/2016 00:00:00,629.28,"31230","Employment & Recruitment Agencies","REDACTED DATA","ADECCO UK LIMITED","593232","http://opencorporates.com/companies/gb/593232","232347975"
"London Borough of Redbridge","http://opendatacommunities.org/doc/london-borough-council/redbridge","3BNONSCHFUND","Non-School Funding","3CNONSCH","Non Schools","REV","Revenue","R3959","West Locality Children�s Centres","01-EMPLOYEES","Employees","01A","Direct employee expenses","4","Agency Staff - Pay","3435304","201704",22/06/2016 00:00:00,371.74,"31230","Employment & Recruitment Agencies","REDACTED DATA","ADECCO UK LIMITED","593232","http://opencorporates.com/companies/gb/593232","232347975"
"London Borough of Redbridge","http://opendatacommunities.org/doc/london-borough-council/redbridge","3BNONSCHFUND","Non-School Funding","3CNONSCH","Non Schools","REV","Revenue","R3959","West Locality Children�s Centres","01-EMPLOYEES","Employees","01A","Direct employee expenses","4","Agency Staff - Pay","3435304","201704",22/06/2016 00:00:00,384.56,"31230","Employment & Recruitment Agencies","REDACTED DATA","ADECCO UK LIMITED","593232","http://opencorporates.com/companies/gb/593232","232347975"
"London Borough of Redbridge","http://opendatacommunities.org/doc/london-borough-council/redbridge","4BTRAFMGT&RS","Traffic Management & Road Safety","4CPUBLICTRAN","Public Transport","REV","Revenue","R4248","Blue Badges","01-EMPLOYEES","Employees","01A","Direct employee expenses","4","Agency Staff - Pay","3435304","201704",22/06/2016 00:00:00,321.31,"31230","Employment & Recruitment Agencies","REDACTED DATA","ADECCO UK LIMITED","593232","http://opencorporates.com/companies/gb/593232","232347975"
"London Borough of Redbridge","http://opendatacommunities.org/doc/london-borough-council/redbridge","4BTRANSPORT","Transport Planning, Policy & Strategy","4CMANGT&SUPP","Management & Support Services","REV","Revenue","R7000","Highways Executive","01-EMPLOYEES","Employees","01A","Direct employee expenses","4","Agency Staff - Pay","3435304","201704",22/06/2016 00:00:00,875.2,"31230","Employment & Recruitment Agencies","REDACTED DATA","ADECCO UK LIMITED","593232","http://opencorporates.com/companies/gb/593232","232347975"
"London Borough of Redbridge","http://opendatacommunities.org/doc/london-borough-council/redbridge","4BTRANSPORT","Transport Planning, Policy & Strategy","4CMANGT&SUPP","Management & Support Services","REV","Revenue","R7000","Highways Executive","01-EMPLOYEES","Employees","01A","Direct employee expenses","4","Agency Staff - Pay","3435304","201704",22/06/2016 00:00:00,0,"31230","Employment & Recruitment Agencies","REDACTED DATA","ADECCO UK LIMITED","593232","http://opencorporates.com/companies/gb/593232","232347975"
"London Borough of Redbridge","http://opendatacommunities.org/doc/london-borough-council/redbridge","4BTRANSPORT","Transport Planning, Policy & Strategy","4CMANGT&SUPP","Management & Support Services","REV","Revenue","R7000","Highways Executive","01-EMPLOYEES","Employees","01A","Direct employee expenses","4","Agency Staff - Pay","3435304","201704",22/06/2016 00:00:00,447.74,"31230","Employment & Recruitment Agencies","REDACTED DATA","ADECCO UK LIMITED","593232","http://opencorporates.com/companies/gb/593232","232347975"
"London Borough of Redbridge","http://opendatacommunities.org/doc/london-borough-council/redbridge","4BTRANSPORT","Transport Planning, Policy & Strategy","4CMANGT&SUPP","Management & Support Services","REV","Revenue","R7000","Highways Executive","01-EMPLOYEES","Employees","01A","Direct employee expenses","4","Agency Staff - Pay","3435304","201704",22/06/2016 00:00:00,-322.74,"31230","Employment & Recruitment Agencies","REDACTED DATA","ADECCO UK LIMITED","593232","http://opencorporates.com/companies/gb/593232","232347975"
"London Borough of Redbridge","http://opendatacommunities.org/doc/london-borough-council/redbridge","4BTRANSPORT","Transport Planning, Policy & Strategy","4CMANGT&SUPP","Management & Support Services","REV","Revenue","R7000","Highways Executive","01-EMPLOYEES","Employees","01A","Direct employee expenses","4","Agency Staff - Pay","3435304","201704",22/06/2016 00:00:00,1473.68,"31230","Employment & Recruitment Agencies","REDACTED DATA","ADECCO UK LIMITED","593232","http://opencorporates.com/companies/gb/593232","232347975"
"London Borough of Redbridge","http://opendatacommunities.org/doc/london-borough-council/redbridge","4BTRANSPORT","Transport Planning, Policy & Strategy","4CMANGT&SUPP","Management & Support Services","REV","Revenue","R7000","Highways Executive","01-EMPLOYEES","Employees","01A","Direct employee expenses","4","Agency Staff - Pay","3435304","201704",22/06/2016 00:00:00,-572.13,"31230","Employment & Recruitment Agencies","REDACTED DATA","ADECCO UK LIMITED","593232","http://opencorporates.com/companies/gb/593232","232347975"
"London Borough of Redbridge","http://opendatacommunities.org/doc/london-borough-council/redbridge","4BTRANSPORT","Transport Planning, Policy & Strategy","4CMANGT&SUPP","Management & Support Services","REV","Revenue","R7000","Highways Executive","01-EMPLOYEES","Employees","01A","Direct employee expenses","4","Agency Staff - Pay","3435304","201704",22/06/2016 00:00:00,-473.11,"31230","Employment & Recruitment Agencies","REDACTED DATA","ADECCO UK LIMITED","593232","http://opencorporates.com/companies/gb/593232","232347975"
"London Borough of Redbridge","http://opendatacommunities.org/doc/london-borough-council/redbridge","4BTRANSPORT","Transport Planning, Policy & Strategy","4CMANGT&SUPP","Management & Support Services","REV","Revenue","R7000","Highways Executive","01-EMPLOYEES","Employees","01A","Direct employee expenses","4","Agency Staff - Pay","3435304","201704",22/06/2016 00:00:00,473.43,"31230","Employment & Recruitment Agencies","REDACTED DATA","ADECCO UK LIMITED","593232","http://opencorporates.com/companies/gb/593232","232347975"
"London Borough of Redbridge","http://opendatacommunities.org/doc/london-borough-council/redbridge","4BTRANSPORT","Transport Planning, Policy & Strategy","4CMANGT&SUPP","Management & Support Services","REV","Revenue","R7000","Highways Executive","01-EMPLOYEES","Employees","01A","Direct employee expenses","4","Agency Staff - Pay","3435304","201704",22/06/2016 00:00:00,-546.46,"31230","Employment & Recruitment Agencies","REDACTED DATA","ADECCO UK LIMITED","593232","http://opencorporates.com/companies/gb/593232","232347975"
"London Borough of Redbridge","http://opendatacommunities.org/doc/london-borough-council/redbridge","4BTRANSPORT","Transport Planning, Policy & Strategy","4CMANGT&SUPP","Management & Support Services","REV","Revenue","R7000","Highways Executive","01-EMPLOYEES","Employees","01A","Direct employee expenses","4","Agency Staff - Pay","3435304","201704",22/06/2016 00:00:00,552.9,"31230","Employment & Recruitment Agencies","REDACTED DATA","ADECCO UK LIMITED","593232","http://opencorporates.com/companies/gb/593232","232347975"
"London Borough of Redbridge","http://opendatacommunities.org/doc/london-borough-council/redbridge","4BTRANSPORT","Transport Planning, Policy & Strategy","4CMANGT&SUPP","Management & Support Services","REV","Revenue","R7000","Highways Executive","01-EMPLOYEES","Employees","01A","Direct employee expenses","4","Agency Staff - Pay","3435304","201704",22/06/2016 00:00:00,546.83,"31230","Employment & Recruitment Agencies","REDACTED DATA","ADECCO UK LIMITED","593232","http://opencorporates.com/companies/gb/593232","232347975"
"London Borough of Redbridge","http://opendatacommunities.org/doc/london-borough-council/redbridge","4BTRANSPORT","Transport Planning, Policy & Strategy","4CMANGT&SUPP","Management & Support Services","REV","Revenue","R7000","Highways Executive","01-EMPLOYEES","Employees","01A","Direct employee expenses","4","Agency Staff - Pay","3435304","201704",22/06/2016 00:00:00,771.27,"31230","Employment & Recruitment Agencies","REDACTED DATA","ADECCO UK LIMITED","593232","http://opencorporates.com/companies/gb/593232","232347975"
"London Borough of Redbridge","http://opendatacommunities.org/doc/london-borough-council/redbridge","4BTRANSPORT","Transport Planning, Policy & Strategy","4CMANGT&SUPP","Management & Support Services","REV","Revenue","R7000","Highways Executive","01-EMPLOYEES","Employees","01A","Direct employee expenses","4","Agency Staff - Pay","3435304","201704",22/06/2016 00:00:00,1222.38,"31230","Employment & Recruitment Agencies","REDACTED DATA","ADECCO UK LIMITED","593232","http://opencorporates.com/companies/gb/593232","232347975"
"London Borough of Redbridge","http://opendatacommunities.org/doc/london-borough-council/redbridge","4BTRANSPORT","Transport Planning, Policy & Strategy","4CMANGT&SUPP","Management & Support Services","REV","Revenue","R7000","Highways Executive","01-EMPLOYEES","Employees","01A","Direct employee expenses","4","Agency Staff - Pay","3435304","201704",22/06/2016 00:00:00,0,"31230","Employment & Recruitment Agencies","REDACTED DATA","ADECCO UK LIMITED","593232","http://opencorporates.com/companies/gb/593232","232347975"
"London Borough of Redbridge","http://opendatacommunities.org/doc/london-borough-council/redbridge","4BTRANSPORT","Transport Planning, Policy & Strategy","4CMANGT&SUPP","Management & Support Services","REV","Revenue","R7000","Highways Executive","01-EMPLOYEES","Employees","01A","Direct employee expenses","4","Agency Staff - Pay","3435304","201704",22/06/2016 00:00:00,572.52,"31230","Employment & Recruitment Agencies","REDACTED DATA","ADECCO UK LIMITED","593232","http://opencorporates.com/companies/gb/593232","232347975"
"London Borough of Redbridge","http://opendatacommunities.org/doc/london-borough-council/redbridge","4BTRANSPORT","Transport Planning, Policy & Strategy","4CMANGT&SUPP","Management & Support Services","REV","Revenue","R7000","Highways Executive","01-EMPLOYEES","Employees","01A","Direct employee expenses","4","Agency Staff - Pay","3435304","201704",22/06/2016 00:00:00,1499.84,"31230","Employment & Recruitment Agencies","REDACTED DATA","ADECCO UK LIMITED","593232","http://opencorporates.com/companies/gb/593232","232347975"
"London Borough of Redbridge","http://opendatacommunities.org/doc/london-borough-council/redbridge","4BTRANSPORT","Transport Planning, Policy & Strategy","4CMANGT&SUPP","Management & Support Services","REV","Revenue","R7000","Highways Executive","01-EMPLOYEES","Employees","01A","Direct employee expenses","4","Agency Staff - Pay","3435304","201704",22/06/2016 00:00:00,112,"31230","Employment & Recruitment Agencies","REDACTED DATA","ADECCO UK LIMITED","593232","http://opencorporates.com/companies/gb/593232","232347975"
"London Borough of Redbridge","http://opendatacommunities.org/doc/london-borough-council/redbridge","4BTRANSPORT","Transport Planning, Policy & Strategy","4CMANGT&SUPP","Management & Support Services","REV","Revenue","R7000","Highways Executive","01-EMPLOYEES","Employees","01A","Direct employee expenses","4","Agency Staff - Pay","3435304","201704",22/06/2016 00:00:00,322.96,"31230","Employment & Recruitment Agencies","REDACTED DATA","ADECCO UK LIMITED","593232","http://opencorporates.com/companies/gb/593232","232347975"
"London Borough of Redbridge","http://opendatacommunities.org/doc/london-borough-council/redbridge","4BTRANSPORT","Transport Planning, Policy & Strategy","4CMANGT&SUPP","Management & Support Services","REV","Revenue","R7000","Highways Executive","01-EMPLOYEES","Employees","01A","Direct employee expenses","4","Agency Staff - Pay","3435304","201704",22/06/2016 00:00:00,576.19,"31230","Employment & Recruitment Agencies","REDACTED DATA","ADECCO UK LIMITED","593232","http://opencorporates.com/companies/gb/593232","232347975"
"London Borough of Redbridge","http://opendatacommunities.org/doc/london-borough-council/redbridge","4BTRANSPORT","Transport Planning, Policy & Strategy","4CMANGT&SUPP","Management & Support Services","REV","Revenue","R7000","Highways Executive","01-EMPLOYEES","Employees","01A","Direct employee expenses","4","Agency Staff - Pay","3435304","201704",22/06/2016 00:00:00,-575.8,"31230","Employment & Recruitment Agencies","REDACTED DATA","ADECCO UK LIMITED","593232","http://opencorporates.com/companies/gb/593232","232347975"
"London Borough of Redbridge","http://opendatacommunities.org/doc/london-borough-council/redbridge","4BTRANSPORT","Transport Planning, Policy & Strategy","4CMANGT&SUPP","Management & Support Services","REV","Revenue","R7000","Highways Executive","01-EMPLOYEES","Employees","01A","Direct employee expenses","4","Agency Staff - Pay","3435304","201704",22/06/2016 00:00:00,1268.38,"31230","Employment & Recruitment Agencies","REDACTED DATA","ADECCO UK LIMITED","593232","http://opencorporates.com/companies/gb/593232","232347975"
"London Borough of Redbridge","http://opendatacommunities.org/doc/london-borough-council/redbridge","4BTRANSPORT","Transport Planning, Policy & Strategy","4CMANGT&SUPP","Management & Support Services","REV","Revenue","R7000","Highways Executive","01-EMPLOYEES","Employees","01A","Direct employee expenses","4","Agency Staff - Pay","3435304","201704",22/06/2016 00:00:00,1773.98,"31230","Employment & Recruitment Agencies","REDACTED DATA","ADECCO UK LIMITED","593232","http://opencorporates.com/companies/gb/593232","232347975"
"London Borough of Redbridge","http://opendatacommunities.org/doc/london-borough-council/redbridge","4BTRANSPORT","Transport Planning, Policy & Strategy","4CMANGT&SUPP","Management & Support Services","REV","Revenue","R7000","Highways Executive","01-EMPLOYEES","Employees","01A","Direct employee expenses","4","Agency Staff - Pay","3435304","201704",22/06/2016 00:00:00,-447.44,"31230","Employment & Recruitment Agencies","REDACTED DATA","ADECCO UK LIMITED","593232","http://opencorporates.com/companies/gb/593232","232347975"
"London Borough of Redbridge","http://opendatacommunities.org/doc/london-borough-council/redbridge","4BTRANSPORT","Transport Planning, Policy & Strategy","4CMANGT&SUPP","Management & Support Services","REV","Revenue","R7000","Highways Executive","01-EMPLOYEES","Employees","01A","Direct employee expenses","4","Agency Staff - Pay","3435304","201704",22/06/2016 00:00:00,536,"31230","Employment & Recruitment Agencies","REDACTED DATA","ADECCO UK LIMITED","593232","http://opencorporates.com/companies/gb/593232","232347975"
"London Borough of Redbridge","http://opendatacommunities.org/doc/london-borough-council/redbridge","4BTRANSPORT","Transport Planning, Policy & Strategy","4CMANGT&SUPP","Management & Support Services","REV","Revenue","R7000","Highways Executive","01-EMPLOYEES","Employees","01A","Direct employee expenses","4","Agency Staff - Pay","3435304","201704",22/06/2016 00:00:00,622.01,"31230","Employment & Recruitment Agencies","REDACTED DATA","ADECCO UK LIMITED","593232","http://opencorporates.com/companies/gb/593232","232347975"
"London Borough of Redbridge","http://opendatacommunities.org/doc/london-borough-council/redbridge","4BTRANSPORT","Transport Planning, Policy & Strategy","4CMANGT&SUPP","Management & Support Services","REV","Revenue","R7000","Highways Executive","01-EMPLOYEES","Employees","01A","Direct employee expenses","4","Agency Staff - Pay","3435304","201704",22/06/2016 00:00:00,1045.5,"31230","Employment & Recruitment Agencies","REDACTED DATA","ADECCO UK LIMITED","593232","http://opencorporates.com/companies/gb/593232","232347975"
"London Borough of Redbridge","http://opendatacommunities.org/doc/london-borough-council/redbridge","5BGFHOUSING","General Fund Housing","5CHOMELESS","Homelessness","REV","Revenue","R5611","Homelessness","01-EMPLOYEES","Employees","01A","Direct employee expenses","4","Agency Staff - Pay","3435304","201704",22/06/2016 00:00:00,878.63,"31230","Employment & Recruitment Agencies","REDACTED DATA","ADECCO UK LIMITED","593232","http://opencorporates.com/companies/gb/593232","232347975"
"London Borough of Redbridge","http://opendatacommunities.org/doc/london-borough-council/redbridge","5BGFHOUSING","General Fund Housing","5CHOMELESS","Homelessness","REV","Revenue","R5611","Homelessness","01-EMPLOYEES","Employees","01A","Direct employee expenses","4","Agency Staff - Pay","3435304","201704",22/06/2016 00:00:00,461.04,"31230","Employment & Recruitment Agencies","REDACTED DATA","ADECCO UK LIMITED","593232","http://opencorporates.com/companies/gb/593232","232347975"
"London Borough of Redbridge","http://opendatacommunities.org/doc/london-borough-council/redbridge","5BGFHOUSING","General Fund Housing","5CHOMELESS","Homelessness","REV","Revenue","R5611","Homelessness","01-EMPLOYEES","Employees","01A","Direct employee expenses","4","Agency Staff - Pay","3435304","201704",22/06/2016 00:00:00,1275.85,"31230","Employment & Recruitment Agencies","REDACTED DATA","ADECCO UK LIMITED","593232","http://opencorporates.com/companies/gb/593232","232347975"
"London Borough of Redbridge","http://opendatacommunities.org/doc/london-borough-council/redbridge","5BGFHOUSING","General Fund Housing","5CHOMELESS","Homelessness","REV","Revenue","R5611","Homelessness","01-EMPLOYEES","Employees","01A","Direct employee expenses","4","Agency Staff - Pay","3435304","201704",22/06/2016 00:00:00,942.75,"31230","Employment & Recruitment Agencies","REDACTED DATA","ADECCO UK LIMITED","593232","http://opencorporates.com/companies/gb/593232","232347975"
"London Borough of Redbridge","http://opendatacommunities.org/doc/london-borough-council/redbridge","5BGFHOUSING","General Fund Housing","5CHOMELESS","Homelessness","REV","Revenue","R5611","Homelessness","01-EMPLOYEES","Employees","01A","Direct employee expenses","4","Agency Staff - Pay","3435304","201704",22/06/2016 00:00:00,798,"31230","Employment & Recruitment Agencies","REDACTED DATA","ADECCO UK LIMITED","593232","http://opencorporates.com/companies/gb/593232","232347975"
"London Borough of Redbridge","http://opendatacommunities.org/doc/london-borough-council/redbridge","5BGFHOUSING","General Fund Housing","5CHOMELESS","Homelessness","REV","Revenue","R5629","HAC Assessment","01-EMPLOYEES","Employees","01A","Direct employee expenses","4","Agency Staff - Pay","3435304","201704",22/06/2016 00:00:00,127.62,"31230","Employment & Recruitment Agencies","REDACTED DATA","ADECCO UK LIMITED","593232","http://opencorporates.com/companies/gb/593232","232347975"
"London Borough of Redbridge","http://opendatacommunities.org/doc/london-borough-council/redbridge","5BGFHOUSING","General Fund Housing","5CHOMELESS","Homelessness","REV","Revenue","R5629","HAC Assessment","01-EMPLOYEES","Employees","01A","Direct employee expenses","4","Agency Staff - Pay","3435304","201704",22/06/2016 00:00:00,589.6,"31230","Employment & Recruitment Agencies","REDACTED DATA","ADECCO UK LIMITED","593232","http://opencorporates.com/companies/gb/593232","232347975"
"London Borough of Redbridge","http://opendatacommunities.org/doc/london-borough-council/redbridge","5BGFHOUSING","General Fund Housing","5CHOMELESS","Homelessness","REV","Revenue","R5629","HAC Assessment","01-EMPLOYEES","Employees","01A","Direct employee expenses","4","Agency Staff - Pay","3435304","201704",22/06/2016 00:00:00,680.64,"31230","Employment & Recruitment Agencies","REDACTED DATA","ADECCO UK LIMITED","593232","http://opencorporates.com/companies/gb/593232","232347975"
"London Borough of Redbridge","http://opendatacommunities.org/doc/london-borough-council/redbridge","5BGFHOUSING","General Fund Housing","5CHOMELESS","Homelessness","REV","Revenue","R5629","HAC Assessment","01-EMPLOYEES","Employees","01A","Direct employee expenses","4","Agency Staff - Pay","3435304","201704",22/06/2016 00:00:00,303.05,"31230","Employment & Recruitment Agencies","REDACTED DATA","ADECCO UK LIMITED","593232","http://opencorporates.com/companies/gb/593232","232347975"
"London Borough of Redbridge","http://opendatacommunities.org/doc/london-borough-council/redbridge","5BGFHOUSING","General Fund Housing","5CHOMELESS","Homelessness","REV","Revenue","R5629","HAC Assessment","01-EMPLOYEES","Employees","01A","Direct employee expenses","4","Agency Staff - Pay","3435304","201704",22/06/2016 00:00:00,903.13,"31230","Employment & Recruitment Agencies","REDACTED DATA","ADECCO UK LIMITED","593232","http://opencorporates.com/companies/gb/593232","232347975"
"London Borough of Redbridge","http://opendatacommunities.org/doc/london-borough-council/redbridge","5BGFHOUSING","General Fund Housing","5CHOMELESS","Homelessness","REV","Revenue","R5629","HAC Assessment","01-EMPLOYEES","Employees","01A","Direct employee expenses","4","Agency Staff - Pay","3435304","201704",22/06/2016 00:00:00,1112.76,"31230","Employment & Recruitment Agencies","REDACTED DATA","ADECCO UK LIMITED","593232","http://opencorporates.com/companies/gb/593232","232347975"
"London Borough of Redbridge","http://opendatacommunities.org/doc/london-borough-council/redbridge","5BGFHOUSING","General Fund Housing","5CHOMELESS","Homelessness","REV","Revenue","R5630","HAC Temporary Accomodation","01-EMPLOYEES","Employees","01A","Direct employee expenses","4","Agency Staff - Pay","3435304","201704",22/06/2016 00:00:00,611.65,"31230","Employment & Recruitment Agencies","REDACTED DATA","ADECCO UK LIMITED","593232","http://opencorporates.com/companies/gb/593232","232347975"
"London Borough of Redbridge","http://opendatacommunities.org/doc/london-borough-council/redbridge","5BGFHOUSING","General Fund Housing","5CHOMELESS","Homelessness","REV","Revenue","R5630","HAC Temporary Accomodation","01-EMPLOYEES","Employees","01A","Direct employee expenses","4","Agency Staff - Pay","3435304","201704",22/06/2016 00:00:00,609.38,"31230","Employment & Recruitment Agencies","REDACTED DATA","ADECCO UK LIMITED","593232","http://opencorporates.com/companies/gb/593232","232347975"
"London Borough of Redbridge","http://opendatacommunities.org/doc/london-borough-council/redbridge","5BGFHOUSING","General Fund Housing","5CHOMELESS","Homelessness","REV","Revenue","R5630","HAC Temporary Accomodation","01-EMPLOYEES","Employees","01A","Direct employee expenses","4","Agency Staff - Pay","3435304","201704",22/06/2016 00:00:00,620.24,"31230","Employment & Recruitment Agencies","REDACTED DATA","ADECCO UK LIMITED","593232","http://opencorporates.com/companies/gb/593232","232347975"
"London Borough of Redbridge","http://opendatacommunities.org/doc/london-borough-council/redbridge","5BGFHOUSING","General Fund Housing","5CHOMELESS","Homelessness","REV","Revenue","R5630","HAC Temporary Accomodation","01-EMPLOYEES","Employees","01A","Direct employee expenses","4","Agency Staff - Pay","3435304","201704",22/06/2016 00:00:00,681.43,"31230","Employment & Recruitment Agencies","REDACTED DATA","ADECCO UK LIMITED","593232","http://opencorporates.com/companies/gb/593232","232347975"
"London Borough of Redbridge","http://opendatacommunities.org/doc/london-borough-council/redbridge","5BGFHOUSING","General Fund Housing","5CHOMELESS","Homelessness","REV","Revenue","R5630","HAC Temporary Accomodation","01-EMPLOYEES","Employees","01A","Direct employee expenses","4","Agency Staff - Pay","3435304","201704",22/06/2016 00:00:00,278.7,"31230","Employment & Recruitment Agencies","REDACTED DATA","ADECCO UK LIMITED","593232","http://opencorporates.com/companies/gb/593232","232347975"
"London Borough of Redbridge","http://opendatacommunities.org/doc/london-borough-council/redbridge","5BGFHOUSING","General Fund Housing","5CHOMELESS","Homelessness","REV","Revenue","R5631","Unlawful use of B&B grant","01-EMPLOYEES","Employees","01A","Direct employee expenses","4","Agency Staff - Pay","3435304","201704",22/06/2016 00:00:00,896.76,"31230","Employment & Recruitment Agencies","REDACTED DATA","ADECCO UK LIMITED","593232","http://opencorporates.com/companies/gb/593232","232347975"
"London Borough of Redbridge","http://opendatacommunities.org/doc/london-borough-council/redbridge","5BGFHOUSING","General Fund Housing","5CHOMELESS","Homelessness","REV","Revenue","R5632","Abury House Hostel","01-EMPLOYEES","Employees","01A","Direct employee expenses","4","Agency Staff - Pay","3435304","201704",22/06/2016 00:00:00,596.4,"31230","Employment & Recruitment Agencies","REDACTED DATA","ADECCO UK LIMITED","593232","http://opencorporates.com/companies/gb/593232","232347975"
"London Borough of Redbridge","http://opendatacommunities.org/doc/london-borough-council/redbridge","5BGFHOUSING","General Fund Housing","5CHOMELESS","Homelessness","REV","Revenue","R5633","Hylefords Hostel","01-EMPLOYEES","Employees","01A","Direct employee expenses","4","Agency Staff - Pay","3435304","201704",22/06/2016 00:00:00,361.92,"31230","Employment & Recruitment Agencies","REDACTED DATA","ADECCO UK LIMITED","593232","http://opencorporates.com/companies/gb/593232","232347975"
"London Borough of Redbridge","http://opendatacommunities.org/doc/london-borough-council/redbridge","5BGFHOUSING","General Fund Housing","5CHOMELESS","Homelessness","REV","Revenue","R5637","GF Income Recovery Team","01-EMPLOYEES","Employees","01A","Direct employee expenses","4","Agency Staff - Pay","3435304","201704",22/06/2016 00:00:00,747.72,"31230","Employment & Recruitment Agencies","REDACTED DATA","ADECCO UK LIMITED","593232","http://opencorporates.com/companies/gb/593232","232347975"
"London Borough of Redbridge","http://opendatacommunities.org/doc/london-borough-council/redbridge","5BGFHOUSING","General Fund Housing","5CHOMELESS","Homelessness","REV","Revenue","R5637","GF Income Recovery Team","01-EMPLOYEES","Employees","01A","Direct employee expenses","4","Agency Staff - Pay","3435304","201704",22/06/2016 00:00:00,732.44,"31230","Employment & Recruitment Agencies","REDACTED DATA","ADECCO UK LIMITED","593232","http://opencorporates.com/companies/gb/593232","232347975"
"London Borough of Redbridge","http://opendatacommunities.org/doc/london-borough-council/redbridge","5BGFHOUSING","General Fund Housing","5CHOMELESS","Homelessness","REV","Revenue","R5637","GF Income Recovery Team","01-EMPLOYEES","Employees","01A","Direct employee expenses","4","Agency Staff - Pay","3435304","201704",22/06/2016 00:00:00,743.75,"31230","Employment & Recruitment Agencies","REDACTED DATA","ADECCO UK LIMITED","593232","http://opencorporates.com/companies/gb/593232","232347975"
"London Borough of Redbridge","http://opendatacommunities.org/doc/london-borough-council/redbridge","5BGFHOUSING","General Fund Housing","5CHOMELESS","Homelessness","REV","Revenue","R5637","GF Income Recovery Team","01-EMPLOYEES","Employees","01A","Direct employee expenses","4","Agency Staff - Pay","3435304","201704",22/06/2016 00:00:00,711.28,"31230","Employment & Recruitment Agencies","REDACTED DATA","ADECCO UK LIMITED","593232","http://opencorporates.com/companies/gb/593232","232347975"
"London Borough of Redbridge","http://opendatacommunities.org/doc/london-borough-council/redbridge","5BGFHOUSING","General Fund Housing","5CHOMELESS","Homelessness","REV","Revenue","R5637","GF Income Recovery Team","01-EMPLOYEES","Employees","01A","Direct employee expenses","4","Agency Staff - Pay","3435304","201704",22/06/2016 00:00:00,655.03,"31230","Employment & Recruitment Agencies","REDACTED DATA","ADECCO UK LIMITED","593232","http://opencorporates.com/companies/gb/593232","232347975"
"London Borough of Redbridge","http://opendatacommunities.org/doc/london-borough-council/redbridge","5BGFHOUSING","General Fund Housing","5CHOMELESS","Homelessness","REV","Revenue","R5637","GF Income Recovery Team","01-EMPLOYEES","Employees","01A","Direct employee expenses","4","Agency Staff - Pay","3435304","201704",22/06/2016 00:00:00,761.4,"31230","Employment & Recruitment Agencies","REDACTED DATA","ADECCO UK LIMITED","593232","http://opencorporates.com/companies/gb/593232","232347975"
"London Borough of Redbridge","http://opendatacommunities.org/doc/london-borough-council/redbridge","5BGFHOUSING","General Fund Housing","5CHOUMGTSUPP","Housing Management & Support Services","REV","Revenue","R5600","Housing Finance Team","01-EMPLOYEES","Employees","01A","Direct employee expenses","4","Agency Staff - Pay","3435304","201704",22/06/2016 00:00:00,536.13,"31230","Employment & Recruitment Agencies","REDACTED DATA","ADECCO UK LIMITED","593232","http://opencorporates.com/companies/gb/593232","232347975"
"London Borough of Redbridge","http://opendatacommunities.org/doc/london-borough-council/redbridge","5BGFHOUSING","General Fund Housing","5CHOUMGTSUPP","Housing Management & Support Services","REV","Revenue","R5600","Housing Finance Team","01-EMPLOYEES","Employees","01A","Direct employee expenses","4","Agency Staff - Pay","3435304","201704",22/06/2016 00:00:00,1165.81,"31230","Employment & Recruitment Agencies","REDACTED DATA","ADECCO UK LIMITED","593232","http://opencorporates.com/companies/gb/593232","232347975"
"London Borough of Redbridge","http://opendatacommunities.org/doc/london-borough-council/redbridge","5BGFHOUSING","General Fund Housing","5CHOUMGTSUPP","Housing Management & Support Services","REV","Revenue","R5600","Housing Finance Team","01-EMPLOYEES","Employees","01A","Direct employee expenses","4","Agency Staff - Pay","3435304","201704",22/06/2016 00:00:00,1622,"31230","Employment & Recruitment Agencies","REDACTED DATA","ADECCO UK LIMITED","593232","http://opencorporates.com/companies/gb/593232","232347975"
"London Borough of Redbridge","http://opendatacommunities.org/doc/london-borough-council/redbridge","5BGFHOUSING","General Fund Housing","5CHOUMGTSUPP","Housing Management & Support Services","REV","Revenue","R5600","Housing Finance Team","01-EMPLOYEES","Employees","01A","Direct employee expenses","4","Agency Staff - Pay","3435304","201704",22/06/2016 00:00:00,1622,"31230","Employment & Recruitment Agencies","REDACTED DATA","ADECCO UK LIMITED","593232","http://opencorporates.com/companies/gb/593232","232347975"
"London Borough of Redbridge","http://opendatacommunities.org/doc/london-borough-council/redbridge","5BGFHOUSING","General Fund Housing","5CHOUMGTSUPP","Housing Management & Support Services","REV","Revenue","R5601","Housing Service Administration","01-EMPLOYEES","Employees","01A","Direct employee expenses","4","Agency Staff - Pay","3435304","201704",22/06/2016 00:00:00,482.4,"31230","Employment & Recruitment Agencies","REDACTED DATA","ADECCO UK LIMITED","593232","http://opencorporates.com/companies/gb/593232","232347975"
"London Borough of Redbridge","http://opendatacommunities.org/doc/london-borough-council/redbridge","5BGFHOUSING","General Fund Housing","5CHOUMGTSUPP","Housing Management & Support Services","REV","Revenue","R5606","Housing IT","01-EMPLOYEES","Employees","01A","Direct employee expenses","4","Agency Staff - Pay","3435304","201704",22/06/2016 00:00:00,459.21,"31230","Employment & Recruitment Agencies","REDACTED DATA","ADECCO UK LIMITED","593232","http://opencorporates.com/companies/gb/593232","232347975"
"London Borough of Redbridge","http://opendatacommunities.org/doc/london-borough-council/redbridge","5BGFHOUSING","General Fund Housing","5CHOUSBENADM","Housing Benefits Administration","REV","Revenue","R5604","Housing Benefit Team","01-EMPLOYEES","Employees","01A","Direct employee expenses","4","Agency Staff - Pay","3435304","201704",22/06/2016 00:00:00,603.2,"31230","Employment & Recruitment Agencies","REDACTED DATA","ADECCO UK LIMITED","593232","http://opencorporates.com/companies/gb/593232","232347975"
"London Borough of Redbridge","http://opendatacommunities.org/doc/london-borough-council/redbridge","5BGFHOUSING","General Fund Housing","5CHOUSBENADM","Housing Benefits Administration","REV","Revenue","R5604","Housing Benefit Team","01-EMPLOYEES","Employees","01A","Direct employee expenses","4","Agency Staff - Pay","3435304","201704",22/06/2016 00:00:00,52.2,"31230","Employment & Recruitment Agencies","REDACTED DATA","ADECCO UK LIMITED","593232","http://opencorporates.com/companies/gb/593232","232347975"
"London Borough of Redbridge","http://opendatacommunities.org/doc/london-borough-council/redbridge","5BGFHOUSING","General Fund Housing","5CHOUSBENADM","Housing Benefits Administration","REV","Revenue","R5771","Benefits Administration","01-EMPLOYEES","Employees","01A","Direct employee expenses","4","Agency Staff - Pay","3435304","201704",22/06/2016 00:00:00,1001.35,"31230","Employment & Recruitment Agencies","REDACTED DATA","ADECCO UK LIMITED","593232","http://opencorporates.com/companies/gb/593232","232347975"
"London Borough of Redbridge","http://opendatacommunities.org/doc/london-borough-council/redbridge","5BGFHOUSING","General Fund Housing","5CHOUSBENADM","Housing Benefits Administration","REV","Revenue","R5771","Benefits Administration","01-EMPLOYEES","Employees","01A","Direct employee expenses","4","Agency Staff - Pay","3435304","201704",22/06/2016 00:00:00,737.42,"31230","Employment & Recruitment Agencies","REDACTED DATA","ADECCO UK LIMITED","593232","http://opencorporates.com/companies/gb/593232","232347975"
"London Borough of Redbridge","http://opendatacommunities.org/doc/london-borough-council/redbridge","5BGFHOUSING","General Fund Housing","5CHOUSBENADM","Housing Benefits Administration","REV","Revenue","R5771","Benefits Administration","01-EMPLOYEES","Employees","01A","Direct employee expenses","4","Agency Staff - Pay","3435304","201704",22/06/2016 00:00:00,435.59,"31230","Employment & Recruitment Agencies","REDACTED DATA","ADECCO UK LIMITED","593232","http://opencorporates.com/companies/gb/593232","232347975"
"London Borough of Redbridge","http://opendatacommunities.org/doc/london-borough-council/redbridge","5BGFHOUSING","General Fund Housing","5CHOUSBENADM","Housing Benefits Administration","REV","Revenue","R5771","Benefits Administration","01-EMPLOYEES","Employees","01A","Direct employee expenses","4","Agency Staff - Pay","3435304","201704",22/06/2016 00:00:00,885,"31230","Employment & Recruitment Agencies","REDACTED DATA","ADECCO UK LIMITED","593232","http://opencorporates.com/companies/gb/593232","232347975"
"London Borough of Redbridge","http://opendatacommunities.org/doc/london-borough-council/redbridge","5BGFHOUSING","General Fund Housing","5CPRIVSECREN","Private Sector Housing Renewal","REV","Revenue","R5620","Private Sector Housing Standards","01-EMPLOYEES","Employees","01A","Direct employee expenses","4","Agency Staff - Pay","3435304","201704",22/06/2016 00:00:00,1058.76,"31230","Employment & Recruitment Agencies","REDACTED DATA","ADECCO UK LIMITED","593232","http://opencorporates.com/companies/gb/593232","232347975"
"London Borough of Redbridge","http://opendatacommunities.org/doc/london-borough-council/redbridge","5BGFHOUSING","General Fund Housing","5CPRIVSECREN","Private Sector Housing Renewal","REV","Revenue","R5620","Private Sector Housing Standards","01-EMPLOYEES","Employees","01A","Direct employee expenses","4","Agency Staff - Pay","3435304","201704",22/06/2016 00:00:00,4.5,"31230","Employment & Recruitment Agencies","REDACTED DATA","ADECCO UK LIMITED","593232","http://opencorporates.com/companies/gb/593232","232347975"
"London Borough of Redbridge","http://opendatacommunities.org/doc/london-borough-council/redbridge","5BHRAEXPEND","HRA Expenditure","5CHOUMGTSUPP","Housing Management & Support Services","REV","Revenue","R5044","Housing IT System","01-EMPLOYEES","Employees","01A","Direct employee expenses","4","Agency Staff - Pay","3435304","201704",22/06/2016 00:00:00,1836.84,"31230","Employment & Recruitment Agencies","REDACTED DATA","ADECCO UK LIMITED","593232","http://opencorporates.com/companies/gb/593232","232347975"
"London Borough of Redbridge","http://opendatacommunities.org/doc/london-borough-council/redbridge","6BADULTSOCIA","Adult Social Care","6CADLEARNDIS","Adults Under 65 with Learning Disabilities","REV","Revenue","R4368","Learn - Soc Care Tea","01-EMPLOYEES","Employees","01A","Direct employee expenses","4","Agency Staff - Pay","3435304","201704",22/06/2016 00:00:00,326.13,"31230","Employment & Recruitment Agencies","REDACTED DATA","ADECCO UK LIMITED","593232","http://opencorporates.com/companies/gb/593232","232347975"
"London Borough of Redbridge","http://opendatacommunities.org/doc/london-borough-council/redbridge","6BADULTSOCIA","Adult Social Care","6CADLEARNDIS","Adults Under 65 with Learning Disabilities","REV","Revenue","R4368","Learn - Soc Care Tea","01-EMPLOYEES","Employees","01A","Direct employee expenses","4","Agency Staff - Pay","3435304","201704",22/06/2016 00:00:00,326.13,"31230","Employment & Recruitment Agencies","REDACTED DATA","ADECCO UK LIMITED","593232","http://opencorporates.com/companies/gb/593232","232347975"
"London Borough of Redbridge","http://opendatacommunities.org/doc/london-borough-council/redbridge","6BADULTSOCIA","Adult Social Care","6CADLEARNDIS","Adults Under 65 with Learning Disabilities","REV","Revenue","R4368","Learn - Soc Care Tea","01-EMPLOYEES","Employees","01A","Direct employee expenses","4","Agency Staff - Pay","3435304","201704",22/06/2016 00:00:00,326.13,"31230","Employment & Recruitment Agencies","REDACTED DATA","ADECCO UK LIMITED","593232","http://opencorporates.com/companies/gb/593232","232347975"
"London Borough of Redbridge","http://opendatacommunities.org/doc/london-borough-council/redbridge","6BADULTSOCIA","Adult Social Care","6CADMENHLTH","Adults Under 65 with Mental Health Needs","REV","Revenue","R4379","Redbridge Community Recovery Services","01-EMPLOYEES","Employees","01A","Direct employee expenses","4","Agency Staff - Pay","3435304","201704",22/06/2016 00:00:00,1479.24,"31230","Employment & Recruitment Agencies","REDACTED DATA","ADECCO UK LIMITED","593232","http://opencorporates.com/companies/gb/593232","232347975"
"London Borough of Redbridge","http://opendatacommunities.org/doc/london-borough-council/redbridge","6BADULTSOCIA","Adult Social Care","6CADMENHLTH","Adults Under 65 with Mental Health Needs","REV","Revenue","R4379","Redbridge Community Recovery Services","01-EMPLOYEES","Employees","01A","Direct employee expenses","4","Agency Staff - Pay","3435304","201704",22/06/2016 00:00:00,1479.24,"31230","Employment & Recruitment Agencies","REDACTED DATA","ADECCO UK LIMITED","593232","http://opencorporates.com/companies/gb/593232","232347975"
"London Borough of Redbridge","http://opendatacommunities.org/doc/london-borough-council/redbridge","6BADULTSOCIA","Adult Social Care","6CADMENHLTH","Adults Under 65 with Mental Health Needs","REV","Revenue","R4379","Redbridge Community Recovery Services","01-EMPLOYEES","Employees","01A","Direct employee expenses","4","Agency Staff - Pay","3435304","201704",22/06/2016 00:00:00,11.84,"31230","Employment & Recruitment Agencies","REDACTED DATA","ADECCO UK LIMITED","593232","http://opencorporates.com/companies/gb/593232","232347975"
"London Borough of Redbridge","http://opendatacommunities.org/doc/london-borough-council/redbridge","6BADULTSOCIA","Adult Social Care","6CADMENHLTH","Adults Under 65 with Mental Health Needs","REV","Revenue","R4379","Redbridge Community Recovery Services","01-EMPLOYEES","Employees","01A","Direct employee expenses","4","Agency Staff - Pay","3435304","201704",22/06/2016 00:00:00,1083.24,"31230","Employment & Recruitment Agencies","REDACTED DATA","ADECCO UK LIMITED","593232","http://opencorporates.com/companies/gb/593232","232347975"
"London Borough of Redbridge","http://opendatacommunities.org/doc/london-borough-council/redbridge","6BADULTSOCIA","Adult Social Care","6CADMENHLTH","Adults Under 65 with Mental Health Needs","REV","Revenue","R4379","Redbridge Community Recovery Services","01-EMPLOYEES","Employees","01A","Direct employee expenses","4","Agency Staff - Pay","3435304","201704",22/06/2016 00:00:00,1263.24,"31230","Employment & Recruitment Agencies","REDACTED DATA","ADECCO UK LIMITED","593232","http://opencorporates.com/companies/gb/593232","232347975"
"London Borough of Redbridge","http://opendatacommunities.org/doc/london-borough-council/redbridge","6BADULTSOCIA","Adult Social Care","6CADMENHLTH","Adults Under 65 with Mental Health Needs","REV","Revenue","R4379","Redbridge Community Recovery Services","01-EMPLOYEES","Employees","01A","Direct employee expenses","4","Agency Staff - Pay","3435304","201704",22/06/2016 00:00:00,1263.24,"31230","Employment & Recruitment Agencies","REDACTED DATA","ADECCO UK LIMITED","593232","http://opencorporates.com/companies/gb/593232","232347975"
"London Borough of Redbridge","http://opendatacommunities.org/doc/london-borough-council/redbridge","6BADULTSOCIA","Adult Social Care","6CADMENHLTH","Adults Under 65 with Mental Health Needs","REV","Revenue","R4484","Multi- Disciplinary Team (Fairlop)","01-EMPLOYEES","Employees","01A","Direct employee expenses","4","Agency Staff - Pay","3435304","201704",22/06/2016 00:00:00,625.44,"31230","Employment & Recruitment Agencies","REDACTED DATA","ADECCO UK LIMITED","593232","http://opencorporates.com/companies/gb/593232","232347975"
"London Borough of Redbridge","http://opendatacommunities.org/doc/london-borough-council/redbridge","6BADULTSOCIA","Adult Social Care","6CADMENHLTH","Adults Under 65 with Mental Health Needs","REV","Revenue","R4484","Multi- Disciplinary Team (Fairlop)","01-EMPLOYEES","Employees","01A","Direct employee expenses","4","Agency Staff - Pay","3435304","201704",22/06/2016 00:00:00,421.81,"31230","Employment & Recruitment Agencies","REDACTED DATA","ADECCO UK LIMITED","593232","http://opencorporates.com/companies/gb/593232","232347975"
"London Borough of Redbridge","http://opendatacommunities.org/doc/london-borough-council/redbridge","6BADULTSOCIA","Adult Social Care","6CADMENHLTH","Adults Under 65 with Mental Health Needs","REV","Revenue","R4484","Multi- Disciplinary Team (Fairlop)","01-EMPLOYEES","Employees","01A","Direct employee expenses","4","Agency Staff - Pay","3435304","201704",22/06/2016 00:00:00,727.98,"31230","Employment & Recruitment Agencies","REDACTED DATA","ADECCO UK LIMITED","593232","http://opencorporates.com/companies/gb/593232","232347975"
"London Borough of Redbridge","http://opendatacommunities.org/doc/london-borough-council/redbridge","6BADULTSOCIA","Adult Social Care","6CADMENHLTH","Adults Under 65 with Mental Health Needs","REV","Revenue","R4484","Multi- Disciplinary Team (Fairlop)","01-EMPLOYEES","Employees","01A","Direct employee expenses","4","Agency Staff - Pay","3435304","201704",22/06/2016 00:00:00,44,"31230","Employment & Recruitment Agencies","REDACTED DATA","ADECCO UK LIMITED","593232","http://opencorporates.com/companies/gb/593232","232347975"
"London Borough of Redbridge","http://opendatacommunities.org/doc/london-borough-council/redbridge","6BADULTSOCIA","Adult Social Care","6CADMENHLTH","Adults Under 65 with Mental Health Needs","REV","Revenue","R4484","Multi- Disciplinary Team (Fairlop)","01-EMPLOYEES","Employees","01A","Direct employee expenses","4","Agency Staff - Pay","3435304","201704",22/06/2016 00:00:00,893.56,"31230","Employment & Recruitment Agencies","REDACTED DATA","ADECCO UK LIMITED","593232","http://opencorporates.com/companies/gb/593232","232347975"
"London Borough of Redbridge","http://opendatacommunities.org/doc/london-borough-council/redbridge","6BADULTSOCIA","Adult Social Care","6CADMENHLTH","Adults Under 65 with Mental Health Needs","REV","Revenue","R4484","Multi- Disciplinary Team (Fairlop)","01-EMPLOYEES","Employees","01A","Direct employee expenses","4","Agency Staff - Pay","3435304","201704",22/06/2016 00:00:00,239.9,"31230","Employment & Recruitment Agencies","REDACTED DATA","ADECCO UK LIMITED","593232","http://opencorporates.com/companies/gb/593232","232347975"
"London Borough of Redbridge","http://opendatacommunities.org/doc/london-borough-council/redbridge","6BADULTSOCIA","Adult Social Care","6CADMENHLTH","Adults Under 65 with Mental Health Needs","REV","Revenue","R4484","Multi- Disciplinary Team (Fairlop)","01-EMPLOYEES","Employees","01A","Direct employee expenses","4","Agency Staff - Pay","3435304","201704",22/06/2016 00:00:00,992.7,"31230","Employment & Recruitment Agencies","REDACTED DATA","ADECCO UK LIMITED","593232","http://opencorporates.com/companies/gb/593232","232347975"
"London Borough of Redbridge","http://opendatacommunities.org/doc/london-borough-council/redbridge","6BADULTSOCIA","Adult Social Care","6CADMENHLTH","Adults Under 65 with Mental Health Needs","REV","Revenue","R4484","Multi- Disciplinary Team (Fairlop)","01-EMPLOYEES","Employees","01A","Direct employee expenses","4","Agency Staff - Pay","3435304","201704",22/06/2016 00:00:00,1191.24,"31230","Employment & Recruitment Agencies","REDACTED DATA","ADECCO UK LIMITED","593232","http://opencorporates.com/companies/gb/593232","232347975"
"London Borough of Redbridge","http://opendatacommunities.org/doc/london-borough-council/redbridge","6BADULTSOCIA","Adult Social Care","6CADMENHLTH","Adults Under 65 with Mental Health Needs","REV","Revenue","R4484","Multi- Disciplinary Team (Fairlop)","01-EMPLOYEES","Employees","01A","Direct employee expenses","4","Agency Staff - Pay","3435304","201704",22/06/2016 00:00:00,831.24,"31230","Employment & Recruitment Agencies","REDACTED DATA","ADECCO UK LIMITED","593232","http://opencorporates.com/companies/gb/593232","232347975"
"London Borough of Redbridge","http://opendatacommunities.org/doc/london-borough-council/redbridge","6BADULTSOCIA","Adult Social Care","6CADMENHLTH","Adults Under 65 with Mental Health Needs","REV","Revenue","R4484","Multi- Disciplinary Team (Fairlop)","01-EMPLOYEES","Employees","01A","Direct employee expenses","4","Agency Staff - Pay","3435304","201704",22/06/2016 00:00:00,654.84,"31230","Employment & Recruitment Agencies","REDACTED DATA","ADECCO UK LIMITED","593232","http://opencorporates.com/companies/gb/593232","232347975"
"London Borough of Redbridge","http://opendatacommunities.org/doc/london-borough-council/redbridge","6BADULTSOCIA","Adult Social Care","6CADMENHLTH","Adults Under 65 with Mental Health Needs","REV","Revenue","R4484","Multi- Disciplinary Team (Fairlop)","01-EMPLOYEES","Employees","01A","Direct employee expenses","4","Agency Staff - Pay","3435304","201704",22/06/2016 00:00:00,663.84,"31230","Employment & Recruitment Agencies","REDACTED DATA","ADECCO UK LIMITED","593232","http://opencorporates.com/companies/gb/593232","232347975"
"London Borough of Redbridge","http://opendatacommunities.org/doc/london-borough-council/redbridge","6BADULTSOCIA","Adult Social Care","6CADMENHLTH","Adults Under 65 with Mental Health Needs","REV","Revenue","R4484","Multi- Disciplinary Team (Fairlop)","01-EMPLOYEES","Employees","01A","Direct employee expenses","4","Agency Staff - Pay","3435304","201704",22/06/2016 00:00:00,831.24,"31230","Employment & Recruitment Agencies","REDACTED DATA","ADECCO UK LIMITED","593232","http://opencorporates.com/companies/gb/593232","232347975"
"London Borough of Redbridge","http://opendatacommunities.org/doc/london-borough-council/redbridge","6BADULTSOCIA","Adult Social Care","6CADMENHLTH","Adults Under 65 with Mental Health Needs","REV","Revenue","R4484","Multi- Disciplinary Team (Fairlop)","01-EMPLOYEES","Employees","01A","Direct employee expenses","4","Agency Staff - Pay","3435304","201704",22/06/2016 00:00:00,167.4,"31230","Employment & Recruitment Agencies","REDACTED DATA","ADECCO UK LIMITED","593232","http://opencorporates.com/companies/gb/593232","232347975"
"London Borough of Redbridge","http://opendatacommunities.org/doc/london-borough-council/redbridge","6BADULTSOCIA","Adult Social Care","6COLDINCMENT","Older People (65 or over) incl. Older Mentally Ill","REV","Revenue","R4197","Extra Care Day Ops","01-EMPLOYEES","Employees","01A","Direct employee expenses","4","Agency Staff - Pay","3435304","201704",22/06/2016 00:00:00,77.1,"31230","Employment & Recruitment Agencies","REDACTED DATA","ADECCO UK LIMITED","593232","http://opencorporates.com/companies/gb/593232","232347975"
"London Borough of Redbridge","http://opendatacommunities.org/doc/london-borough-council/redbridge","6BADULTSOCIA","Adult Social Care","6COLDINCMENT","Older People (65 or over) incl. Older Mentally Ill","REV","Revenue","R4197","Extra Care Day Ops","01-EMPLOYEES","Employees","01A","Direct employee expenses","4","Agency Staff - Pay","3435304","201704",22/06/2016 00:00:00,182.26,"31230","Employment & Recruitment Agencies","REDACTED DATA","ADECCO UK LIMITED","593232","http://opencorporates.com/companies/gb/593232","232347975"
"London Borough of Redbridge","http://opendatacommunities.org/doc/london-borough-council/redbridge","6BADULTSOCIA","Adult Social Care","6COLDINCMENT","Older People (65 or over) incl. Older Mentally Ill","REV","Revenue","R4197","Extra Care Day Ops","01-EMPLOYEES","Employees","01A","Direct employee expenses","4","Agency Staff - Pay","3435304","201704",22/06/2016 00:00:00,103.74,"31230","Employment & Recruitment Agencies","REDACTED DATA","ADECCO UK LIMITED","593232","http://opencorporates.com/companies/gb/593232","232347975"
"London Borough of Redbridge","http://opendatacommunities.org/doc/london-borough-council/redbridge","6BADULTSOCIA","Adult Social Care","6COLDINCMENT","Older People (65 or over) incl. Older Mentally Ill","REV","Revenue","R4197","Extra Care Day Ops","01-EMPLOYEES","Employees","01A","Direct employee expenses","4","Agency Staff - Pay","3435304","201704",22/06/2016 00:00:00,88.74,"31230","Employment & Recruitment Agencies","REDACTED DATA","ADECCO UK LIMITED","593232","http://opencorporates.com/companies/gb/593232","232347975"
"London Borough of Redbridge","http://opendatacommunities.org/doc/london-borough-council/redbridge","6BADULTSOCIA","Adult Social Care","6COLDINCMENT","Older People (65 or over) incl. Older Mentally Ill","REV","Revenue","R4197","Extra Care Day Ops","01-EMPLOYEES","Employees","01A","Direct employee expenses","4","Agency Staff - Pay","3435304","201704",22/06/2016 00:00:00,289.57,"31230","Employment & Recruitment Agencies","REDACTED DATA","ADECCO UK LIMITED","593232","http://opencorporates.com/companies/gb/593232","232347975"
"London Borough of Redbridge","http://opendatacommunities.org/doc/london-borough-council/redbridge","6BADULTSOCIA","Adult Social Care","6COLDINCMENT","Older People (65 or over) incl. Older Mentally Ill","REV","Revenue","R4197","Extra Care Day Ops","01-EMPLOYEES","Employees","01A","Direct employee expenses","4","Agency Staff - Pay","3435304","201704",22/06/2016 00:00:00,90.75,"31230","Employment & Recruitment Agencies","REDACTED DATA","ADECCO UK LIMITED","593232","http://opencorporates.com/companies/gb/593232","232347975"
